{"text_format":"1","workbook":"xlsx","n_sheets":1,"sheets":["TRM Spreadsheet"],"not_rendered":{"charts":0,"images":0,"macros":1,"external_links":0,"defined_names":3,"comments":1,"pivot_tables":0},"unopened":[],"bounds":{"document_bytes":16777216,"sheet_cells":100000,"rows_first":2000,"rows_last":500,"rows_between":2000,"halvings":0,"cell_chars":16384,"cell_head_chars":4096},"cells_cut":0,"cells_raw":0,"read":"whole","date_system":"1900"}

{"sheet":"TRM Spreadsheet","index":0,"n_rows":345,"n_cols":100,"rows_kept":345,"cut":false,"hidden":false,"merged":[[0,33,0,34],[3,24,3,25],[0,21,0,22],[3,0,3,6],[3,7,3,17],[3,18,3,22],[3,26,3,27],[3,28,3,83]]}
["KCP&L Technical Resource Manual - 04-01-2019 Update (Attachment A)"]
[null,null,null,null,null,null,null,null,null,null,null,null,null,null,null,null,null,null,null,null,null,null,null,null,null,null,null,null,"Link to CDD","Link to HDD"]
["Measures updated with PY2 EM&V results"]
["Measure Description",null,null,null,null,null,null,"Gross Measure Values",null,null,null,null,null,null,null,null,null,null,"Efficiency Values",null,null,null,null,null,"Algorithms",null,"Start/End Dates",null,"Quantities"]
["Program","Measure Name","Primary Key","Segment","End Use","Notes","Unit Definition","Incremental Measure Cost ($/Unit)","Electric Energy Savings (Annual kWh/unit)","Electric Energy Savings (Annual kWh/unit) Source","Nameplate Demand Savings (kW/unit)","Peak Coincidence Factor","Peak Coincident Factor Source","Coincident Peak Demand Savings (kW/unit)","Coincident Peak Demand Savings (kW/unit) Source","Annual Operating Hours","Annual Operating Hours Source","Measure Life (Years)","Measure Definition","Measure Efficiency Value","Measure Efficiency Value Source","Baseline Definition","Baseline Efficiency Value","Baseline Efficiency Value Source","Electric Energy Savings Algorithm","Electric Demand Savings Algorithm","Effective Start Date","Effective End Date","Cooling Degree Days (CDD)","Heating Degree Days (HDD)","Quantity 1","Quantity 1 Description","Quantity 1 Source","Quantity 2","Quantity 2 Description","Quantity 2 Source","Quantity 3","Quantity 3 Description","Quantity 3 Source","Quantity 4","Quantity 4 Description","Quantity 4 Source","Quantity 5","Quantity 5 Description","Quantity 5 Source","Quantity 6","Quantity 6 Description","Quantity 6 Source","Quantity 7","Quantity 7 Description","Quantity 7 Source","Quantity 8","Quantity 8 Description","Quantity 8 Source","Quantity 9","Quantity 9 Description","Quantity 9 Source","Quantity 10","Quantity 10 Description","Quantity 10 Source","Quantity 11","Quantity 11 Description","Quantity 11 Source","Quantity 12","Quantity 12 Description","Quantity 12 Source","Quantity 13","Quantity 13 Description","Quantity 13 Source","Quantity 14","Quantity 14 Description","Quantity 14 Source","Quantity 15","Quantity 15 Description","Quantity 15 Source","Quantity 16","Quantity 16 Description","Quantity 16 Source","Quantity 17","Quantity 17 Description","Quantity 17 Source","Quantity 18","Quantity 18 Description","Quantity 18 Source"]
["Home Lighting Rebate","Screw In - LEDs",2.1,"All","Lighting",null,"per lamp",3.93,{"$f":"ROUND(($W6-$T6)/1000*$P6*$AE6*$AK6,4)","v":28.2745},"IL TRM v5",{"$f":"I6/P6","v":3.366011904761905E-2},0.08,"IL TRM v5",{"$f":"ROUND(($W6-$T6)/1000*L6*$AH6*$AK6,4)","v":2.8E-3},"IL TRM v5",840,"IL TRM v5",10,"Screw In - LEDs",9.2899999999999991,"Program Tracking Database","43 watts based on halogen equivalent to average of bulbs sold in program ",43,null,{"$f":"cellformula(I6)","v":"=ROUND(($W6-$T6)/1000*$P6*$AE6*$AK6,4)"},{"$f":"cellformula(N6)","v":"=ROUND(($W6-$T6)/1000*L6*$AH6*$AK6,4)"},"2018-04-01",null,null,null,1.06,"Waste Heat Factor, Energy","IL TRM v5",1.1100000000000001,"Waste Heat Factor, Demand","IL TRM v5",0.94199999999999995,"ISR","Navigant MEEIA Cycle 1 Research"," "]
["Home Lighting Rebate","Screw In - Specialty LEDs",244,"All","Lighting",null,"per lamp",7.39,{"$f":"ROUND((W7-T7)/1000*P7*AE7*AK7,4)","v":29.029399999999999},"IL TRM v5",{"$f":"I7/P7","v":3.4558809523809519E-2},0.08,"IL TRM v5",{"$f":"ROUND(($W7-$T7)/1000*L7*$AH7*$AK7,4)","v":2.8999999999999998E-3},"IL TRM v5",840,"IL TRM v5",10,"Screw In - Specialty LEDs",8.39,"Program Tracking Database","43 watts based on halogen equivalent to average of bulbs sold in program ",43,null,{"$f":"cellformula(I7)","v":"=ROUND((W7-T7)/1000*P7*AE7*AK7,4)"},{"$f":"cellformula(N7)","v":"=ROUND(($W7-$T7)/1000*L7*$AH7*$AK7,4)"},"2018-04-01","2019-03-31",null,null,1.06,"Waste Heat Factor, Energy","IL TRM v5",1.1100000000000001,"Waste Heat Factor, Demand","IL TRM v5",0.94199999999999995,"ISR","Navigant MEEIA Cycle 1 Research"," "]
["Home Lighting Rebate","Screw In - Specialty LEDs",244.1,"All","Lighting",null,"per lamp",7.39,{"$f":"ROUND((W8-T8)/1000*P8*AE8*AK8,4)","v":34.075000000000003},"IL TRM v5",{"$f":"I8/P8","v":3.4558823529411767E-2},0.08,"IL TRM v5",{"$f":"ROUND(($W8-$T8)/1000*L8*$AH8*$AK8,4)","v":2.8999999999999998E-3},"IL TRM v5",986,"IL TRM v5",10,"Screw In - Specialty LEDs",8.39,"Program Tracking Database","43 watts based on halogen equivalent to average of bulbs sold in program ",43,null,{"$f":"cellformula(I8)","v":"=ROUND((W8-T8)/1000*P8*AE8*AK8,4)"},{"$f":"cellformula(N8)","v":"=ROUND(($W8-$T8)/1000*L8*$AH8*$AK8,4)"},"2019-04-01",null,null,null,1.06,"Waste Heat Factor, Energy","IL TRM v5",1.1100000000000001,"Waste Heat Factor, Demand","IL TRM v5",0.94199999999999995,"ISR","Navigant MEEIA Cycle 1 Research"," "]
["Whole House Efficiency","Screw In - LEDs",8.1999999999999993,"Single Family","Lighting","Kits","per lamp",3.93,{"$f":"ROUND(($W9-$T9)/1000*$P9*$AE9*$AK9,4)","v":28.2745},"IL TRM v5",{"$f":"I9/P9","v":3.366011904761905E-2},0.08,"IL TRM v5",{"$f":"ROUND(($W9-$T9)/1000*L9*$AH9*$AK9,4)","v":2.8E-3},"IL TRM v5",840,"IL TRM v5",10,"Screw In - LEDs",9.2899999999999991,"Program Tracking Database","43 watts based on halogen equivalent to average of bulbs sold in program ",43,null,{"$f":"cellformula(I9)","v":"=ROUND(($W9-$T9)/1000*$P9*$AE9*$AK9,4)"},{"$f":"cellformula(N9)","v":"=ROUND(($W9-$T9)/1000*L9*$AH9*$AK9,4)"},"2018-04-01","2019-03-31",null,null,1.06,"Waste Heat Factor, Energy","IL TRM v5",1.1100000000000001,"Waste Heat Factor, Demand","IL TRM v5",0.94199999999999995,"ISR","Navigant MEEIA Cycle 1 Research"," "]
["Whole House Efficiency","Screw In - LEDs",8.3000000000000007,"Single Family","Lighting","Kits","per lamp",3.93,{"$f":"ROUND(($W10-$T10)/1000*$P10*$AE10*$AK10,4)","v":28.510100000000001},"IL TRM v5",{"$f":"I10/P10","v":3.3660094451003542E-2},0.08,"IL TRM v5",{"$f":"ROUND(($W10-$T10)/1000*L10*$AH10*$AK10,4)","v":2.8E-3},"IL TRM v5",847,"IL TRM v5",10,"Screw In - LEDs",9.2899999999999991,"Program Tracking Database","43 watts based on halogen equivalent to average of bulbs sold in program ",43,null,{"$f":"cellformula(I10)","v":"=ROUND(($W10-$T10)/1000*$P10*$AE10*$AK10,4)"},{"$f":"cellformula(N10)","v":"=ROUND(($W10-$T10)/1000*L10*$AH10*$AK10,4)"},"2019-04-01",null,null,null,1.06,"Waste Heat Factor, Energy","IL TRM v5",1.1100000000000001,"Waste Heat Factor, Demand","IL TRM v5",0.94199999999999995,"ISR","Navigant MEEIA Cycle 1 Research"," "]
["Whole House Efficiency","Low Flow Faucet Aerator-Bathroom",245,"Single Family","Hot Water","Kits","per unit",8,{"$f":"ROUND(((W11-T11)*AH11*AK11*365.25)*AE11*AN11,4)","v":25.153300000000002},"IL TRM v5",{"$f":"I11/P11","v":1.7966642857142858},2.1999999999999999E-2,"IL TRM v5",{"$f":"ROUND((((W11-T11)*AH11*AK11*365.25)*AE11*AN11)/P11*L11,4)","v":3.95E-2},"IL TRM v5",14,"IL TRM v5",9,"Low Flow (GPM)",1.5,"Program Tracking Database","Standard (GPM)",2.2000000000000002,"Federal Baseline",{"$f":"cellformula(I11)","v":"=ROUND(((W11-T11)*AH11*AK11*365.25)*AE11*AN11,4)"},{"$f":"cellformula(N11)","v":"=ROUND((((W11-T11)*AH11*AK11*365.25)*AE11*AN11)/P11*L11,4)"},"2018-04-01","2019-03-31",null,null,7.9500000000000001E-2,"kWh per gallon hot water, bathroom","IL TRM v5",0.50883392226148416,"Faucet Coefficient, Bathroom: Minutes/day * Drain Factor / Faucets per Household","IL TRM v5",2.56,"Persons per household","IL TRM v5",0.95,"Installation Rate","IL TRM v5"]
["Whole House Efficiency","Low Flow Faucet Aerator-Bathroom",245.1,"Single Family","Hot Water","Kits","per unit",8,{"$f":"ROUND(((W12-T12)*AH12*AK12*365.25)*AE12*AN12,4)","v":43.119900000000001},"IL TRM v5",3.0799928571428574,2.1999999999999999E-2,"IL TRM v5",{"$f":"ROUND((((W12-T12)*AH12*AK12*365.25)*AE12*AN12)/P12*L12,4)","v":6.7799999999999999E-2},"IL TRM v5",14,"IL TRM v5",9,"Low Flow (GPM)",1,"Program Tracking Database","Standard (GPM)",2.2000000000000002,"Federal Baseline",{"$f":"cellformula(I12)","v":"=ROUND(((W12-T12)*AH12*AK12*365.25)*AE12*AN12,4)"},{"$f":"cellformula(N12)","v":"=ROUND((((W12-T12)*AH12*AK12*365.25)*AE12*AN12)/P12*L12,4)"},"2019-04-01",null,null,null,7.9500000000000001E-2,"kWh per gallon hot water, bathroom","IL TRM v5",0.50883392226148416,"Faucet Coefficient, Bathroom: Minutes/day * Drain Factor / Faucets per Household","IL TRM v5",2.56,"Persons per household","IL TRM v5",0.95,"Installation Rate","IL TRM v5"]
["Whole House Efficiency","Low Flow Faucet Aerator-Kitchen",246,"Single Family","Hot Water","Kits","per unit",8,{"$f":"ROUND(((W13-T13)*AH13*AK13*365.25)*AE13*AN13,4)","v":203.35239999999999},"IL TRM v5",2.1633234042553191,2.1999999999999999E-2,"IL TRM v5",{"$f":"ROUND((((W13-T13)*AH13*AK13*365.25)*AE13*AN13)/P13*L13,4)","v":4.7600000000000003E-2},"IL TRM v5",94,"IL TRM v5",9,"Low Flow (GPM)",1.5,"Program Tracking Database","Standard (GPM)",2.2000000000000002,"Federal Baseline","=ROUND(((W13-T13)*AH13*AK13*365.25)*AE13*AN13,4)","=ROUND((((W13-T13)*AH13*AK13*365.25)*AE13*AN13)/P13*L13,4)","2018-04-01",null,null,null,9.69E-2,"kWh per gallon hot water, kitchen","IL TRM v5",3.375,"Faucet Coefficient, Kitchen","IL TRM v5",2.56,"Persons per household","IL TRM v5",0.95,"Installation Rate","IL TRM v5"]
["Whole House Efficiency","Pipe Insulated",10.1,"Single Family","Hot Water","Kits","per unit",18,{"$f":"ROUND(((((AE14*PI()*AK14)/W14) - ((AH14*PI()*AK14)/T14))*AN14)/AQ14/3412,4)","v":72.064999999999998},"IL TRM v5, modified to account for larger diameter due to added pipe insulation",8.2209655354782314E-3,null,null,{"$f":"ROUND(I14/8766,4)","v":8.2000000000000007E-3},"IL TRM v5",null,"IL TRM v5",15,"Efficient R-Value due to added insulation",{"$f":"1+5","v":6},"IL TRM v5","R-Value of bare pipe",1,"IL TRM v5","=ROUND(((((AE14*PI()*AK14)/W14) - ((AH14*PI()*AK14)/T14))*AN14)/AQ14/3412,4)","=ROUND(I14/8766,4)","2018-04-01",null,null,null,{"$f":"0.75/12","v":6.25E-2},"Dbase = Pipe Diameter (ft)","IL TRM v5",{"$f":"(0.75+1*2)/12","v":0.22916666666666666},"Dee = Updated Pipe Diameter, due to added insulation (ft)","IL TRM v5",6,"Length of added pipe insulation","Verified through EEP",{"$f":"60*8766","v":525960},"Pipe Insulated Coefficient 1 = ∆T * Hours = 60 * 8766","IL TRM v5",0.98,"Recovery efficiency of electric water heater","IL TRM v5"]
["Whole House Efficiency","Low Flow Showerhead",11.1,"Single Family","Hot Water","Kits","per unit",12,{"$f":"ROUND(((W15-T15)*AH15*AK15*365.25)*AE15*AN15,4)","v":327.9599},"IL TRM v5",{"$f":"I15/P15","v":1.0859599337748345},2.7799999999999998E-2,"IL TRM v5",{"$f":"ROUND((((W15-T15)*AH15*AK15*365.25)*AE15*AN15)/P15*L15,4)","v":3.0200000000000001E-2},"IL TRM v5",302,"IL TRM v5",10,"Low Flow (GPM)",1.5,"EEP from ICF","Standard (GPM)",2.67,"IL TRM v5","=ROUND(((W15-T15)*AH15*AK15*365.25)*AE15*AN15,4)","=ROUND((((W15-T15)*AH15*AK15*365.25)*AE15*AN15)/P15*L15,4)","2018-04-01",null,null,null,0.11700000000000001,"kWh per gallon hot water","IL TRM v5",2.6145251396648042,"Showerhead Coefficient: Minutes per day * Showers per day / Showers per household","IL TRM v5",2.56,"Persons per household","IL TRM v5",0.98,"Installation Rate","IL TRM v5"]
["Whole House Efficiency","Water Heater Tank Wrap",12,"Single Family","Hot Water","Kits","per unit",18,{"$f":"ROUND(131.295784945569,4)","v":131.29580000000001},null,1.4988105022831051E-2,null,null,{"$f":"ROUND(0.0149881033042887,4)","v":1.4999999999999999E-2},null,8760,null,5,"Water Heater Blanket/Tank Wrap",null,null,"No Blanket",null,null,"=ROUND(131.295784945569,4)","=ROUND(0.0149881033042887,4)","2016-04-01"]
["Whole House Efficiency","Smart Power Strip - Wh7-Plug",13.1,"Single Family","Electronics","Kits","per unit",16,{"$f":"ROUND(103,4)","v":103},"IL TRM v5",1.4448029176602609E-2,0.8,"IL TRM v5",{"$f":"ROUND(I17/P17*L17,4)","v":1.1599999999999999E-2},"IL TRM v5",7129,"IL TRM v5",5,"Smart strip",null,null,"Standard outlet strip",null,null,"=ROUND(103,4)","=ROUND(I17/P17*L17,4)","2018-04-01"]
["Whole House Efficiency","Air Sealing",14.1,"Single Family","HVAC - Shell",null,"per sq ft (floor area)",0.12,{"$f":"ROUND((AW18*((W18-T18)/AN18*AE18*AT18*AC18)/AK18)/AZ18+(((W18-T18)/AQ18*AE18*AD18)/AH18)/AZ18,4)","v":0.43369999999999997},"IL TRM v5, PY2016 averages",4.4164969450101829E-4,0.72,"IL TRM v5",{"$f":"ROUND((((AW18*((W18-T18)/AN18*AE18*AT18*AC18)/AK18)/AZ18)/P18)*L18,8)","v":6.1489999999999996E-5},"IL TRM v5, PY2016 averages",982,"EFLHcool, from PY2016 analysis",15,"Efficient CFM",3083.5941558441559,"PY2016 average","Baseline CFM",4342.9967532467535,"PY2016 average","=ROUND((AW18*((W18-T18)/AN18*AE18*AT18*AC18)/AK18)/AZ18+(((W18-T18)/AQ18*AE18*AD18)/AH18)/AZ18,4)","=ROUND((((AW18*((W18-T18)/AN18*AE18*AT18*AC18)/AK18)/AZ18)/P18)*L18,8)","2018-04-01","2019-03-31",1445,5155,25.919999999999998,"Air Sealing Coefficient: 60 * 24 * 0.018","IL TRM v5",6551.04,"Heating Coefficient: COP * 3,412\nCOP = 1.7 for units before 2006\nCOP = 1.92 for units between 2006-2014\nCOP = 2.4 for units after 2014","IL TRM v5",13000,"Cooling Coefficient","IL TRM v5: SEER * 1,000.  \nSEER 10 for units before 2006\nSEER 13 for units after 2006",35.799999999999997,"Ncool: Infiltration conversion factor","IL TRM v5",22.5,"Nheat: Infiltration conversion factor","IL TRM v5",0.75,"DUA: Discretionary Use Adjustment","IL TRM v5",3.6,"LM: Latent Cooling Multiplier","IL TRM v5",3263,"Square footage installed","PY2016 average"]
["Whole House Efficiency","Air Sealing",14.2,"Single Family","HVAC - Shell",null,"per sq ft (floor area)",0.12,{"$f":"ROUND((AW19*((W19-T19)/AN19*AE19*AT19*AC19)/AK19)/AZ19+(((W19-T19)/AQ19*AE19*AD19)/AH19)/AZ19,4)","v":0.43369999999999997},"IL TRM v5, PY2016 averages",{"$f":"I19/P19","v":5.8766937669376686E-4},0.72,"IL TRM v5",{"$f":"ROUND((((AW19*((W19-T19)/AN19*AE19*AT19*AC19)/AK19)/AZ19)/P19)*L19,8)","v":8.1819999999999999E-5},"IL TRM v5, PY2016 averages",738,"EFLHcool, from PY2016 analysis",15,"Efficient CFM",3083.5941558441559,"PY2016 average","Baseline CFM",4342.9967532467535,"PY2016 average",{"$f":"cellformula(I19)","v":"=ROUND((AW19*((W19-T19)/AN19*AE19*AT19*AC19)/AK19)/AZ19+(((W19-T19)/AQ19*AE19*AD19)/AH19)/AZ19,4)"},{"$f":"cellformula(N19)","v":"=ROUND((((AW19*((W19-T19)/AN19*AE19*AT19*AC19)/AK19)/AZ19)/P19)*L19,8)"},"2019-04-01",null,1445,5155,25.919999999999998,"Air Sealing Coefficient: 60 * 24 * 0.018","IL TRM v5",6551.04,"Heating Coefficient: COP * 3,412\nCOP = 1.7 for units before 2006\nCOP = 1.92 for units between 2006-2014\nCOP = 2.4 for units after 2014","IL TRM v5",13000,"Cooling Coefficient","IL TRM v5: SEER * 1,000.  \nSEER 10 for units before 2006\nSEER 13 for units after 2006",35.799999999999997,"Ncool: Infiltration conversion factor","IL TRM v5",22.5,"Nheat: Infiltration conversion factor","IL TRM v5",0.75,"DUA: Discretionary Use Adjustment","IL TRM v5",3.6,"LM: Latent Cooling Multiplier","IL TRM v5",3263,"Square footage installed","PY2016 average"]
["Whole House Efficiency","Increased Ceiling Insulation",15.1,"Single Family","HVAC - Shell",null,"per sq ft (ceiling area)",0.76,{"$f":"ROUND(((((1/W20-1/T20)*(1-AN20)*24*AC20*AK20)/AH20)*AQ20)+((((1/W20-1/T20)*(1-AN20)*24*AD20)/AE20)*AT20),4)","v":0.40279999999999999},"IL TRM v5, PY2016 averages",4.1018329938900203E-4,0.7,"IL TRM v5",{"$f":"ROUND((((((1/W20-1/T20)*(1-AN20)*24*AC20*AK20)/AH20)*AQ20)/P20)*L20,8)","v":3.5540000000000002E-5},"IL TRM v5, PY2016 averages",982,"EFLHcool, from PY2016 analysis",25,"Final R-value",41.031645569620252,"PY2016 average","Previous R-value",17.2828025477707,"PY2016 average","=ROUND(((((1/W20-1/T20)*(1-AN20)*24*AC20*AK20)/AH20)*AQ20)+((((1/W20-1/T20)*(1-AN20)*24*AD20)/AE20)*AT20),4)","=ROUND((((((1/W20-1/T20)*(1-AN20)*24*AC20*AK20)/AH20)*AQ20)/P20)*L20,8)","2018-04-01","2019-03-31",1445,5155,6551.04,"Heating Coefficient: COP * 3,412\nCOP = 1.7 for units before 2006\nCOP = 1.92 for units between 2006-2014\nCOP = 2.4 for units after 2014","IL TRM v5",13000,"Cooling Coefficient","IL TRM v5: SEER * 1,000.  \nSEER 10 for units before 2006\nSEER 13 for units after 2006",0.75,"DUA: Discretionary Use Adjustment","IL TRM v5",7.0000000000000007E-2,"Framing Factor, Ceiling","IL TRM v5",0.8,"ADJcool: adjustment for cooling savings from basement wall insulation","IL TRM v5",0.6,"ADJheat: adjustment for wall and attic insulation","IL TRM v5"]
["Whole House Efficiency","Increased Ceiling Insulation",15.2,"Single Family","HVAC - Shell",null,"per sq ft (ceiling area)",0.76,{"$f":"ROUND(((((1/W21-1/T21)*(1-AN21)*24*AC21*AK21)/AH21)*AQ21)+((((1/W21-1/T21)*(1-AN21)*24*AD21)/AE21)*AT21),4)","v":0.40279999999999999},"IL TRM v5, PY2016 averages",{"$f":"I21/P21","v":5.4579945799457989E-4},0.7,"IL TRM v5",{"$f":"ROUND((((((1/W21-1/T21)*(1-AN21)*24*AC21*AK21)/AH21)*AQ21)/P21)*L21,8)","v":4.7280000000000001E-5},"IL TRM v5, PY2016 averages",738,"EFLHcool, from Draft MO TRM",25,"Final R-value",41.031645569620252,"PY2016 average","Previous R-value",17.2828025477707,"PY2016 average",{"$f":"cellformula(I21)","v":"=ROUND(((((1/W21-1/T21)*(1-AN21)*24*AC21*AK21)/AH21)*AQ21)+((((1/W21-1/T21)*(1-AN21)*24*AD21)/AE21)*AT21),4)"},{"$f":"cellformula(N21)","v":"=ROUND((((((1/W21-1/T21)*(1-AN21)*24*AC21*AK21)/AH21)*AQ21)/P21)*L21,8)"},"2019-04-01",null,1445,5155,6551.04,"Heating Coefficient: COP * 3,412\nCOP = 1.7 for units before 2006\nCOP = 1.92 for units between 2006-2014\nCOP = 2.4 for units after 2014","IL TRM v5",13000,"Cooling Coefficient","IL TRM v5: SEER * 1,000.  \nSEER 10 for units before 2006\nSEER 13 for units after 2006",0.75,"DUA: Discretionary Use Adjustment","IL TRM v5",7.0000000000000007E-2,"Framing Factor, Ceiling","IL TRM v5",0.8,"ADJcool: adjustment for cooling savings from basement wall insulation","IL TRM v5",0.6,"ADJheat: adjustment for wall and attic insulation","IL TRM v5"]
["Whole House Efficiency","Increased Wall Insulation",16.100000000000001,"Single Family","HVAC - Shell",null,"per sq ft (wall area)",1.32,{"$f":"ROUND(((((1/W22-1/T22)*(1-AN22)*24*AC22*AK22)/AH22)*AQ22)+((((1/W22-1/T22)*(1-AN22)*24*AD22)/AE22)*AT22),4)","v":0.84760000000000002},"IL TRM v5, PY2016 averages",8.631364562118126E-4,0.7,"IL TRM v5",{"$f":"ROUND((((((1/W22-1/T22)*(1-AN22)*24*AC22*AK22)/AH22)*AQ22)/P22)*L22,8)","v":7.4779999999999999E-5},"IL TRM v5, PY2016 averages",982,"EFLHcool, from PY2016 analysis",25,"Final R-value",17.234848484848484,"PY2016 average","Previous R-value",6.8769230769230774,"PY2016 average","=ROUND(((((1/W22-1/T22)*(1-AN22)*24*AC22*AK22)/AH22)*AQ22)+((((1/W22-1/T22)*(1-AN22)*24*AD22)/AE22)*AT22),4)","=ROUND((((((1/W22-1/T22)*(1-AN22)*24*AC22*AK22)/AH22)*AQ22)/P22)*L22,8)","2018-04-01","2019-03-31",1445,5155,6551.04,"Heating Coefficient: COP * 3,412\nCOP = 1.7 for units before 2006\nCOP = 1.92 for units between 2006-2014\nCOP = 2.4 for units after 2014","IL TRM v5",13000,"Cooling Coefficient","IL TRM v5: SEER * 1,000.  \nSEER 10 for units before 2006\nSEER 13 for units after 2006",0.75,"DUA: Discretionary Use Adjustment","IL TRM v5",0.25,"Framing Factor, Wall","IL TRM v5",0.8,"ADJcool: adjustment for cooling savings from basement wall insulation","IL TRM v5",0.6,"ADJheat: adjustment for wall and attic insulation","IL TRM v5"]
["Whole House Efficiency","Increased Wall Insulation",16.2,"Single Family","HVAC - Shell",null,"per sq ft (wall area)",1.32,{"$f":"ROUND(((((1/W23-1/T23)*(1-AN23)*24*AC23*AK23)/AH23)*AQ23)+((((1/W23-1/T23)*(1-AN23)*24*AD23)/AE23)*AT23),4)","v":0.84760000000000002},"IL TRM v5, PY2016 averages",{"$f":"I23/P23","v":1.148509485094851E-3},0.7,"IL TRM v5",{"$f":"ROUND((((((1/W23-1/T23)*(1-AN23)*24*AC23*AK23)/AH23)*AQ23)/P23)*L23,8)","v":9.9510000000000001E-5},"IL TRM v5, PY2016 averages",738,"EFLHcool, from Draft MO TRM",25,"Final R-value",17.234848484848484,"PY2016 average","Previous R-value",6.8769230769230774,"PY2016 average",{"$f":"cellformula(I23)","v":"=ROUND(((((1/W23-1/T23)*(1-AN23)*24*AC23*AK23)/AH23)*AQ23)+((((1/W23-1/T23)*(1-AN23)*24*AD23)/AE23)*AT23),4)"},{"$f":"cellformula(N23)","v":"=ROUND((((((1/W23-1/T23)*(1-AN23)*24*AC23*AK23)/AH23)*AQ23)/P23)*L23,8)"},"2019-04-01",null,1445,5155,6551.04,"Heating Coefficient: COP * 3,412\nCOP = 1.7 for units before 2006\nCOP = 1.92 for units between 2006-2014\nCOP = 2.4 for units after 2014","IL TRM v5",13000,"Cooling Coefficient","IL TRM v5: SEER * 1,000.  \nSEER 10 for units before 2006\nSEER 13 for units after 2006",0.75,"DUA: Discretionary Use Adjustment","IL TRM v5",0.25,"Framing Factor, Wall","IL TRM v5",0.8,"ADJcool: adjustment for cooling savings from basement wall insulation","IL TRM v5",0.6,"ADJheat: adjustment for wall and attic insulation","IL TRM v5"]
["Whole House Efficiency","ENERGY STAR Windows",17,"Single Family","HVAC - Shell",null,"per sq ft (window area)",1.5,{"$f":"ROUND((W24-T24)*(AC24*AE24 + AD24*AH24),4)","v":2.0499999999999998},null,null,null,null,{"$f":"ROUND(0.000828,4)","v":8.0000000000000004E-4},null,null,null,25,"Efficient U-factor",0.3,null,"Baseline U-factor",0.9,null,"=ROUND((W24-T24)*(AC24*AE24 + AD24*AH24),4)","=ROUND(0.000828,4)","2016-04-01",null,1325,5249,5.1972416590609447E-4,"Cooling Coefficient",null,{"$f":"AE24","v":5.1972416590609447E-4},"Heating Coefficient"]
["Whole House Efficiency","Heat Pump Water Heater",18.100000000000001,"Single Family","Hot Water",null,"per unit",1000,{"$f":"ROUND(((1/W25-1/T25)*AE25*AH25)+((((AE25*AH25-(1/(AE25*AH25*T25)))*AN25*0.27)/AQ25)*AK25)-(((AE25*AH25-(1/(AE25*AH25*T25)))*AN25*0.27)/AT25),4)","v":1484.4150999999999},"IL TRM v5",{"$f":"I25/P25","v":0.58603043821555467},0.12,"IL TRM v5",{"$f":"ROUND(I25/P25*L25,4)","v":7.0300000000000001E-2},"IL TRM v5",2533,"IL TRM v5",13,"Efficient EF",2,"KCP&L Meta Data Analysis","Baseline EF",0.94499999999999995,"IL TRM v5","=ROUND(((1/W25-1/T25)*AE25*AH25)+((((AE25*AH25-(1/(AE25*AH25*T25)))*AN25*0.27)/AQ25)*AK25)-(((AE25*AH25-(1/(AE25*AH25*T25)))*AN25*0.27)/AT25),4)","=ROUND(I25/P25*L25,4)","2018-04-01",null,null,null,45.143000000000001,"Gallons per day:  17.6 gal/day * 2.56 persons/household","IL TRM v5 ",63.311784144196949,"WHC = Water Heating Coefficient:  \n(365.25 * γWater * (Tout - Tin))/3,412  \nAssume:\nγWater = 8.33lbs / Gallon\nTout = Tank Temperature = 125 °F\nTin = Incoming Water Temperature = 54  °F","IL TRM v5",1.33,"Latent multiplier to account for latent cooling demand","IL TRM v5",0.5,"Location Factor","IL TRM v5",3.08,"COPcool","IL TRM v5",1.39,"COPheat: \nFor Heat Pumps:\nBefore 2006, COP = 2.00\n2006-2014, COP = 2.26\n2015 and later, COP = 2.40\nFor Electric Resistance, COP = 1.00\nFor Unknown, COP = 1.39","IL TRM v5"]
["Whole House Efficiency","Efficient ECM Fan",19.100000000000001,"Single Family","All",null,"per unit",97,{"$f":"ROUND(710,4)","v":710},"-IL TRM v5:\nIf no AC, 644 kWh.\nIf AC exists, 732 kWh.\nIf AC unknown, 710 kWh.",0.72301425661914465,0.68,"IL TRM v5",{"$f":"ROUND(241 /  AE26* L26,4)","v":0.16689999999999999},null,982,"EFLHcool, from PY2016 analysis",10,"ECM Fan",null,null,"Std Fan",null,null,"=ROUND(710,4)",{"$f":"cellformula(N26)","v":"=ROUND(241 /  AE26* L26,4)"},"2018-04-01","2019-03-31",null,null,982,"EFLHcool",null,"n/a","EFLHheat"]
["Whole House Efficiency","Heat Pump Ductless Mini Split",20.100000000000001,"Single Family","All",null,"per unit",3787.9746835443038,{"$f":"ROUND((AT27*AE27*(1/W27-1/T27))/1000+(AW27*AE27*(1/AK27-1/AH27)/1000),4)","v":2329.3856999999998},"IL TRM v5",2.3720831975560079,0.43,"IL TRM v5",{"$f":"ROUND((AE27*(1/AQ27-1/AN27)/1000)*L27,4)","v":0.19989999999999999},null,982,"EFLHcool, from PY2016 analysis",18,"SEER",22.94,"PY2016 Metadata","SEER",9.1199999999999992,"IL TRM v5; assumes existing equimpment is ASHP",{"$f":"cellformula(I27)","v":"=ROUND((AT27*AE27*(1/W27-1/T27))/1000+(AW27*AE27*(1/AK27-1/AH27)/1000),4)"},"=ROUND((AE27*(1/AQ27-1/AN27)/1000)*L27,4)","2018-04-01","2019-03-31",null,null,12000,"Allows for Capacity input in Tons; converts tons to BTUs"," ",11.124242424242427,"HSPFee","Calculated per PY2016 Metadata",5.44,"HSPFbase","Illinois TRM - Assumes Air Source Heat Pump",12.784615384615384,"EERee","Calculated per PY2016 Metadata",8.5500000000000007,"EERbase","Illinois TRM - Assumes Air Source Heat Pump",982,"EFLHcool","The EFLH Cooling and Heating hours are based on a EnergyStar study that was normalized (based on HDD and CDD) to Kansas City. This was for both AC and HP units.",1376,"EFLHheat","The EFLH Cooling and Heating hours are based on a EnergyStar study that was normalized (based on HDD and CDD) to Kansas City. This was for both AC and HP units."," "]
["Whole House Efficiency","Heat Pump Ductless Mini Split",20.2,"Single Family","All",null,"per unit",3787.9746835443038,{"$f":"ROUND((AT28*AE28*(1/W28-1/T28))/1000+(AW28*AE28*(1/AK28-1/AH28)/1000),4)","v":2135.9704000000002},"IL TRM v5",2.8942688346883472,0.43,"IL TRM v5",{"$f":"ROUND((AE28*(1/AQ28-1/AN28)/1000)*L28,4)","v":0.19989999999999999},null,738,"EFLHcool, from 2017 MO TRM",18,"SEER",22.94,"PY2016 Metadata","SEER",9.1199999999999992,"IL TRM v5; assumes existing equimpment is ASHP",{"$f":"cellformula(I28)","v":"=ROUND((AT28*AE28*(1/W28-1/T28))/1000+(AW28*AE28*(1/AK28-1/AH28)/1000),4)"},{"$f":"cellformula(N28)","v":"=ROUND((AE28*(1/AQ28-1/AN28)/1000)*L28,4)"},"2019-04-01",null,null,null,12000,"Allows for Capacity input in Tons; converts tons to BTUs"," ",11.124242424242427,"HSPFee","Calculated per PY2016 Metadata",5.44,"HSPFbase","Illinois TRM - Assumes Air Source Heat Pump",12.784615384615384,"EERee","Calculated per PY2016 Metadata",8.5500000000000007,"EERbase","Illinois TRM - Assumes Air Source Heat Pump",738,"EFLHcool","2017 MO TRM",1376,"EFLHheat","The EFLH Cooling and Heating hours are based on a EnergyStar study that was normalized (based on HDD and CDD) to Kansas City. This was for both AC and HP units."," "]
["Whole House Efficiency","CAC SEER 15",21.1,"Single Family","HVAC",null,"per ton",238,{"$f":"ROUND((AN29*AH29*(1/W29-1/T29))/1000,4)","v":127.09650000000001},"IL TRM v5",0.12942617107942975,0.68,"IL TRM v5",{"$f":"ROUND(((AH29*((1/AK29)-(1/AE29)))/1000)*L29,4)","v":6.8500000000000005E-2},null,982,"EFLHcool, from PY2016 analysis",18,"SEER",15.12,"per PY2016 Metadata","SEER",13,"IL TRM v5","=ROUND((AN29*AH29*(1/W29-1/T29))/1000,4)","=ROUND(((AH29*((1/AK29)-(1/AE29)))/1000)*L29,4)","2018-04-01","2019-03-31",null,null,12.362112,"EERee","IL TRMv5",12000,"Allows for Capacity input in Tons; converts tons to BTUs"," ",11.2,"EERbase","IL TRMv5, Early Replacement",982,"EFLHcool","The EFLH Cooling and Heating hours are based on a EnergyStar study that was normalized (based on HDD and CDD) to Kansas City. This was for both AC and HP units.",1376,"EFLHheat","The EFLH Cooling and Heating hours are based on a EnergyStar study that was normalized (based on HDD and CDD) to Kansas City. This was for both AC and HP units."," "]
["Whole House Efficiency","CAC SEER 15",21.2,"Single Family","HVAC",null,"per ton",238,{"$f":"ROUND((AN30*AH30*(1/W30-1/T30))/1000,4)","v":95.516499999999994},"IL TRM v5",0.12942615176151762,0.68,"IL TRM v5",{"$f":"ROUND(((AH30*((1/AK30)-(1/AE30)))/1000)*L30,4)","v":6.8500000000000005E-2},null,738,"EFLHcool, from 2017 MO TRM",18,"SEER",15.12,"per PY2016 Metadata","SEER",13,"IL TRM v6",{"$f":"cellformula(I30)","v":"=ROUND((AN30*AH30*(1/W30-1/T30))/1000,4)"},{"$f":"cellformula(N30)","v":"=ROUND(((AH30*((1/AK30)-(1/AE30)))/1000)*L30,4)"},"2019-04-01",null,null,null,12.362112,"EERee","IL TRMv5",12000,"Allows for Capacity input in Tons; converts tons to BTUs"," ",11.2,"EERbase","IL TRMv5, Early Replacement",738,"EFLHcool","2017 MO TRM",1376,"EFLHheat","The EFLH Cooling and Heating hours are based on a EnergyStar study that was normalized (based on HDD and CDD) to Kansas City. This was for both AC and HP units."," "]
["Whole House Efficiency","CAC SEER 15 - Early Replacement",22.1,"Single Family","HVAC",null,"per ton",267,{"$f":"ROUND((AN31*AH31*(1/W31-1/T31))/1000,4)","v":937.46209999999996},"IL TRM v5",0.95464572301425654,0.68,"IL TRM v5",{"$f":"ROUND(((AH31*((1/AK31)-(1/AE31)))/1000)*L31,4)","v":0.70050000000000001},null,982,"EFLHcool, from PY2016 analysis",6,"SEER",15.15,"per PY2016 Metadata","SEER",6.87,"per PY2015 report","=ROUND((AN31*AH31*(1/W31-1/T31))/1000,4)","=ROUND(((AH31*((1/AK31)-(1/AE31)))/1000)*L31,4)","2018-04-01","2019-03-31",null,null,12.377550000000003,"EERee","PY2016 evaluation metadata",12000,"Allows for Capacity input in Tons; converts tons to BTUs"," ",6.0010683139534899,"EERbase","Early Replacement: 2015 Tracking Data Analysis",982,"EFLHcool","The EFLH Cooling and Heating hours are based on a EnergyStar study that was normalized (based on HDD and CDD) to Kansas City. This was for both AC and HP units.",1376,"EFLHheat","The EFLH Cooling and Heating hours are based on a EnergyStar study that was normalized (based on HDD and CDD) to Kansas City. This was for both AC and HP units."," "]
["Whole House Efficiency","CAC SEER 15 - Early Replacement",22.2,"Single Family","HVAC",null,"per ton",267,{"$f":"ROUND((AN32*AH32*(1/W32-1/T32))/1000,4)","v":301.0455},"IL TRM v5",0.40792073170731707,0.68,"IL TRM v5",{"$f":"ROUND(((AH32*((1/AK32)-(1/AE32)))/1000)*L32,4)","v":0.22770000000000001},null,738,"EFLHcool, from 2017 MO TRM",6,"SEER",15.15,"per PY2016 Metadata","SEER",10,"SEERexist per IL TRM V6",{"$f":"cellformula(I32)","v":"=ROUND((AN32*AH32*(1/W32-1/T32))/1000,4)"},{"$f":"cellformula(N32)","v":"=ROUND(((AH32*((1/AK32)-(1/AE32)))/1000)*L32,4)"},"2019-04-01",null,null,null,12.377550000000003,"EERee","PY2016 evaluation metadata",12000,"Allows for Capacity input in Tons; converts tons to BTUs"," ",9.1999999999999993,"EERexist","IL TRM V6",738,"EFLHcool","2017 MO TRM",1376,"EFLHheat","The EFLH Cooling and Heating hours are based on a EnergyStar study that was normalized (based on HDD and CDD) to Kansas City. This was for both AC and HP units."," "]
["Whole House Efficiency","CAC SEER 15 - Early Replacement (future)",23.1,"Single Family","HVAC",null,"per ton",267,{"$f":"ROUND((AT33*AH33*(1/AN33-1/T33))/1000,4)","v":128.63980000000001},"IL TRM v5",0.13099775967413443,0.68,"IL TRM v5",{"$f":"ROUND(((AH33*((1/AQ33)-(1/AE33)))/1000)*L33,4)","v":6.93E-2},"IL TRM V5",982,"EFLHcool, from PY2016 analysis",12,"SEER",15.15,"per PY2016 Metadata","SEER",10,"SEERexist per IL TRM v5","=ROUND((AT33*AH33*(1/AN33-1/T33))/1000,4)","=ROUND(((AH33*((1/AQ33)-(1/AE33)))/1000)*L33,4)","2018-04-01","2019-03-31",null,null,12.377550000000003,"EERee","PY2016 evaluation metadata",12000,"Allows for Capacity input in Tons; converts tons to BTUs"," ",6.0010683139534864,"EERexist","Early Replacement: 2015 Tracking Data Analysis",13,"SEERbase","IL TRM V5",11.2,"EERbase","IL TRM V5",982,"EFLHcool","The EFLH Cooling and Heating hours are based on a EnergyStar study that was normalized (based on HDD and CDD) to Kansas City. This was for both AC and HP units.",1376,"EFLHheat","The EFLH Cooling and Heating hours are based on a EnergyStar study that was normalized (based on HDD and CDD) to Kansas City. This was for both AC and HP units."," "]
["Whole House Efficiency","CAC SEER 15 - Early Replacement (future)",23.2,"Single Family","HVAC",null,"per ton",267,{"$f":"ROUND((AT34*AH34*(1/AN34-1/T34))/1000,4)","v":96.676299999999998},"IL TRM v5",0.13099769647696477,0.68,"IL TRM v5",{"$f":"ROUND(((AH34*((1/AQ34)-(1/AE34)))/1000)*L34,4)","v":6.93E-2},"IL TRM V5",738,"EFLHcool, from 2017 MO TRM",12,"SEER",15.15,"per PY2016 Metadata",{"$f":"AO34","v":"SEERbase"},{"$f":"AN34","v":13},{"$f":"AP34","v":"IL TRM V6"},{"$f":"cellformula(I34)","v":"=ROUND((AT34*AH34*(1/AN34-1/T34))/1000,4)"},{"$f":"cellformula(N34)","v":"=ROUND(((AH34*((1/AQ34)-(1/AE34)))/1000)*L34,4)"},"2019-04-01",null,null,null,12.377550000000003,"EERee","PY2016 evaluation metadata",12000,"Allows for Capacity input in Tons; converts tons to BTUs"," ",null,null,null,13,"SEERbase","IL TRM V6",11.2,"EERbase","IL TRM V6",738,"EFLHcool","2017 MO TRM",1376,"EFLHheat","The EFLH Cooling and Heating hours are based on a EnergyStar study that was normalized (based on HDD and CDD) to Kansas City. This was for both AC and HP units."," "]
["Whole House Efficiency","CAC SEER 16",24.1,"Single Family","HVAC",null,"per ton",357,{"$f":"ROUND((AN35*AH35*(1/W35-1/T35))/1000,4)","v":192.27969999999999},"IL TRM v5",0.19580417515274948,0.68,"IL TRM v5",{"$f":"ROUND(((AH35*((1/AK35)-(1/AE35)))/1000)*L35,4)","v":0.1026},null,982,"EFLHcool, from PY2016 analysis",18,"SEER",16.5,"per PY2016 Metadata","SEER",13,"IL TRM v5","=ROUND((AN35*AH35*(1/W35-1/T35))/1000,4)","=ROUND(((AH35*((1/AK35)-(1/AE35)))/1000)*L35,4)","2018-04-01","2019-03-31",null,null,13.035,"EERee","IL TRMv5",12000,"Allows for Capacity input in Tons; converts tons to BTUs"," ",11.2,"EERbase","IL TRMv5, Early Replacement",982,"EFLHcool","The EFLH Cooling and Heating hours are based on a EnergyStar study that was normalized (based on HDD and CDD) to Kansas City. This was for both AC and HP units.",1376,"EFLHheat","The EFLH Cooling and Heating hours are based on a EnergyStar study that was normalized (based on HDD and CDD) to Kansas City. This was for both AC and HP units."," "]
["Whole House Efficiency","CAC SEER 16",24.2,"Single Family","HVAC",null,"per ton",357,{"$f":"ROUND((AN36*AH36*(1/W36-1/T36))/1000,4)","v":144.5035},"IL TRM v5",0.19580420054200542,0.68,"IL TRM v5",{"$f":"ROUND(((AH36*((1/AK36)-(1/AE36)))/1000)*L36,4)","v":0.1026},null,738,"EFLHcool, from 2017 MO TRM",18,"SEER",16.5,"per PY2016 Metadata","SEER",13,"IL TRM v6",{"$f":"cellformula(I36)","v":"=ROUND((AN36*AH36*(1/W36-1/T36))/1000,4)"},{"$f":"cellformula(N36)","v":"=ROUND(((AH36*((1/AK36)-(1/AE36)))/1000)*L36,4)"},"2019-04-01",null,null,null,13.035,"EERee","IL TRMv5",12000,"Allows for Capacity input in Tons; converts tons to BTUs"," ",11.2,"EERbase","IL TRMv5, Early Replacement",738,"EFLHcool","2017 MO TRM",1376,"EFLHheat","The EFLH Cooling and Heating hours are based on a EnergyStar study that was normalized (based on HDD and CDD) to Kansas City. This was for both AC and HP units."," "]
["Whole House Efficiency","CAC SEER 16 - Early Replacement",25.1,"Single Family","HVAC",null,"per ton",418,{"$f":"ROUND((AN37*AH37*(1/W37-1/T37))/1000,4)","v":1002.3982},"IL TRM v5",1.0207720977596741,0.68,"IL TRM v5",{"$f":"ROUND(((AH37*((1/AK37)-(1/AE37)))/1000)*L37,4)","v":0.73440000000000005},null,982,"EFLHcool, from PY2016 analysis",6,"SEER",16.53,"per PY2016 Metadata","SEER",6.87,"per PY2015 report","=ROUND((AN37*AH37*(1/W37-1/T37))/1000,4)","=ROUND(((AH37*((1/AK37)-(1/AE37)))/1000)*L37,4)","2018-04-01","2019-03-31",null,null,13.048782000000003,"EERee","PY2016 evaluation metadata",12000,"Allows for Capacity input in Tons; converts tons to BTUs"," ",6.0010683139534864,"EERbase","Early Replacement: 2015 Tracking Data Analysis",982,"EFLHcool","The EFLH Cooling and Heating hours are based on a EnergyStar study that was normalized (based on HDD and CDD) to Kansas City. This was for both AC and HP units.",1376,"EFLHheat","The EFLH Cooling and Heating hours are based on a EnergyStar study that was normalized (based on HDD and CDD) to Kansas City. This was for both AC and HP units."," "]
["Whole House Efficiency","CAC SEER 16 - Early Replacement",25.2,"Single Family","HVAC",null,"per ton",418,{"$f":"ROUND((AN38*AH38*(1/W38-1/T38))/1000,4)","v":349.84679999999997},"IL TRM v5",0.47404715447154466,0.68,"IL TRM v5",{"$f":"ROUND(((AH38*((1/AK38)-(1/AE38)))/1000)*L38,4)","v":0.2616},null,738,"EFLHcool, from 2017 MO TRM",6,"SEER",16.53,"per PY2016 Metadata","SEER",10,"SEERexist per IL TRM V6",{"$f":"cellformula(I38)","v":"=ROUND((AN38*AH38*(1/W38-1/T38))/1000,4)"},{"$f":"cellformula(N38)","v":"=ROUND(((AH38*((1/AK38)-(1/AE38)))/1000)*L38,4)"},"2019-04-01",null,null,null,13.048782000000003,"EERee","PY2016 evaluation metadata",12000,"Allows for Capacity input in Tons; converts tons to BTUs"," ",9.1999999999999993,"EERexist","IL TRM V6",738,"EFLHcool","2017 MO TRM",1376,"EFLHheat","The EFLH Cooling and Heating hours are based on a EnergyStar study that was normalized (based on HDD and CDD) to Kansas City. This was for both AC and HP units."," "]
["Whole House Efficiency","CAC SEER 16 - Early Replacement (future)",26.1,"Single Family","HVAC",null,"per ton",418,{"$f":"ROUND((AT39*AH39*(1/AN39-1/T39))/1000,4)","v":193.57589999999999},"IL TRM v5",0.19712413441955193,0.68,"IL TRM v5",{"$f":"ROUND(((AH39*((1/AQ39)-(1/AE39)))/1000)*L39,4)","v":0.1032},"IL TRM V5",982,"EFLHcool, from PY2016 analysis\n(Normalized EnergyStar KC Cooling Hours to IL TRM CDD)",12,"SEER",16.53,"per PY2016 Metadata","SEER",10,"SEERexist per IL TRM v5","=ROUND((AT39*AH39*(1/AN39-1/T39))/1000,4)","=ROUND(((AH39*((1/AQ39)-(1/AE39)))/1000)*L39,4)","2018-04-01","2019-03-31",null,null,13.048782000000003,"EERee","PY2016 evaluation metadata",12000,"Allows for Capacity input in Tons; converts tons to BTUs",null,6.0010683139534864,"EERexist","Early Replacement: 2015 Tracking Data Analysis",13,"SEERbase","IL TRM V5",11.2,"EERbase","IL TRM V5",982,"EFLHcool","The EFLH Cooling and Heating hours are based on a EnergyStar study that was normalized (based on HDD and CDD) to Kansas City. This was for both AC and HP units.",1376,"EFLHheat","The EFLH Cooling and Heating hours are based on a EnergyStar study that was normalized (based on HDD and CDD) to Kansas City. This was for both AC and HP units."," "]
["Whole House Efficiency","CAC SEER 16 - Early Replacement (future)",26.2,"Single Family","HVAC",null,"per ton",418,{"$f":"ROUND((AT40*AH40*(1/AN40-1/T40))/1000,4)","v":145.4776},"IL TRM v5",0.19712411924119241,0.68,"IL TRM v5",{"$f":"ROUND(((AH40*((1/AQ40)-(1/AE40)))/1000)*L40,4)","v":0.1032},"IL TRM V5",738,"EFLHcool, from 2017 MO TRM",12,"SEER",16.53,"per PY2016 Metadata",{"$f":"AO40","v":"SEERbase"},{"$f":"AN40","v":13},{"$f":"AP40","v":"IL TRM V6"},{"$f":"cellformula(I40)","v":"=ROUND((AT40*AH40*(1/AN40-1/T40))/1000,4)"},{"$f":"cellformula(N40)","v":"=ROUND(((AH40*((1/AQ40)-(1/AE40)))/1000)*L40,4)"},"2019-04-01",null,null,null,13.048782000000003,"EERee","PY2016 evaluation metadata",12000,"Allows for Capacity input in Tons; converts tons to BTUs",null,null,null,null,13,"SEERbase","IL TRM V6",11.2,"EERbase","IL TRM V6",738,"EFLHcool","2017 MO TRM",1376,"EFLHheat","The EFLH Cooling and Heating hours are based on a EnergyStar study that was normalized (based on HDD and CDD) to Kansas City. This was for both AC and HP units."," "]
["Whole House Efficiency","CAC SEER 17",27.1,"Single Family","HVAC",null,"per ton",368.51,{"$f":"ROUND((AN41*AH41*(1/W41-1/T41))/1000,4)","v":213.2851},"IL TRM v5",0.21719460285132383,0.68,"IL TRM v5",{"$f":"ROUND(((AH41*((1/AK41)-(1/AE41)))/1000)*L41,4)","v":0.1132},null,982,"EFLHcool, from PY2016 analysis",18,"SEER",17,"No PY2016 participants","SEER",13,"IL TRM v5","=ROUND((AN41*AH41*(1/W41-1/T41))/1000,4)","=ROUND(((AH41*((1/AK41)-(1/AE41)))/1000)*L41,4)","2018-04-01","2019-03-31",null,null,13.260000000000002,"EERee","IL TRMv5",12000,"Allows for Capacity input in Tons; converts tons to BTUs"," ",11.2,"EERbase","IL TRMv5, Early Replacement",982,"EFLHcool","The EFLH Cooling and Heating hours are based on a EnergyStar study that was normalized (based on HDD and CDD) to Kansas City. This was for both AC and HP units.",1376,"EFLHheat","The EFLH Cooling and Heating hours are based on a EnergyStar study that was normalized (based on HDD and CDD) to Kansas City. This was for both AC and HP units."," "]
["Whole House Efficiency","CAC SEER 17",27.2,"Single Family","HVAC",null,"per ton",368.51,{"$f":"ROUND((AN42*AH42*(1/W42-1/T42))/1000,4)","v":160.28960000000001},"IL TRM v5",0.21719457994579947,0.68,"IL TRM v5",{"$f":"ROUND(((AH42*((1/AK42)-(1/AE42)))/1000)*L42,4)","v":0.1132},null,738,"EFLHcool, from 2017 MO TRM",18,"SEER",17,"No PY2016 participants","SEER",13,"IL TRM v6",{"$f":"cellformula(I42)","v":"=ROUND((AN42*AH42*(1/W42-1/T42))/1000,4)"},{"$f":"cellformula(N42)","v":"=ROUND(((AH42*((1/AK42)-(1/AE42)))/1000)*L42,4)"},"2019-04-01",null,null,null,13.260000000000002,"EERee","IL TRMv5",12000,"Allows for Capacity input in Tons; converts tons to BTUs"," ",11.2,"EERbase","IL TRMv5, Early Replacement",738,"EFLHcool","2017 MO TRM",1376,"EFLHheat","The EFLH Cooling and Heating hours are based on a EnergyStar study that was normalized (based on HDD and CDD) to Kansas City. This was for both AC and HP units."," "]
["Whole House Efficiency","CAC SEER 17 - Early Replacement",28.1,"Single Family","HVAC",null,"per ton",791.34,{"$f":"ROUND((AN43*AH43*(1/W43-1/T43))/1000,4)","v":1022.1074},"IL TRM v5",1.040842566191446,0.68,"IL TRM v5",{"$f":"ROUND(((AH43*((1/AK43)-(1/AE43)))/1000)*L43,4)","v":0.74439999999999995},null,982,"EFLHcool, from PY2016 analysis",6,"SEER",17,"No PY2016 participants","SEER",6.87,"per PY2015 report","=ROUND((AN43*AH43*(1/W43-1/T43))/1000,4)","=ROUND(((AH43*((1/AK43)-(1/AE43)))/1000)*L43,4)","2018-04-01","2019-03-31",null,null,13.260000000000002,"EERee","IL TRMv5",12000,"Allows for Capacity input in Tons; converts tons to BTUs"," ",6.0010683139534864,"EERbase","Early Replacement: 2015 Tracking Data Analysis",982,"EFLHcool","The EFLH Cooling and Heating hours are based on a EnergyStar study that was normalized (based on HDD and CDD) to Kansas City. This was for both AC and HP units.",1376,"EFLHheat","The EFLH Cooling and Heating hours are based on a EnergyStar study that was normalized (based on HDD and CDD) to Kansas City. This was for both AC and HP units."," "]
["Whole House Efficiency","CAC SEER 17 - Early Replacement",28.2,"Single Family","HVAC",null,"per ton",791.34,{"$f":"ROUND((AN44*AH44*(1/W44-1/T44))/1000,4)","v":364.65879999999999},"IL TRM v5",0.49411761517615171,0.68,"IL TRM v5",{"$f":"ROUND(((AH44*((1/AK44)-(1/AE44)))/1000)*L44,4)","v":0.27160000000000001},null,738,"EFLHcool, from 2017 MO TRM",6,"SEER",17,"No PY2016 participants","SEER",10,"SEERexist per IL TRM V6",{"$f":"cellformula(I44)","v":"=ROUND((AN44*AH44*(1/W44-1/T44))/1000,4)"},{"$f":"cellformula(N44)","v":"=ROUND(((AH44*((1/AK44)-(1/AE44)))/1000)*L44,4)"},"2019-04-01",null,null,null,13.260000000000002,"EERee","IL TRMv5",12000,"Allows for Capacity input in Tons; converts tons to BTUs"," ",9.1999999999999993,"EERexist","IL TRM V6",738,"EFLHcool","2017 MO TRM",1376,"EFLHheat","The EFLH Cooling and Heating hours are based on a EnergyStar study that was normalized (based on HDD and CDD) to Kansas City. This was for both AC and HP units."," "]
["Whole House Efficiency","CAC SEER 17 - Early Replacement (future)",29.1,"Single Family","HVAC",null,"per ton",422.84,{"$f":"ROUND((AT45*AH45*(1/AN45-1/T45))/1000,4)","v":213.2851},"IL TRM v5",0.21719460285132383,0.68,"IL TRM v5",{"$f":"ROUND(((AH45*((1/AQ45)-(1/AE45)))/1000)*L45,4)","v":0.1132},"IL TRM V5",982,"EFLHcool, from PY2016 analysis\n(Normalized EnergyStar KC Cooling Hours to IL TRM CDD)",12,"SEER",17,"No PY2016 participants","SEER",10,"SEERexist per IL TRM v5","=ROUND((AT45*AH45*(1/AN45-1/T45))/1000,4)","=ROUND(((AH45*((1/AQ45)-(1/AE45)))/1000)*L45,4)","2018-04-01","2019-03-31",null,null,13.260000000000002,"EERee","IL TRMv5",12000,"Allows for Capacity input in Tons; converts tons to BTUs"," ",6.0010683139534864,"EERexist","Early Replacement: 2015 Tracking Data Analysis",13,"SEERbase","IL TRM V5",11.2,"EERbase","IL TRM V5",982,"EFLHcool","The EFLH Cooling and Heating hours are based on a EnergyStar study that was normalized (based on HDD and CDD) to Kansas City. This was for both AC and HP units.",1376,"EFLHheat","The EFLH Cooling and Heating hours are based on a EnergyStar study that was normalized (based on HDD and CDD) to Kansas City. This was for both AC and HP units."," "]
["Whole House Efficiency","CAC SEER 17 - Early Replacement (future)",29.2,"Single Family","HVAC",null,"per ton",422.84,{"$f":"ROUND((AT46*AH46*(1/AN46-1/T46))/1000,4)","v":160.28960000000001},"IL TRM v5",0.21719457994579947,0.68,"IL TRM v5",{"$f":"ROUND(((AH46*((1/AQ46)-(1/AE46)))/1000)*L46,4)","v":0.1132},"IL TRM V5",738,"EFLHcool, from 2017 MO TRM",12,"SEER",17,"No PY2016 participants",{"$f":"AO46","v":"SEERbase"},{"$f":"AN46","v":13},{"$f":"AP46","v":"IL TRM V6"},{"$f":"cellformula(I46)","v":"=ROUND((AT46*AH46*(1/AN46-1/T46))/1000,4)"},{"$f":"cellformula(N46)","v":"=ROUND(((AH46*((1/AQ46)-(1/AE46)))/1000)*L46,4)"},"2019-04-01",null,null,null,13.260000000000002,"EERee","IL TRMv5",12000,"Allows for Capacity input in Tons; converts tons to BTUs"," ",null,null,null,13,"SEERbase","IL TRM V6",11.2,"EERbase","IL TRM V6",738,"EFLHcool","2017 MO TRM",1376,"EFLHheat","The EFLH Cooling and Heating hours are based on a EnergyStar study that was normalized (based on HDD and CDD) to Kansas City. This was for both AC and HP units."," "]
["Whole House Efficiency","ASHP SEER 15",30.1,"Single Family","HVAC",null,"per ton",137,{"$f":"ROUND((AT47*AE47*(1/W47-1/T47))/1000+(AW47*AE47*(1/AK47-1/AH47)/1000),4)","v":146.04470000000001},"IL TRM v5",0.14872169042769859,0.72,"IL TRM v5",{"$f":"ROUND((AE47*(1/AQ47-1/AN47)/1000)*L47,4)","v":4.1000000000000002E-2},null,982,"EFLHcool, from PY2016 analysis",18,"SEER",15,"per PY2016 Metadata","SEER",14,"IL TRM v5","=ROUND((AT47*AE47*(1/W47-1/T47))/1000+(AW47*AE47*(1/AK47-1/AH47)/1000),4)","=ROUND((AE47*(1/AQ47-1/AN47)/1000)*L47,4)","2018-04-01","2019-03-31",null,null,12000,"Allows for Capacity input in Tons; converts tons to BTUs"," ",8.5833333333333339,"HSPFee","Calculated per PY2016 Metadata",8.1999999999999993,"HSPFbase","Illinois TRM",12.5,"EERee","Calculated per PY2016 Metadata",11.8,"EERbase","Illinois TRM",982,"EFLHcool","The EFLH Cooling and Heating hours are based on a EnergyStar study that was normalized (based on HDD and CDD) to Kansas City. This was for both AC and HP units.",1376,"EFLHheat","The EFLH Cooling and Heating hours are based on a EnergyStar study that was normalized (based on HDD and CDD) to Kansas City. This was for both AC and HP units."," "]
["Whole House Efficiency","ASHP SEER 15",30.2,"Single Family","HVAC",null,"per ton",137,{"$f":"ROUND((AT48*AE48*(1/W48-1/T48))/1000+(AW48*AE48*(1/AK48-1/AH48)/1000),4)","v":132.1018},"IL TRM v5",0.17899972899728997,0.72,"IL TRM v5",{"$f":"ROUND((AE48*(1/AQ48-1/AN48)/1000)*L48,4)","v":4.1000000000000002E-2},null,738,"EFLHcool, from 2017 MO TRM",18,"SEER",15,"per PY2016 Metadata","SEER",14,"IL TRM v5",{"$f":"cellformula(I48)","v":"=ROUND((AT48*AE48*(1/W48-1/T48))/1000+(AW48*AE48*(1/AK48-1/AH48)/1000),4)"},{"$f":"cellformula(N48)","v":"=ROUND((AE48*(1/AQ48-1/AN48)/1000)*L48,4)"},"2019-04-01",null,null,null,12000,"Allows for Capacity input in Tons; converts tons to BTUs"," ",8.5833333333333339,"HSPFee","Calculated per PY2016 Metadata",8.1999999999999993,"HSPFbase","Illinois TRM",12.5,"EERee","Calculated per PY2016 Metadata",11.8,"EERbase","Illinois TRM",738,"EFLHcool","2017 MO TRM",1376,"EFLHheat","The EFLH Cooling and Heating hours are based on a EnergyStar study that was normalized (based on HDD and CDD) to Kansas City. This was for both AC and HP units."," "]
["Whole House Efficiency","ASHP SEER 15 - Early Replacement",31.1,"Single Family","HVAC",null,"per ton",317,{"$f":"ROUND((AT49*AE49*(1/W49-1/T49))/1000+(AW49*AE49*(1/AK49-1/AH49)/1000),4)","v":2078.4958999999999},"IL TRM v5",2.1165946028513236,0.72,"IL TRM v5",{"$f":"ROUND((AE49*(1/AQ49-1/AN49)/1000)*L49,4)","v":0.59789999999999999},null,982,"EFLHcool, from PY2016 analysis",6,"SEER",15.17,"per PY2016 Metadata","SEER",6.87,"per PY2015 report","=ROUND((AT49*AE49*(1/W49-1/T49))/1000+(AW49*AE49*(1/AK49-1/AH49)/1000),4)","=ROUND((AE49*(1/AQ49-1/AN49)/1000)*L49,4)","2018-04-01","2019-03-31",null,null,12000,"Allows for Capacity input in Tons; converts tons to BTUs"," ",8.7121428571428563,"HSPFee","Calculated per PY2016 Metadata",5.44,"HSPFbase","Illinois TRM",12.518181818181818,"EERee","Calculated per PY2016 Metadata",6.7076399999999996,"EERbase","2015 Tracking Data Analysis for GMO",982,"EFLHcool","The EFLH Cooling and Heating hours are based on a EnergyStar study that was normalized (based on HDD and CDD) to Kansas City. This was for both AC and HP units.",1376,"EFLHheat","The EFLH Cooling and Heating hours are based on a EnergyStar study that was normalized (based on HDD and CDD) to Kansas City. This was for both AC and HP units."," "]
["Whole House Efficiency","ASHP SEER 15 - Early Replacement",31.2,"Single Family","HVAC",null,"per ton",317,{"$f":"ROUND((AT50*AE50*(1/W50-1/T50))/1000+(AW50*AE50*(1/AK50-1/AH50)/1000),4)","v":1527.2772},"IL TRM v5",2.069481300813008,0.72,"IL TRM v5",{"$f":"ROUND((AE50*(1/AQ50-1/AN50)/1000)*L50,4)","v":0.36270000000000002},null,738,"EFLHcool, from 2017 MO TRM",6,"SEER",15.17,"per PY2016 Metadata","SEER",9.1199999999999992,"SEERexist per IL TRM V6 assumes ASHP replacement",{"$f":"cellformula(I50)","v":"=ROUND((AT50*AE50*(1/W50-1/T50))/1000+(AW50*AE50*(1/AK50-1/AH50)/1000),4)"},{"$f":"cellformula(N50)","v":"=ROUND((AE50*(1/AQ50-1/AN50)/1000)*L50,4)"},"2019-04-01",null,null,null,12000,"Allows for Capacity input in Tons; converts tons to BTUs"," ",8.7121428571428563,"HSPFee","Calculated per PY2016 Metadata",5.44,"HSPFbase","Illinois TRM",{"$f":"(-0.02*T50^2)+(1.12*T50)","v":12.387822},"EERee","Based on SEER value of efficient equipment",8.15,"EERexist","IL TRM V6",738,"EFLHcool","2017 MO TRM",1376,"EFLHheat","The EFLH Cooling and Heating hours are based on a EnergyStar study that was normalized (based on HDD and CDD) to Kansas City. This was for both AC and HP units."," "]
["Whole House Efficiency","ASHP SEER 15 - Early Replacement (future)",32.1,"Single Family","HVAC",null,"per ton",317,{"$f":"ROUND((BC51*AE51*(1/AT51-1/T51))/1000+(BF51*AE51*(1/AZ51-1/AH51)/1000),4)","v":183.29079999999999},"IL TRM v5",0.18665050916496945,0.72,"IL TRM v5",{"$f":"ROUND((AE51*(1/AW51-1/AN51)/1000)*L51,4)","v":0.32029999999999997},"IL TRM V5",982,"EFLHcool, from PY2016 analysis\n(Normalized EnergyStar KC Cooling Hours to IL TRM CDD)",12,"SEER",15.17,"per PY2016 Metadata","SEER",9.1199999999999992,"SEERexist per IL TRM v5","=ROUND((BC51*AE51*(1/AT51-1/T51))/1000+(BF51*AE51*(1/AZ51-1/AH51)/1000),4)","=ROUND((AE51*(1/AW51-1/AN51)/1000)*L51,4)","2018-04-01","2019-03-31",null,null,12000,"Allows for Capacity input in Tons; converts tons to BTUs",null,8.7121428571428563,"HSPFee","Calculated per PY2016 Metadata",5.44,"HSPFexist","Illinois TRM",12.518181818181818,"EERee","Calculated per PY2016 Metadata",6.7076399999999996,"EERexist","2015 Tracking Data Analysis for GMO",14,"SEERbase","IL TRM V5",8.5500000000000007,"EERbase","IL TRM V5",8.1999999999999993,"HSPFbase","Illinois TRM",982,"EFLHcool","The EFLH Cooling and Heating hours are based on a EnergyStar study that was normalized (based on HDD and CDD) to Kansas City. This was for both AC and HP units.",1376,"EFLHheat","The EFLH Cooling and Heating hours are based on a EnergyStar study that was normalized (based on HDD and CDD) to Kansas City. This was for both AC and HP units."," "]
["Whole House Efficiency","ASHP SEER 15 - Early Replacement (future)",32.200000000000003,"Single Family","HVAC",null,"per ton",317,{"$f":"ROUND((BC52*AE52*(1/AT52-1/T52))/1000+(BF52*AE52*(1/AZ52-1/AH52)/1000),4)","v":167.16050000000001},"IL TRM v5",0.2265047425474255,0.72,"IL TRM v5",{"$f":"ROUND((AE52*(1/AW52-1/AN52)/1000)*L52,4)","v":3.7199999999999997E-2},"IL TRM V5",738,"EFLHcool, from 2017 MO TRM",12,"SEER",15.17,"per PY2016 Metadata",{"$f":"AU52","v":"SEERbase"},{"$f":"AT52","v":14},{"$f":"AV52","v":"IL TRM V6"},{"$f":"cellformula(I52)","v":"=ROUND((BC52*AE52*(1/AT52-1/T52))/1000+(BF52*AE52*(1/AZ52-1/AH52)/1000),4)"},{"$f":"cellformula(N52)","v":"=ROUND((AE52*(1/AW52-1/AN52)/1000)*L52,4)"},"2019-04-01",null,null,null,12000,"Allows for Capacity input in Tons; converts tons to BTUs",null,8.7121428571428563,"HSPFee","Calculated per PY2016 Metadata",5.44,"HSPFexist","Illinois TRM",{"$f":"(-0.02*T52^2)+(1.12*T52)","v":12.387822},"EERee","Based on SEER value of efficient equipment",null,null,null,14,"SEERbase","IL TRM V6",{"$f":"(-0.02*AT52^2)+(1.12*AT52)","v":11.760000000000002},"EERbase","Based on SEER base",8.1999999999999993,"HSPFbase","Illinois TRM",738,"EFLHcool","2017 MO TRM",1376,"EFLHheat","The EFLH Cooling and Heating hours are based on a EnergyStar study that was normalized (based on HDD and CDD) to Kansas City. This was for both AC and HP units."," "]
["Whole House Efficiency","ASHP SEER 15 - Replace Electric Resistance Heat",33.1,"Single Family","HVAC",null,"per ton",137,{"$f":"ROUND((AT53*AE53*(1/W53-1/T53))/1000+(AW53*AE53*(1/AK53-1/AH53)/1000),4)","v":217.7936},"IL TRM v5",0.22178574338085538,0.72,"IL TRM v5",{"$f":"ROUND((AE53*(1/AQ53-1/AN53)/1000)*L53,4)","v":5.4600000000000003E-2},null,982,"EFLHcool, from PY2016 analysis",18,"SEER",15.17,"per PY2016 Metadata","SEERbase",14,"IL TRM v5","=ROUND((AT53*AE53*(1/W53-1/T53))/1000+(AW53*AE53*(1/AK53-1/AH53)/1000),4)","=ROUND((AE53*(1/AQ53-1/AN53)/1000)*L53,4)","2018-04-01","2019-03-31",null,null,12000,"Allows for Capacity input in Tons; converts tons to BTUs"," ",8.8736842105263154,"HSPFee","Calculated per PY2016 Metadata",8.1999999999999993,"HSPFbase","Illinois TRM",12.75,"EERee","Calculated per PY2016 Metadata",11.8,"EERbase","Illinois TRM",982,"EFLHcool","The EFLH Cooling and Heating hours are based on a EnergyStar study that was normalized (based on HDD and CDD) to Kansas City. This was for both AC and HP units.",1376,"EFLHheat","The EFLH Cooling and Heating hours are based on a EnergyStar study that was normalized (based on HDD and CDD) to Kansas City. This was for both AC and HP units."," "]
["Whole House Efficiency","ASHP SEER 15 - Replace Electric Resistance Heat",33.200000000000003,"Single Family","HVAC",null,"per ton",137,{"$f":"ROUND((AT54*AE54*(1/W54-1/T54))/1000+(AW54*AE54*(1/AK54-1/AH54)/1000),4)","v":201.66329999999999},"IL TRM v5",0.27325650406504065,0.72,"IL TRM v5",{"$f":"ROUND((AE54*(1/AQ54-1/AN54)/1000)*L54,4)","v":5.4600000000000003E-2},null,738,"EFLHcool, from 2017 MO TRM",18,"SEER",15.17,"per PY2016 Metadata","SEERbase",14,"IL TRM v5",{"$f":"cellformula(I54)","v":"=ROUND((AT54*AE54*(1/W54-1/T54))/1000+(AW54*AE54*(1/AK54-1/AH54)/1000),4)"},{"$f":"cellformula(N54)","v":"=ROUND((AE54*(1/AQ54-1/AN54)/1000)*L54,4)"},"2019-04-01",null,null,null,12000,"Allows for Capacity input in Tons; converts tons to BTUs"," ",8.8736842105263154,"HSPFee","Calculated per PY2016 Metadata",8.1999999999999993,"HSPFbase","Illinois TRM",12.75,"EERee","Calculated per PY2016 Metadata",11.8,"EERbase","Illinois TRM",738,"EFLHcool","2017 MO TRM",1376,"EFLHheat","The EFLH Cooling and Heating hours are based on a EnergyStar study that was normalized (based on HDD and CDD) to Kansas City. This was for both AC and HP units."," "]
["Whole House Efficiency","ASHP SEER 15 - Replace Electric Resistance Heat - Early Replacement",314,"Single Family","HVAC",null,"per ton",1482,{"$f":"ROUND((AT55*AE55*(1/W55-1/T55))/1000+(AW55*AE55*(1/AK55-1/AH55)/1000),4)","v":3885.4304999999999},"IL TRM v5",{"$f":"I55/P55","v":3.9566502036659879},0.72,"IL TRM v5",{"$f":"ROUND((AE55*(1/AQ55-1/AN55)/1000)*L55,4)","v":0.59060000000000001},null,982,"EFLHcool, from PY2016 analysis\n(Normalized EnergyStar KC Cooling Hours to IL TRM CDD)",6,"SEER",15.17,"per PY2016 Metadata","SEER",6.87,"per PY2015 report",{"$f":"cellformula(I55)","v":"=ROUND((AT55*AE55*(1/W55-1/T55))/1000+(AW55*AE55*(1/AK55-1/AH55)/1000),4)"},{"$f":"cellformula(N55)","v":"=ROUND((AE55*(1/AQ55-1/AN55)/1000)*L55,4)"},"2018-04-01","2019-03-31",null,null,12000,"Allows for Capacity input in Tons; converts tons to BTUs"," ",8.7121428571428563,"HSPF_ee","Calculated per PY2016 Metadata",3.41,"HSPF_exist","Illinois TRM",{"$f":"(-0.02*T55^2)+(1.12*T55)","v":12.387822},"EER_ee","IL TRM V5",6.7076399999999996,"EERbase","IL TRM V5",982,"EFLHcool","The EFLH Cooling and Heating hours are based on a EnergyStar study that was normalized (based on HDD and CDD) to Kansas City. This was for both AC and HP units.",1376,"EFLHheat","The EFLH Cooling and Heating hours are based on a EnergyStar study that was normalized (based on HDD and CDD) to Kansas City. This was for both AC and HP units."," "]
["Whole House Efficiency","ASHP SEER 15 - Replace Electric Resistance Heat - Early Replacement",314.10000000000002,"Single Family","HVAC",null,"per ton",1482,{"$f":"ROUND((AT56*AE56*(1/W56-1/T56))/1000+(AW56*AE56*(1/AK56-1/AH56)/1000),4)","v":3334.2118999999998},"IL TRM v5",4.5179023035230346,0.72,"IL TRM v5",{"$f":"ROUND((AE56*(1/AQ56-1/AN56)/1000)*L56,4)","v":0.36270000000000002},null,738,"EFLHcool, from 2017 MO TRM",6,"SEER",15.17,"per PY2016 Metadata","SEER",9.1199999999999992,"SEERexist per IL TRM V6 assumes ASHP replacement",{"$f":"cellformula(I56)","v":"=ROUND((AT56*AE56*(1/W56-1/T56))/1000+(AW56*AE56*(1/AK56-1/AH56)/1000),4)"},{"$f":"cellformula(N56)","v":"=ROUND((AE56*(1/AQ56-1/AN56)/1000)*L56,4)"},"2019-04-01",null,null,null,12000,"Allows for Capacity input in Tons; converts tons to BTUs"," ",8.7121428571428563,"HSPF_ee","Calculated per PY2016 Metadata",3.41,"HSPF_exist","Illinois TRM",{"$f":"(-0.02*T56^2)+(1.12*T56)","v":12.387822},"EER_ee","Based on SEER value of efficient equipment",8.15,"EERexist","IL TRM V6",738,"EFLHcool","2017 MO TRM",1376,"EFLHheat","The EFLH Cooling and Heating hours are based on a EnergyStar study that was normalized (based on HDD and CDD) to Kansas City. This was for both AC and HP units."," "]
["Whole House Efficiency","ASHP SEER 15 - Replace Electric Resistance Heat - Early Replacement (future)",315,"Single Family","HVAC",null,"per ton",644.55999999999995,{"$f":"ROUND((BC57*AE57*(1/AT57-1/T57))/1000+(BF57*AE57*(1/AZ57-1/AH57)/1000),4)","v":183.29079999999999},"IL TRM v5",0.18665050916496945,0.72,"IL TRM v5",{"$f":"ROUND((AE57*(1/AW57-1/AN57)/1000)*L57,4)","v":0.31309999999999999},null,982,"EFLHcool, from PY2016 analysis\n(Normalized EnergyStar KC Cooling Hours to IL TRM CDD)",12,"SEER",15.17,"per PY2016 Metadata","SEER",null,"SEERexist per IL TRM v5","=ROUND((BC57*AE57*(1/AT57-1/T57))/1000+(BF57*AE57*(1/AZ57-1/AH57)/1000),4)","=ROUND((AE57*(1/AW57-1/AN57)/1000)*L57,4)","2018-04-01","2019-03-31",null,null,12000,"Allows for Capacity input in Tons; converts tons to BTUs"," ",8.7121428571428563,"HSPF_ee","Calculated per PY2016 Metadata",8.1999999999999993,"HSPF_base","Illinois TRM",12.387822,"EER_ee","IL TRM V5",null,"EERbase","IL TRM V5",14,"SEERbase","IL TRM V5",8.5500000000000007,"EERbase","IL TRM V5",8.1999999999999993,"HSPFbase","Arkansas TRM v7",982,"EFLHcool","The EFLH Cooling and Heating hours are based on a EnergyStar study that was normalized (based on HDD and CDD) to Kansas City. This was for both AC and HP units.",1376,"EFLHheat","The EFLH Cooling and Heating hours are based on a EnergyStar study that was normalized (based on HDD and CDD) to Kansas City. This was for both AC and HP units."," "]
["Whole House Efficiency","ASHP SEER 15 - Replace Electric Resistance Heat - Early Replacement (future)",315.10000000000002,"Single Family","HVAC",null,"per ton",644.55999999999995,{"$f":"ROUND((BC58*AE58*(1/AT58-1/T58))/1000+(BF58*AE58*(1/AZ58-1/AH58)/1000),4)","v":167.16050000000001},"IL TRM v5",0.2265047425474255,0.72,"IL TRM v5",{"$f":"ROUND((AE58*(1/AW58-1/AN58)/1000)*L58,4)","v":3.7199999999999997E-2},null,738,"EFLHcool, from 2017 MO TRM",12,"SEER",15.17,"per PY2016 Metadata",{"$f":"AU58","v":"SEERbase"},{"$f":"AT58","v":14},{"$f":"AV58","v":"IL TRM V6"},{"$f":"cellformula(I58)","v":"=ROUND((BC58*AE58*(1/AT58-1/T58))/1000+(BF58*AE58*(1/AZ58-1/AH58)/1000),4)"},{"$f":"cellformula(N58)","v":"=ROUND((AE58*(1/AW58-1/AN58)/1000)*L58,4)"},"2019-04-01",null,null,null,12000,"Allows for Capacity input in Tons; converts tons to BTUs"," ",8.7121428571428563,"HSPF_ee","Calculated per PY2016 Metadata",8.1999999999999993,"HSPF_base","Illinois TRM",{"$f":"(-0.02*T58^2)+(1.12*T58)","v":12.387822},"EER_ee","Based on SEER value of efficient equipment",null,null,null,14,"SEERbase","IL TRM V6",{"$f":"(-0.02*AT58^2)+(1.12*AT58)","v":11.760000000000002},"EERbase","Based on SEER base",8.1999999999999993,"HSPFbase","Arkansas TRM v7",738,"EFLHcool","2017 MO TRM",1376,"EFLHheat","The EFLH Cooling and Heating hours are based on a EnergyStar study that was normalized (based on HDD and CDD) to Kansas City. This was for both AC and HP units."," "]
["Whole House Efficiency","ASHP SEER 16",34.1,"Single Family","HVAC",null,"per ton",274,{"$f":"ROUND((AT59*AE59*(1/W59-1/T59))/1000+(AW59*AE59*(1/AK59-1/AH59)/1000),4)","v":302.04039999999998},"IL TRM v5",{"$f":"I59/P59","v":0.30757678207739303},0.72,"IL TRM v5",{"$f":"ROUND((AE59*(1/AQ59-1/AN59)/1000)*L59,4)","v":6.4399999999999999E-2},null,982,"EFLHcool, from PY2016 analysis",18,"SEER",16.04,"per PY2016 Metadata","SEER",14,"IL TRM v5","=ROUND((AT59*AE59*(1/W59-1/T59))/1000+(AW59*AE59*(1/AK59-1/AH59)/1000),4)","=ROUND((AE59*(1/AQ59-1/AN59)/1000)*L59,4)","2018-04-01","2019-03-31",null,null,12000,"Allows for Capacity input in Tons; converts tons to BTUs"," ",9.0791666666666675,"HSPFee","Calculated per PY2016 Metadata",8.1999999999999993,"HSPFbase","Illinois TRM",12.9375,"EERee","Calculated per PY2016 Metadata",11.8,"EERbase","Illinois TRM",982,"EFLHcool","The EFLH Cooling and Heating hours are based on a EnergyStar study that was normalized (based on HDD and CDD) to Kansas City. This was for both AC and HP units.",1376,"EFLHheat","The EFLH Cooling and Heating hours are based on a EnergyStar study that was normalized (based on HDD and CDD) to Kansas City. This was for both AC and HP units."," "]
["Whole House Efficiency","ASHP SEER 16",34.200000000000003,"Single Family","HVAC",null,"per ton",274,{"$f":"ROUND((AT60*AE60*(1/W60-1/T60))/1000+(AW60*AE60*(1/AK60-1/AH60)/1000),4)","v":275.44119999999998},"IL TRM v5",{"$f":"I60/P60","v":0.37322655826558265},0.72,"IL TRM v5",{"$f":"ROUND((AE60*(1/AQ60-1/AN60)/1000)*L60,4)","v":6.4399999999999999E-2},null,738,"EFLHcool, from 2017 MO TRM",18,"SEER",16.04,"per PY2016 Metadata","SEER",14,"IL TRM v5",{"$f":"cellformula(I60)","v":"=ROUND((AT60*AE60*(1/W60-1/T60))/1000+(AW60*AE60*(1/AK60-1/AH60)/1000),4)"},{"$f":"cellformula(N60)","v":"=ROUND((AE60*(1/AQ60-1/AN60)/1000)*L60,4)"},"2019-04-01",null,null,null,12000,"Allows for Capacity input in Tons; converts tons to BTUs"," ",9.0791666666666675,"HSPFee","Calculated per PY2016 Metadata",8.1999999999999993,"HSPFbase","Illinois TRM",12.9375,"EERee","Calculated per PY2016 Metadata",11.8,"EERbase","Illinois TRM",738,"EFLHcool","2017 MO TRM",1376,"EFLHheat","The EFLH Cooling and Heating hours are based on a EnergyStar study that was normalized (based on HDD and CDD) to Kansas City. This was for both AC and HP units."," "]
["Whole House Efficiency","ASHP SEER 16 - Early Replacement",35.1,"Single Family","HVAC",null,"per ton",415,{"$f":"ROUND((AT61*AE61*(1/W61-1/T61))/1000+(AW61*AE61*(1/AK61-1/AH61)/1000),4)","v":2178.6968000000002},"IL TRM v5",{"$f":"I61/P61","v":2.2186321792260695},0.72,"IL TRM v5",{"$f":"ROUND((AE61*(1/AQ61-1/AN61)/1000)*L61,4)","v":0.61580000000000001},null,982,"EFLHcool, from PY2016 analysis",6,"SEER",16.079999999999998,"per PY2016 Metadata","SEER",6.87,"per PY2015 report","=ROUND((AT61*AE61*(1/W61-1/T61))/1000+(AW61*AE61*(1/AK61-1/AH61)/1000),4)",{"$f":"cellformula(N61)","v":"=ROUND((AE61*(1/AQ61-1/AN61)/1000)*L61,4)"},"2018-04-01","2019-03-31",null,null,12000,"Allows for Capacity input in Tons; converts tons to BTUs"," ",8.9785714285714295,"HSPFee","Calculated per PY2016 Metadata",5.44,"HSPFbase","Illinois TRM",12.851851851851851,"EERee","Calculated per PY2016 Metadata",6.7076399999999996,"EERbase","Calculated per PY2016 Metadata",982,"EFLHcool","The EFLH Cooling and Heating hours are based on a EnergyStar study that was normalized (based on HDD and CDD) to Kansas City. This was for both AC and HP units.",1376,"EFLHheat","The EFLH Cooling and Heating hours are based on a EnergyStar study that was normalized (based on HDD and CDD) to Kansas City. This was for both AC and HP units."," "]
["Whole House Efficiency","ASHP SEER 16 - Early Replacement",35.200000000000003,"Single Family","HVAC",null,"per ton",415,{"$f":"ROUND((AT62*AE62*(1/W62-1/T62))/1000+(AW62*AE62*(1/AK62-1/AH62)/1000),4)","v":1616.5551},"IL TRM v5",{"$f":"I62/P62","v":2.1904540650406505},0.72,"IL TRM v5",{"$f":"ROUND((AE62*(1/AQ62-1/AN62)/1000)*L62,4)","v":0.3871},null,738,"EFLHcool, from 2017 MO TRM",6,"SEER",16.079999999999998,"per PY2016 Metadata","SEER",9.1199999999999992,"SEERexist per IL TRM V6 assumes ASHP replacement",{"$f":"cellformula(I62)","v":"=ROUND((AT62*AE62*(1/W62-1/T62))/1000+(AW62*AE62*(1/AK62-1/AH62)/1000),4)"},{"$f":"cellformula(N62)","v":"=ROUND((AE62*(1/AQ62-1/AN62)/1000)*L62,4)"},"2019-04-01",null,null,null,12000,"Allows for Capacity input in Tons; converts tons to BTUs"," ",8.9785714285714295,"HSPFee","Calculated per PY2016 Metadata",5.44,"HSPFbase","Illinois TRM",{"$f":"(-0.02*T62^2)+(1.12*T62)","v":12.838272},"EERee","Based on SEER value of efficient equipment",8.15,"EERexist","IL TRM V6",738,"EFLHcool","2017 MO TRM",1376,"EFLHheat","The EFLH Cooling and Heating hours are based on a EnergyStar study that was normalized (based on HDD and CDD) to Kansas City. This was for both AC and HP units."," "]
["Whole House Efficiency","ASHP SEER 16 - Early Replacement (future)",36.1,"Single Family","HVAC",null,"per ton",415,{"$f":"ROUND((BC63*AE63*(1/AT63-1/T63))/1000+(BF63*AE63*(1/AZ63-1/AH63)/1000),4)","v":283.49169999999998},"IL TRM v5",{"$f":"I63/P63","v":0.28868808553971487},0.72,"IL TRM v5",{"$f":"ROUND((AE63*(1/AW63-1/AN63)/1000)*L63,4)","v":0.3382},"IL TRM V5",982,"EFLHcool, from PY2016 analysis\n(Normalized EnergyStar KC Cooling Hours to IL TRM CDD)",12,"SEER",16.079999999999998,"per PY2016 Metadata","SEER",9.1199999999999992,"SEERexist per IL TRM v5",{"$f":"cellformula(I63)","v":"=ROUND((BC63*AE63*(1/AT63-1/T63))/1000+(BF63*AE63*(1/AZ63-1/AH63)/1000),4)"},"=ROUND((AE63*(1/AW63-1/AN63)/1000)*L63,4)","2018-04-01","2019-03-31",null,null,12000,"Allows for Capacity input in Tons; converts tons to BTUs"," ",8.9785714285714295,"HSPFee","Calculated per PY2016 Metadata",5.44,"HSPFexist","Illinois TRM",12.851851851851851,"EERee","Calculated per PY2016 Metadata",6.7076399999999996,"EERexist","Calculated per PY2016 Metadata",14,"SEERbase","IL TRM V5",8.5500000000000007,"EERbase","IL TRM V5",8.1999999999999993,"HSPFbase","Illinois TRM",982,"EFLHcool","The EFLH Cooling and Heating hours are based on a EnergyStar study that was normalized (based on HDD and CDD) to Kansas City. This was for both AC and HP units.",1376,"EFLHheat","The EFLH Cooling and Heating hours are based on a EnergyStar study that was normalized (based on HDD and CDD) to Kansas City. This was for both AC and HP units."," "]
["Whole House Efficiency","ASHP SEER 16 - Early Replacement (future)",36.200000000000003,"Single Family","HVAC",null,"per ton",415,{"$f":"ROUND((BC64*AE64*(1/AT64-1/T64))/1000+(BF64*AE64*(1/AZ64-1/AH64)/1000),4)","v":256.4384},"IL TRM v5",{"$f":"I64/P64","v":0.34747750677506778},0.72,"IL TRM v5",{"$f":"ROUND((AE64*(1/AW64-1/AN64)/1000)*L64,4)","v":6.1699999999999998E-2},"IL TRM V5",738,"EFLHcool, from 2017 MO TRM",12,"SEER",16.079999999999998,"per PY2016 Metadata",{"$f":"AU64","v":"SEERbase"},{"$f":"AT64","v":14},{"$f":"AV64","v":"IL TRM V6"},{"$f":"cellformula(I64)","v":"=ROUND((BC64*AE64*(1/AT64-1/T64))/1000+(BF64*AE64*(1/AZ64-1/AH64)/1000),4)"},{"$f":"cellformula(N64)","v":"=ROUND((AE64*(1/AW64-1/AN64)/1000)*L64,4)"},"2019-04-01",null,null,null,12000,"Allows for Capacity input in Tons; converts tons to BTUs"," ",8.9785714285714295,"HSPFee","Calculated per PY2016 Metadata",5.44,"HSPFexist","Illinois TRM",{"$f":"(-0.02*T64^2)+(1.12*T64)","v":12.838272},"EERee","Based on SEER value of efficient equipment",null,null,null,14,"SEERbase","IL TRM V6",{"$f":"(-0.02*AT64^2)+(1.12*AT64)","v":11.760000000000002},"EERbase","Based on SEER base",8.1999999999999993,"HSPFbase","Illinois TRM",738,"EFLHcool","2017 MO TRM",1376,"EFLHheat","The EFLH Cooling and Heating hours are based on a EnergyStar study that was normalized (based on HDD and CDD) to Kansas City. This was for both AC and HP units."," "]
["Whole House Efficiency","ASHP SEER 16 - Replace Electric Resistance Heat",37.1,"Single Family","HVAC",null,"per ton",793.15789473684208,{"$f":"ROUND((AT65*AE65*(1/W65-1/T65))/1000+(AW65*AE65*(1/AK65-1/AH65)/1000),4)","v":300.68520000000001},"IL TRM v5",{"$f":"I65/P65","v":0.30619674134419556},0.72,"IL TRM v5",{"$f":"ROUND((AE65*(1/AQ65-1/AN65)/1000)*L65,4)","v":4.7800000000000002E-2},null,982,"EFLHcool, from PY2016 analysis",18,"SEER",16.11,"per PY2016 Metadata","SEERbase",14,"IL TRM v5","=ROUND((AT65*AE65*(1/W65-1/T65))/1000+(AW65*AE65*(1/AK65-1/AH65)/1000),4)","=ROUND((AE65*(1/AQ65-1/AN65)/1000)*L65,4)","2018-04-01","2019-03-31",null,null,12000,"Allows for Capacity input in Tons; converts tons to BTUs"," ",9.0565217391304333,"HSPFee","Calculated per PY2016 Metadata",8.1999999999999993,"HSPFbase","Illinois TRM",12.625,"EERee","Calculated per PY2016 Metadata",11.8,"EERbase","Illinois TRM",982,"EFLHcool","The EFLH Cooling and Heating hours are based on a EnergyStar study that was normalized (based on HDD and CDD) to Kansas City. This was for both AC and HP units.",1376,"EFLHheat","The EFLH Cooling and Heating hours are based on a EnergyStar study that was normalized (based on HDD and CDD) to Kansas City. This was for both AC and HP units."," "]
["Whole House Efficiency","ASHP SEER 16 - Replace Electric Resistance Heat",37.200000000000003,"Single Family","HVAC",null,"per ton",793.15789473684208,{"$f":"ROUND((AT66*AE66*(1/W66-1/T66))/1000+(AW66*AE66*(1/AK66-1/AH66)/1000),4)","v":273.2928},"IL TRM v5",{"$f":"I66/P66","v":0.37031544715447157},0.72,"IL TRM v5",{"$f":"ROUND((AE66*(1/AQ66-1/AN66)/1000)*L66,4)","v":4.7800000000000002E-2},null,738,"EFLHcool, from 2017 MO TRM",18,"SEER",16.11,"per PY2016 Metadata","SEERbase",14,"IL TRM v6",{"$f":"cellformula(I66)","v":"=ROUND((AT66*AE66*(1/W66-1/T66))/1000+(AW66*AE66*(1/AK66-1/AH66)/1000),4)"},{"$f":"cellformula(N66)","v":"=ROUND((AE66*(1/AQ66-1/AN66)/1000)*L66,4)"},"2019-04-01",null,null,null,12000,"Allows for Capacity input in Tons; converts tons to BTUs"," ",9.0565217391304333,"HSPFee","Calculated per PY2016 Metadata",8.1999999999999993,"HSPFbase","Illinois TRM",12.625,"EERee","Calculated per PY2016 Metadata",11.8,"EERbase","Illinois TRM",738,"EFLHcool","2017 MO TRM",1376,"EFLHheat","The EFLH Cooling and Heating hours are based on a EnergyStar study that was normalized (based on HDD and CDD) to Kansas City. This was for both AC and HP units."," "]
["Whole House Efficiency","ASHP SEER 16 - Replace Electric Resistance Heat - Early Replacement",316,"Single Family","HVAC",null,"per ton",1527,{"$f":"ROUND((AT67*AE67*(1/W67-1/T67))/1000+(AW67*AE67*(1/AK67-1/AH67)/1000),4)","v":3985.6314000000002},"IL TRM v5",{"$f":"I67/P67","v":4.0586877800407333},0.72,"IL TRM v5",{"$f":"ROUND((AE67*(1/AQ67-1/AN67)/1000)*L67,4)","v":0.61509999999999998},null,982,"EFLHcool, from PY2016 analysis\n(Normalized EnergyStar KC Cooling Hours to IL TRM CDD)",6,"SEER",16.079999999999998,"per PY2016 Metadata","SEER",6.87,"per PY2015 report",{"$f":"cellformula(I67)","v":"=ROUND((AT67*AE67*(1/W67-1/T67))/1000+(AW67*AE67*(1/AK67-1/AH67)/1000),4)"},{"$f":"cellformula(N67)","v":"=ROUND((AE67*(1/AQ67-1/AN67)/1000)*L67,4)"},"2018-04-01","2019-03-31",null,null,12000,"Allows for Capacity input in Tons; converts tons to BTUs"," ",8.9785714285714295,"HSPF_ee","Calculated per PY2016 Metadata",3.41,"HSPF_exist","Illinois TRM",{"$f":"(-0.02*T67^2)+(1.12*T67)","v":12.838272},"EER_ee","IL TRM V5",6.7076399999999996,"EERbase","IL TRM V5",982,"EFLHcool","The EFLH Cooling and Heating hours are based on a EnergyStar study that was normalized (based on HDD and CDD) to Kansas City. This was for both AC and HP units.",1376,"EFLHheat","The EFLH Cooling and Heating hours are based on a EnergyStar study that was normalized (based on HDD and CDD) to Kansas City. This was for both AC and HP units."," "]
["Whole House Efficiency","ASHP SEER 16 - Replace Electric Resistance Heat - Early Replacement",316.10000000000002,"Single Family","HVAC",null,"per ton",1527,{"$f":"ROUND((AT68*AE68*(1/W68-1/T68))/1000+(AW68*AE68*(1/AK68-1/AH68)/1000),4)","v":3423.4897999999998},"IL TRM v5",4.6388750677506776,0.72,"IL TRM v5",{"$f":"ROUND((AE68*(1/AQ68-1/AN68)/1000)*L68,4)","v":0.3871},null,738,"EFLHcool, from 2017 MO TRM",6,"SEER",16.079999999999998,"per PY2016 Metadata","SEER",9.1199999999999992,"SEERexist per IL TRM V6 assumes ASHP replacement",{"$f":"cellformula(I68)","v":"=ROUND((AT68*AE68*(1/W68-1/T68))/1000+(AW68*AE68*(1/AK68-1/AH68)/1000),4)"},{"$f":"cellformula(N68)","v":"=ROUND((AE68*(1/AQ68-1/AN68)/1000)*L68,4)"},"2019-04-01",null,null,null,12000,"Allows for Capacity input in Tons; converts tons to BTUs"," ",8.9785714285714295,"HSPF_ee","Calculated per PY2016 Metadata",3.41,"HSPF_exist","Illinois TRM",{"$f":"(-0.02*T68^2)+(1.12*T68)","v":12.838272},"EER_ee","Based on SEER value of efficient equipment",8.15,"EERexist","IL TRM V6",738,"EFLHcool","2017 MO TRM",1376,"EFLHheat","The EFLH Cooling and Heating hours are based on a EnergyStar study that was normalized (based on HDD and CDD) to Kansas City. This was for both AC and HP units."," "]
["Whole House Efficiency","ASHP SEER 16 - Replace Electric Resistance Heat - Early Replacement (future)",317,"Single Family","HVAC",null,"per ton",644.55999999999995,{"$f":"ROUND((BC69*AE69*(1/AT69-1/T69))/1000+(BF69*AE69*(1/AZ69-1/AH69)/1000),4)","v":283.49169999999998},"IL TRM v5",0.28868808553971487,0.72,"IL TRM v5",{"$f":"ROUND((AE69*(1/AW69-1/AN69)/1000)*L69,4)","v":0.33750000000000002},null,982,"EFLHcool, from PY2016 analysis\n(Normalized EnergyStar KC Cooling Hours to IL TRM CDD)",12,"SEER",16.079999999999998,"per PY2016 Metadata","SEER",null,"SEERexist per IL TRM v5","=ROUND((BC69*AE69*(1/AT69-1/T69))/1000+(BF69*AE69*(1/AZ69-1/AH69)/1000),4)","=ROUND((AE69*(1/AW69-1/AN69)/1000)*L69,4)","2018-04-01","2019-03-31",null,null,12000,"Allows for Capacity input in Tons; converts tons to BTUs"," ",8.9785714285714295,"HSPF_ee","Calculated per PY2016 Metadata",8.1999999999999993,"HSPF_base","Illinois TRM",12.838272,"EER_ee","IL TRM V5",null,"EERbase","IL TRM V5",14,"SEERbase","IL TRM V5",8.5500000000000007,"EERbase","IL TRM V5",8.1999999999999993,"HSPFbase","Arkansas TRM v7",982,"EFLHcool","The EFLH Cooling and Heating hours are based on a EnergyStar study that was normalized (based on HDD and CDD) to Kansas City. This was for both AC and HP units.",1376,"EFLHheat","The EFLH Cooling and Heating hours are based on a EnergyStar study that was normalized (based on HDD and CDD) to Kansas City. This was for both AC and HP units."," "]
["Whole House Efficiency","ASHP SEER 16 - Replace Electric Resistance Heat - Early Replacement (future)",317.10000000000002,"Single Family","HVAC",null,"per ton",644.55999999999995,{"$f":"ROUND((BC70*AE70*(1/AT70-1/T70))/1000+(BF70*AE70*(1/AZ70-1/AH70)/1000),4)","v":256.4384},"IL TRM v5",0.34747750677506778,0.72,"IL TRM v5",{"$f":"ROUND((AE70*(1/AW70-1/AN70)/1000)*L70,4)","v":6.1699999999999998E-2},null,738,"EFLHcool, from 2017 MO TRM",12,"SEER",16.079999999999998,"per PY2016 Metadata",{"$f":"AU70","v":"SEERbase"},{"$f":"AT70","v":14},{"$f":"AV70","v":"IL TRM V6"},{"$f":"cellformula(I70)","v":"=ROUND((BC70*AE70*(1/AT70-1/T70))/1000+(BF70*AE70*(1/AZ70-1/AH70)/1000),4)"},{"$f":"cellformula(N70)","v":"=ROUND((AE70*(1/AW70-1/AN70)/1000)*L70,4)"},"2019-04-01",null,null,null,12000,"Allows for Capacity input in Tons; converts tons to BTUs"," ",8.9785714285714295,"HSPF_ee","Calculated per PY2016 Metadata",8.1999999999999993,"HSPF_base","Illinois TRM",{"$f":"(-0.02*T70^2)+(1.12*T70)","v":12.838272},"EER_ee","Based on SEER value of efficient equipment",null,null,null,14,"SEERbase","IL TRM V6",{"$f":"(-0.02*AT70^2)+(1.12*AT70)","v":11.760000000000002},"EERbase","Based on SEER base",8.1999999999999993,"HSPFbase","Arkansas TRM v7",738,"EFLHcool","2017 MO TRM",1376,"EFLHheat","The EFLH Cooling and Heating hours are based on a EnergyStar study that was normalized (based on HDD and CDD) to Kansas City. This was for both AC and HP units."," "]
["Whole House Efficiency","ASHP SEER 17",38.1,"Single Family","HVAC",null,"per ton",411,{"$f":"ROUND((AT71*AE71*(1/W71-1/T71))/1000+(AW71*AE71*(1/AK71-1/AH71)/1000),4)","v":357.73689999999999},"IL TRM v5",{"$f":"I71/P71","v":0.36429419551934827},0.72,"IL TRM v5",{"$f":"ROUND((AE71*(1/AQ71-1/AN71)/1000)*L71,4)","v":4.1000000000000002E-2},null,982,"EFLHcool, from PY2016 analysis",18,"SEER",17.25,"per PY2016 Metadata","SEER",14,"IL TRM v5","=ROUND((AT71*AE71*(1/W71-1/T71))/1000+(AW71*AE71*(1/AK71-1/AH71)/1000),4)","=ROUND((AE71*(1/AQ71-1/AN71)/1000)*L71,4)","2018-04-01","2019-03-31",null,null,12000,"Allows for Capacity input in Tons; converts tons to BTUs"," ",9.1,"HSPFee","Calculated per PY2016 Metadata",8.1999999999999993,"HSPFbase","Illinois TRM",12.5,"EERee","Calculated per PY2016 Metadata",11.8,"EERbase","Illinois TRM",982,"EFLHcool","The EFLH Cooling and Heating hours are based on a EnergyStar study that was normalized (based on HDD and CDD) to Kansas City. This was for both AC and HP units.",1376,"EFLHheat","The EFLH Cooling and Heating hours are based on a EnergyStar study that was normalized (based on HDD and CDD) to Kansas City. This was for both AC and HP units."," "]
["Whole House Efficiency","ASHP SEER 17",38.200000000000003,"Single Family","HVAC",null,"per ton",411,{"$f":"ROUND((AT72*AE72*(1/W72-1/T72))/1000+(AW72*AE72*(1/AK72-1/AH72)/1000),4)","v":318.33319999999998},"IL TRM v5",{"$f":"I72/P72","v":0.43134579945799456},0.72,"IL TRM v5",{"$f":"ROUND((AE72*(1/AQ72-1/AN72)/1000)*L72,4)","v":4.1000000000000002E-2},null,738,"EFLHcool, from 2017 MO TRM",18,"SEER",17.25,"per PY2016 Metadata","SEER",14,"IL TRM v6",{"$f":"cellformula(I72)","v":"=ROUND((AT72*AE72*(1/W72-1/T72))/1000+(AW72*AE72*(1/AK72-1/AH72)/1000),4)"},{"$f":"cellformula(N72)","v":"=ROUND((AE72*(1/AQ72-1/AN72)/1000)*L72,4)"},"2019-04-01",null,null,null,12000,"Allows for Capacity input in Tons; converts tons to BTUs"," ",9.1,"HSPFee","Calculated per PY2016 Metadata",8.1999999999999993,"HSPFbase","Illinois TRM",12.5,"EERee","Calculated per PY2016 Metadata",11.8,"EERbase","Illinois TRM",738,"EFLHcool","2017 MO TRM",1376,"EFLHheat","The EFLH Cooling and Heating hours are based on a EnergyStar study that was normalized (based on HDD and CDD) to Kansas City. This was for both AC and HP units."," "]
["Whole House Efficiency","ASHP SEER 17 - Early Replacement",39.1,"Single Family","HVAC",null,"per ton",689,{"$f":"ROUND((AT73*AE73*(1/W73-1/T73))/1000+(AW73*AE73*(1/AK73-1/AH73)/1000),4)","v":2380.9607999999998},"IL TRM v5",{"$f":"I73/P73","v":2.4246036659877799},0.72,"IL TRM v5",{"$f":"ROUND((AE73*(1/AQ73-1/AN73)/1000)*L73,4)","v":0.75060000000000004},null,982,"EFLHcool, from PY2016 analysis",6,"SEER",18.34,"per PY2016 Metadata","SEER",6.87,"per PY2015 report","=ROUND((AT73*AE73*(1/W73-1/T73))/1000+(AW73*AE73*(1/AK73-1/AH73)/1000),4)","=ROUND((AE73*(1/AQ73-1/AN73)/1000)*L73,4)","2018-04-01","2019-03-31",null,null,12000,"Allows for Capacity input in Tons; converts tons to BTUs"," ",9.5606060606060677,"HSPFee","Calculated per PY2016 Metadata",5.44,"HSPFbase","Illinois TRM",16.075000000000003,"EERee","Calculated per PY2016 Metadata",6.7076399999999996,"EERbase","Calculated per PY2016 Metadata",982,"EFLHcool","The EFLH Cooling and Heating hours are based on a EnergyStar study that was normalized (based on HDD and CDD) to Kansas City. This was for both AC and HP units.",1376,"EFLHheat","The EFLH Cooling and Heating hours are based on a EnergyStar study that was normalized (based on HDD and CDD) to Kansas City. This was for both AC and HP units."," "]
["Whole House Efficiency","ASHP SEER 17 - Early Replacement",39.200000000000003,"Single Family","HVAC",null,"per ton",689,{"$f":"ROUND((AT74*AE74*(1/W74-1/T74))/1000+(AW74*AE74*(1/AK74-1/AH74)/1000),4)","v":1796.3806},"IL TRM v5",{"$f":"I74/P74","v":2.4341200542005419},0.72,"IL TRM v5",{"$f":"ROUND((AE74*(1/AQ74-1/AN74)/1000)*L74,4)","v":0.43469999999999998},null,738,"EFLHcool, from 2017 MO TRM",6,"SEER",18.34,"per PY2016 Metadata","SEER",9.1199999999999992,"SEERexist per IL TRM V6 assumes ASHP replacement",{"$f":"cellformula(I74)","v":"=ROUND((AT74*AE74*(1/W74-1/T74))/1000+(AW74*AE74*(1/AK74-1/AH74)/1000),4)"},{"$f":"cellformula(N74)","v":"=ROUND((AE74*(1/AQ74-1/AN74)/1000)*L74,4)"},"2019-04-01",null,null,null,12000,"Allows for Capacity input in Tons; converts tons to BTUs"," ",9.5606060606060677,"HSPFee","Calculated per PY2016 Metadata",5.44,"HSPFbase","Illinois TRM",{"$f":"(-0.02*T74^2)+(1.12*T74)","v":13.813688000000001},"EERee","Based on SEER value of efficient equipment",8.15,"EERexist","IL TRM V6",738,"EFLHcool","2017 MO TRM",1376,"EFLHheat","The EFLH Cooling and Heating hours are based on a EnergyStar study that was normalized (based on HDD and CDD) to Kansas City. This was for both AC and HP units."," "]
["Whole House Efficiency","ASHP SEER 17 - Early Replacement (future)",40.1,"Single Family","HVAC",null,"per ton",689,{"$f":"ROUND((BC75*AE75*(1/AT75-1/T75))/1000+(BF75*AE75*(1/AZ75-1/AH75)/1000),4)","v":485.75569999999999},"IL TRM v5",{"$f":"I75/P75","v":0.49465957230142565},0.72,"IL TRM v5",{"$f":"ROUND((AE75*(1/AW75-1/AN75)/1000)*L75,4)","v":0.47299999999999998},"IL TRM V5",982,"EFLHcool, from PY2016 analysis\n(Normalized EnergyStar KC Cooling Hours to IL TRM CDD)",12,"SEER",18.34,"per PY2016 Metadata","SEER",9.1199999999999992,"SEERexist per IL TRM v5","=ROUND((BC75*AE75*(1/AT75-1/T75))/1000+(BF75*AE75*(1/AZ75-1/AH75)/1000),4)","=ROUND((AE75*(1/AW75-1/AN75)/1000)*L75,4)","2018-04-01","2019-03-31",null,null,12000,"Allows for Capacity input in Tons; converts tons to BTUs"," ",9.5606060606060677,"HSPFee","Calculated per PY2016 Metadata",5.44,"HSPFexist","Illinois TRM",16.075000000000003,"EERee","Calculated per PY2016 Metadata",6.7076399999999996,"EERexist","Calculated per PY2016 Metadata",14,"SEERbase","IL TRM V5",8.5500000000000007,"EERbase","IL TRM V5",8.1999999999999993,"HSPFbase","Illinois TRM",982,"EFLHcool","The EFLH Cooling and Heating hours are based on a EnergyStar study that was normalized (based on HDD and CDD) to Kansas City. This was for both AC and HP units.",1376,"EFLHheat","The EFLH Cooling and Heating hours are based on a EnergyStar study that was normalized (based on HDD and CDD) to Kansas City. This was for both AC and HP units."," "]
["Whole House Efficiency","ASHP SEER 17 - Early Replacement (future)",40.200000000000003,"Single Family","HVAC",null,"per ton",689,{"$f":"ROUND((BC76*AE76*(1/AT76-1/T76))/1000+(BF76*AE76*(1/AZ76-1/AH76)/1000),4)","v":436.2638},"IL TRM v5",{"$f":"I76/P76","v":0.59114336043360438},0.72,"IL TRM v5",{"$f":"ROUND((AE76*(1/AW76-1/AN76)/1000)*L76,4)","v":0.10920000000000001},"IL TRM V5",738,"EFLHcool, from 2017 MO TRM",12,"SEER",18.34,"per PY2016 Metadata",{"$f":"AU76","v":"SEERbase"},{"$f":"AT76","v":14},{"$f":"AV76","v":"IL TRM V6"},{"$f":"cellformula(I76)","v":"=ROUND((BC76*AE76*(1/AT76-1/T76))/1000+(BF76*AE76*(1/AZ76-1/AH76)/1000),4)"},{"$f":"cellformula(N76)","v":"=ROUND((AE76*(1/AW76-1/AN76)/1000)*L76,4)"},"2019-04-01",null,null,null,12000,"Allows for Capacity input in Tons; converts tons to BTUs"," ",9.5606060606060677,"HSPFee","Calculated per PY2016 Metadata",5.44,"HSPFexist","Illinois TRM",{"$f":"(-0.02*T76^2)+(1.12*T76)","v":13.813688000000001},"EERee","Based on SEER value of efficient equipment",null,null,"IL TRM V6",14,"SEERbase","IL TRM V6",{"$f":"(-0.02*AT76^2)+(1.12*AT76)","v":11.760000000000002},"EERbase","Based on SEER base",8.1999999999999993,"HSPFbase","Illinois TRM",738,"EFLHcool","2017 MO TRM",1376,"EFLHheat","The EFLH Cooling and Heating hours are based on a EnergyStar study that was normalized (based on HDD and CDD) to Kansas City. This was for both AC and HP units."," "]
["Whole House Efficiency","ASHP SEER 17 - Replace Electric Resistance Heat",41.1,"Single Family","HVAC",null,"per ton",1307.7272727272727,{"$f":"ROUND((AT77*AE77*(1/W77-1/T77))/1000+(AW77*AE77*(1/AK77-1/AH77)/1000),4)","v":495.48489999999998},"IL TRM v5",{"$f":"I77/P77","v":0.50456710794297355},0.72,"IL TRM v5",{"$f":"ROUND((AE77*(1/AQ77-1/AN77)/1000)*L77,4)","v":0.18190000000000001},null,982,"EFLHcool, from PY2016 analysis",18,"SEER",18.27,"per PY2016 Metadata","SEERbase",14,"IL TRM v5","=ROUND((AT77*AE77*(1/W77-1/T77))/1000+(AW77*AE77*(1/AK77-1/AH77)/1000),4)","=ROUND((AE77*(1/AQ77-1/AN77)/1000)*L77,4)","2018-04-01","2019-03-31",null,null,12000,"Allows for Capacity input in Tons; converts tons to BTUs"," ",9.6285714285714299,"HSPFee","Calculated per PY2016 Metadata",8.1999999999999993,"HSPFbase","Illinois TRM",15.700000000000001,"EERee","Calculated per PY2016 Metadata",11.8,"EERbase","Illinois TRM",982,"EFLHcool","The EFLH Cooling and Heating hours are based on a EnergyStar study that was normalized (based on HDD and CDD) to Kansas City. This was for both AC and HP units.",1376,"EFLHheat","The EFLH Cooling and Heating hours are based on a EnergyStar study that was normalized (based on HDD and CDD) to Kansas City. This was for both AC and HP units."," "]
["Whole House Efficiency","ASHP SEER 17 - Replace Electric Resistance Heat",41.2,"Single Family","HVAC",null,"per ton",1307.7272727272727,{"$f":"ROUND((AT78*AE78*(1/W78-1/T78))/1000+(AW78*AE78*(1/AK78-1/AH78)/1000),4)","v":446.60480000000001},"IL TRM v5",{"$f":"I78/P78","v":0.60515555555555556},0.72,"IL TRM v5",{"$f":"ROUND((AE78*(1/AQ78-1/AN78)/1000)*L78,4)","v":0.18190000000000001},null,738,"EFLHcool, from 2017 MO TRM",18,"SEER",18.27,"per PY2016 Metadata","SEERbase",14,"IL TRM v6",{"$f":"cellformula(I78)","v":"=ROUND((AT78*AE78*(1/W78-1/T78))/1000+(AW78*AE78*(1/AK78-1/AH78)/1000),4)"},{"$f":"cellformula(N78)","v":"=ROUND((AE78*(1/AQ78-1/AN78)/1000)*L78,4)"},"2019-04-01",null,null,null,12000,"Allows for Capacity input in Tons; converts tons to BTUs"," ",9.6285714285714299,"HSPFee","Calculated per PY2016 Metadata",8.1999999999999993,"HSPFbase","Illinois TRM",15.700000000000001,"EERee","Calculated per PY2016 Metadata",11.8,"EERbase","Illinois TRM",738,"EFLHcool","2017 MO TRM",1376,"EFLHheat","The EFLH Cooling and Heating hours are based on a EnergyStar study that was normalized (based on HDD and CDD) to Kansas City. This was for both AC and HP units."," "]
["Whole House Efficiency","ASHP SEER 17 - Replace Electric Resistance Heat - Early Replacement",318,"Single Family","HVAC",null,"per ton",1622.3333333333333,{"$f":"ROUND((AT79*AE79*(1/W79-1/T79))/1000+(AW79*AE79*(1/AK79-1/AH79)/1000),4)","v":4187.8954000000003},"IL TRM v5",{"$f":"I79/P79","v":4.2646592668024441},0.72,"IL TRM v5",{"$f":"ROUND((AE79*(1/AQ79-1/AN79)/1000)*L79,4)","v":0.66259999999999997},null,982,"EFLHcool, from PY2016 analysis\n(Normalized EnergyStar KC Cooling Hours to IL TRM CDD)",6,"SEER",18.34,"per PY2016 Metadata","SEER",6.87,"per PY2015 report",{"$f":"cellformula(I79)","v":"=ROUND((AT79*AE79*(1/W79-1/T79))/1000+(AW79*AE79*(1/AK79-1/AH79)/1000),4)"},{"$f":"cellformula(N79)","v":"=ROUND((AE79*(1/AQ79-1/AN79)/1000)*L79,4)"},"2018-04-01","2019-03-31",null,null,12000,"Allows for Capacity input in Tons; converts tons to BTUs"," ",9.5606060606060677,"HSPF_ee","Calculated per PY2016 Metadata",3.41,"HSPF_exist","Illinois TRM",{"$f":"(-0.02*T79^2)+(1.12*T79)","v":13.813688000000001},"EER_ee","IL TRM V5",6.7076399999999996,"EERbase","IL TRM V5",982,"EFLHcool","The EFLH Cooling and Heating hours are based on a EnergyStar study that was normalized (based on HDD and CDD) to Kansas City. This was for both AC and HP units.",1376,"EFLHheat","The EFLH Cooling and Heating hours are based on a EnergyStar study that was normalized (based on HDD and CDD) to Kansas City. This was for both AC and HP units."," "]
["Whole House Efficiency","ASHP SEER 17 - Replace Electric Resistance Heat - Early Replacement",318.10000000000002,"Single Family","HVAC",null,"per ton",1622.3333333333333,{"$f":"ROUND((AT80*AE80*(1/W80-1/T80))/1000+(AW80*AE80*(1/AK80-1/AH80)/1000),4)","v":3603.3153000000002},"IL TRM v5",4.8825410569105694,0.72,"IL TRM v5",{"$f":"ROUND((AE80*(1/AQ80-1/AN80)/1000)*L80,4)","v":0.43469999999999998},null,738,"EFLHcool, from 2017 MO TRM",6,"SEER",18.34,"per PY2016 Metadata","SEER",9.1199999999999992,"SEERexist per IL TRM V6 assumes ASHP replacement",{"$f":"cellformula(I80)","v":"=ROUND((AT80*AE80*(1/W80-1/T80))/1000+(AW80*AE80*(1/AK80-1/AH80)/1000),4)"},{"$f":"cellformula(N80)","v":"=ROUND((AE80*(1/AQ80-1/AN80)/1000)*L80,4)"},"2019-04-01",null,null,null,12000,"Allows for Capacity input in Tons; converts tons to BTUs"," ",9.5606060606060677,"HSPF_ee","Calculated per PY2016 Metadata",3.41,"HSPF_exist","Illinois TRM",{"$f":"(-0.02*T80^2)+(1.12*T80)","v":13.813688000000001},"EER_ee","Based on SEER value of efficient equipment",8.15,"EERexist","IL TRM V6",738,"EFLHcool","2017 MO TRM",1376,"EFLHheat","The EFLH Cooling and Heating hours are based on a EnergyStar study that was normalized (based on HDD and CDD) to Kansas City. This was for both AC and HP units."," "]
["Whole House Efficiency","ASHP SEER 17 - Replace Electric Resistance Heat - Early Replacement (future)",319,"Single Family","HVAC",null,"per ton",644.55999999999995,{"$f":"ROUND((BC81*AE81*(1/AT81-1/T81))/1000+(BF81*AE81*(1/AZ81-1/AH81)/1000),4)","v":485.75569999999999},"IL TRM v5",0.49465957230142565,0.72,"IL TRM v5",{"$f":"ROUND((AE81*(1/AW81-1/AN81)/1000)*L81,4)","v":0.3851},null,982,"EFLHcool, from PY2016 analysis\n(Normalized EnergyStar KC Cooling Hours to IL TRM CDD)",12,"SEER",18.34,"per PY2016 Metadata","SEER",null,"SEERexist per IL TRM v5","=ROUND((BC81*AE81*(1/AT81-1/T81))/1000+(BF81*AE81*(1/AZ81-1/AH81)/1000),4)","=ROUND((AE81*(1/AW81-1/AN81)/1000)*L81,4)","2018-04-01","2019-03-31",null,null,12000,"Allows for Capacity input in Tons; converts tons to BTUs"," ",9.5606060606060677,"HSPF_ee","Calculated per PY2016 Metadata",8.1999999999999993,"HSPF_base","Illinois TRM",13.813688000000001,"EER_ee","IL TRM V5",null,"EERbase","IL TRM V5",14,"SEERbase","IL TRM V5",8.5500000000000007,"EERbase","IL TRM V5",8.1999999999999993,"HSPFbase","Arkansas TRM v7",982,"EFLHcool","The EFLH Cooling and Heating hours are based on a EnergyStar study that was normalized (based on HDD and CDD) to Kansas City. This was for both AC and HP units.",1376,"EFLHheat","The EFLH Cooling and Heating hours are based on a EnergyStar study that was normalized (based on HDD and CDD) to Kansas City. This was for both AC and HP units."," "]
["Whole House Efficiency","ASHP SEER 17 - Replace Electric Resistance Heat - Early Replacement (future)",319.10000000000002,"Single Family","HVAC",null,"per ton",644.55999999999995,{"$f":"ROUND((BC82*AE82*(1/AT82-1/T82))/1000+(BF82*AE82*(1/AZ82-1/AH82)/1000),4)","v":436.2638},"IL TRM v5",0.59114336043360438,0.72,"IL TRM v5",{"$f":"ROUND((AE82*(1/AW82-1/AN82)/1000)*L82,4)","v":0.10920000000000001},null,738,"EFLHcool, from 2017 MO TRM",12,"SEER",18.34,"per PY2016 Metadata",{"$f":"AU82","v":"SEERbase"},{"$f":"AT82","v":14},{"$f":"AV82","v":"IL TRM V6"},{"$f":"cellformula(I82)","v":"=ROUND((BC82*AE82*(1/AT82-1/T82))/1000+(BF82*AE82*(1/AZ82-1/AH82)/1000),4)"},{"$f":"cellformula(N82)","v":"=ROUND((AE82*(1/AW82-1/AN82)/1000)*L82,4)"},"2019-04-01",null,null,null,12000,"Allows for Capacity input in Tons; converts tons to BTUs"," ",9.5606060606060677,"HSPF_ee","Calculated per PY2016 Metadata",8.1999999999999993,"HSPF_base","Illinois TRM",{"$f":"(-0.02*T82^2)+(1.12*T82)","v":13.813688000000001},"EER_ee","Based on SEER value of efficient equipment",null,null,null,14,"SEERbase","IL TRM V6",{"$f":"(-0.02*AT82^2)+(1.12*AT82)","v":11.760000000000002},"EERbase","Based on SEER base",8.1999999999999993,"HSPFbase","Arkansas TRM v7",738,"EFLHcool","2017 MO TRM",1376,"EFLHheat","The EFLH Cooling and Heating hours are based on a EnergyStar study that was normalized (based on HDD and CDD) to Kansas City. This was for both AC and HP units."," "]
["Whole House Efficiency","Furnace Filter Alarm",234.1,"Single Family","HVAC","Kits","per unit",2.8,{"$f":"ROUND((AE83*AQ83*AH83*AK83)+(AE83*AN83*AH83*AK83),4)","v":83.826899999999995},"PA TRM",{"$f":"I83/P83","v":5.0773410054512413E-2},0.64700000000000002,"PA TRM",{"$f":"ROUND(((AE83*AN83*AH83*AK83)/AN83)*L83,4)","v":2.3E-2},"PA TRM",1651,"PA TRM",14,"Furnace Filter Alarm",null,null,"No Filter",null," ",{"$f":"cellformula(I83)","v":"=ROUND((AE83*AQ83*AH83*AK83)+(AE83*AN83*AH83*AK83),4)"},{"$f":"cellformula(N83)","v":"=ROUND(((AE83*AN83*AH83*AK83)/AN83)*L83,4)"},"2018-04-01","2019-03-31",null,null,0.5,"Average motor full load electric demand","PA TRM",0.15,"Efficiency Improvement","PA TRM",0.47399999999999998,"Installation Rate","PA TRM",982,"EFLHcool","The EFLH Cooling and Heating hours are based on a EnergyStar study that was normalized (based on HDD and CDD) to Kansas City. This was for both AC and HP units.",1376,"EFLHheat","The EFLH Cooling and Heating hours are based on a EnergyStar study that was normalized (based on HDD and CDD) to Kansas City. This was for both AC and HP units."," "]
["Whole House Efficiency","Furnace Filter Alarm",234.2,"Single Family","HVAC","Kits","per unit",2.8,{"$f":"ROUND((AE84*AQ84*AH84*AK84)+(AE84*AN84*AH84*AK84),4)","v":75.152699999999996},"PA TRM",4.5519503331314354E-2,0.64700000000000002,"PA TRM",{"$f":"ROUND(((AE84*AN84*AH84*AK84)/AN84)*L84,4)","v":2.3E-2},"PA TRM",1651,"PA TRM",14,"Furnace Filter Alarm",null,null,"No Filter",null," ",{"$f":"cellformula(I84)","v":"=ROUND((AE84*AQ84*AH84*AK84)+(AE84*AN84*AH84*AK84),4)"},{"$f":"cellformula(N84)","v":"=ROUND(((AE84*AN84*AH84*AK84)/AN84)*L84,4)"},"2019-04-01",null,null,null,0.5,"Average motor full load electric demand","PA TRM",0.15,"Efficiency Improvement","PA TRM",0.47399999999999998,"Installation Rate","PA TRM",738,"EFLHcool","The EFLH Cooling and Heating hours are based on a EnergyStar study that was normalized (based on HDD and CDD) to Kansas City. This was for both AC and HP units.",1376,"EFLHheat","The EFLH Cooling and Heating hours are based on a EnergyStar study that was normalized (based on HDD and CDD) to Kansas City. This was for both AC and HP units."," "]
["Whole House Efficiency","Indoor Coil Cleaning_SF:CAC",262,"Single Family","HVAC",null,"per measure",63,{"$f":"ROUND((AT85*AK85*(1/AN85))/1000*AE85,4)","v":58.92},"IL TRM v5",null,0.68,null,{"$f":"ROUND(AK85*(1/AQ85)/1000*AH85*L85,4)","v":1.77E-2},"IL TRM v5",null,null,5,"Sub-measure of HVAC Maintenance and Tune-up"," ",null,"kWh, kW",null,null,"=ROUND((AT85*AK85*(1/AN85))/1000*AE85,4)","=ROUND(AK85*(1/AQ85)/1000*AH85*L85,4)","2018-04-01","2019-03-31",null,null,0.05,"MFe","IL TRM v5",0.02,"MFd","IL TRM v5",12000,"Allows for Capacity input in Tons; converts tons to BTUs",null,10,"SEERCAC","IL TRM v5",9.2000000000000011,"EER","IL TRM v5",982,"EFLHcool","The EFLH Cooling and Heating hours are based on a EnergyStar study that was normalized (based on HDD and CDD) to Kansas City. This was for both AC and HP units.",1376,"EFLHheat","The EFLH Cooling and Heating hours are based on a EnergyStar study that was normalized (based on HDD and CDD) to Kansas City. This was for both AC and HP units."," "]
["Whole House Efficiency","Indoor Coil Cleaning_SF:CAC",262.10000000000002,"Single Family","HVAC",null,"per measure",63,{"$f":"ROUND((AT86*AK86*(1/AN86))/1000*AE86,4)","v":44.28},"IL TRM v5",null,0.68,null,{"$f":"ROUND(AK86*(1/AQ86)/1000*AH86*L86,4)","v":1.77E-2},"IL TRM v5",null,null,5,"Sub-measure of HVAC Maintenance and Tune-up"," ",null,"kWh, kW",null,null,{"$f":"cellformula(I86)","v":"=ROUND((AT86*AK86*(1/AN86))/1000*AE86,4)"},{"$f":"cellformula(N86)","v":"=ROUND(AK86*(1/AQ86)/1000*AH86*L86,4)"},"2019-04-01",null,null,null,0.05,"MFe","IL TRM v5",0.02,"MFd","IL TRM v5",12000,"Allows for Capacity input in Tons; converts tons to BTUs",null,10,"SEERCAC","IL TRM v5",9.2000000000000011,"EER","IL TRM v5",738,"EFLHcool","2017 MO TRM",1376,"EFLHheat","The EFLH Cooling and Heating hours are based on a EnergyStar study that was normalized (based on HDD and CDD) to Kansas City. This was for both AC and HP units."," "]
["Whole House Efficiency","Indoor Coil Cleaning_SF:ASHP",263,"Single Family","HVAC",null,"per measure",63,{"$f":"ROUND((AW87*AK87*(1/AN87))/1000*AE87+(AZ87*AK87*(1/AT87))/1000*AE87,4)","v":180.33179999999999},"IL TRM v5",null,0.72,null,1.8800000000000001E-2,"IL TRM v5",null,null,5,"Sub-measure of HVAC Maintenance and Tune-up"," ",null,"kWh, kW",null," ","=ROUND((AW87*AK87*(1/AN87))/1000*AE87+(AZ87*AK87*(1/AT87))/1000*AE87,4)","=ROUND(AK87*(1/AQ87)/1000*AH87*L87,4)","2018-04-01","2019-03-31",null,null,0.05,"MFe","IL TRM v5",0.02,"MFd","IL TRM v5",12000,"Allows for Capacity input in Tons; converts tons to BTUs",null,10,"SEERASHP","IL TRM v5",9.2000000000000011,"EER","IL TRM v5",6.8,"HSPFASHP","IL TRM v5",982,"EFLHcool",null,1376,"EFLHheat","The EFLH Cooling and Heating hours are based on a EnergyStar study that was normalized (based on HDD and CDD) to Kansas City. This was for both AC and HP units."," "]
["Whole House Efficiency","Indoor Coil Cleaning_SF:ASHP",263.10000000000002,"Single Family","HVAC",null,"per measure",63,{"$f":"ROUND((AW88*AK88*(1/AN88))/1000*AE88+(AZ88*AK88*(1/AT88))/1000*AE88,4)","v":165.6918},"IL TRM v5",null,0.72,null,{"$f":"ROUND(AK88*(1/AQ88)/1000*AH88*L88,4)","v":1.8800000000000001E-2},"IL TRM v5",null,null,5,"Sub-measure of HVAC Maintenance and Tune-up"," ",null,"kWh, kW",null," ",{"$f":"cellformula(I88)","v":"=ROUND((AW88*AK88*(1/AN88))/1000*AE88+(AZ88*AK88*(1/AT88))/1000*AE88,4)"},{"$f":"cellformula(N88)","v":"=ROUND(AK88*(1/AQ88)/1000*AH88*L88,4)"},"2019-04-01",null,null,null,0.05,"MFe","IL TRM v5",0.02,"MFd","IL TRM v5",12000,"Allows for Capacity input in Tons; converts tons to BTUs",null,10,"SEERASHP","IL TRM v5",9.2000000000000011,"EER","IL TRM v5",6.8,"HSPFASHP","IL TRM v5",738,"EFLHcool","2017 MO TRM",1376,"EFLHheat","The EFLH Cooling and Heating hours are based on a EnergyStar study that was normalized (based on HDD and CDD) to Kansas City. This was for both AC and HP units."," "]
["Whole House Efficiency","Outdoor Coil Cleaning_SF:CAC",264,"Single Family","HVAC",null,"per measure",31,{"$f":"ROUND((AT89*AK89*(1/AN89))/1000*AE89,4)","v":58.92},"IL TRM v5",null,0.68,null,1.77E-2,"IL TRM v5",null,null,5,"Sub-measure of HVAC Maintenance and Tune-up"," ",null,"kWh, kW",null,null,"=ROUND((AT89*AK89*(1/AN89))/1000*AE89,4)","=ROUND(AK89*(1/AQ89)/1000*AH89*L89,4)","2018-04-01","2019-03-31",null,null,0.05,"MFe","IL TRM v5",0.02,"MFd","IL TRM v5",12000,"Allows for Capacity input in Tons; converts tons to BTUs",null,10,"SEERCAC","IL TRM v5",9.2000000000000011,"EER","IL TRM v5",982,"EFLHcool","The EFLH Cooling and Heating hours are based on a EnergyStar study that was normalized (based on HDD and CDD) to Kansas City. This was for both AC and HP units.",1376,"EFLHheat","The EFLH Cooling and Heating hours are based on a EnergyStar study that was normalized (based on HDD and CDD) to Kansas City. This was for both AC and HP units."," "]
["Whole House Efficiency","Outdoor Coil Cleaning_SF:CAC",264.10000000000002,"Single Family","HVAC",null,"per measure",31,{"$f":"ROUND((AT90*AK90*(1/AN90))/1000*AE90,4)","v":44.28},"IL TRM v5",null,0.68,null,{"$f":"ROUND(AK90*(1/AQ90)/1000*AH90*L90,4)","v":1.77E-2},"IL TRM v5",null,null,5,"Sub-measure of HVAC Maintenance and Tune-up"," ",null,"kWh, kW",null,null,{"$f":"cellformula(I90)","v":"=ROUND((AT90*AK90*(1/AN90))/1000*AE90,4)"},{"$f":"cellformula(N90)","v":"=ROUND(AK90*(1/AQ90)/1000*AH90*L90,4)"},"2019-04-01",null,null,null,0.05,"MFe","IL TRM v5",0.02,"MFd","IL TRM v5",12000,"Allows for Capacity input in Tons; converts tons to BTUs",null,10,"SEERCAC","IL TRM v5",9.2000000000000011,"EER","IL TRM v5",738,"EFLHcool","2017 MO TRM",1376,"EFLHheat","The EFLH Cooling and Heating hours are based on a EnergyStar study that was normalized (based on HDD and CDD) to Kansas City. This was for both AC and HP units."," "]
["Whole House Efficiency","Outdoor Coil Cleaning_SF:ASHP",265,"Single Family","HVAC",null,"per measure",31,{"$f":"ROUND((AW91*AK91*(1/AN91))/1000*AE91+(AZ91*AK91*(1/AT91))/1000*AE91,4)","v":180.33179999999999},"IL TRM v5",null,0.72,null,1.8800000000000001E-2,"IL TRM v5",null,null,5,"Sub-measure of HVAC Maintenance and Tune-up"," ",null,"kWh, kW",null," ","=ROUND((AW91*AK91*(1/AN91))/1000*AE91+(AZ91*AK91*(1/AT91))/1000*AE91,4)","=ROUND(AK91*(1/AQ91)/1000*AH91*L91,4)","2018-04-01","2019-03-31",null,null,0.05,"MFe","IL TRM v5",0.02,"MFd","IL TRM v5",12000,"Allows for Capacity input in Tons; converts tons to BTUs",null,10,"SEERASHP","IL TRM v5",9.2000000000000011,"EER","IL TRM v5",6.8,"HSPFASHP","IL TRM v5",982,"EFLHcool",null,1376,"EFLHheat","The EFLH Cooling and Heating hours are based on a EnergyStar study that was normalized (based on HDD and CDD) to Kansas City. This was for both AC and HP units."," "]
["Whole House Efficiency","Outdoor Coil Cleaning_SF:ASHP",265.10000000000002,"Single Family","HVAC",null,"per measure",31,{"$f":"ROUND((AW92*AK92*(1/AN92))/1000*AE92+(AZ92*AK92*(1/AT92))/1000*AE92,4)","v":165.6918},"IL TRM v5",null,0.72,null,{"$f":"ROUND(AK92*(1/AQ92)/1000*AH92*L92,4)","v":1.8800000000000001E-2},"IL TRM v5",null,null,5,"Sub-measure of HVAC Maintenance and Tune-up"," ",null,"kWh, kW",null," ",{"$f":"cellformula(I92)","v":"=ROUND((AW92*AK92*(1/AN92))/1000*AE92+(AZ92*AK92*(1/AT92))/1000*AE92,4)"},{"$f":"cellformula(N92)","v":"=ROUND(AK92*(1/AQ92)/1000*AH92*L92,4)"},"2019-04-01",null,null,null,0.05,"MFe","IL TRM v5",0.02,"MFd","IL TRM v5",12000,"Allows for Capacity input in Tons; converts tons to BTUs",null,10,"SEERASHP","IL TRM v5",9.2000000000000011,"EER","IL TRM v5",6.8,"HSPFASHP","IL TRM v5",738,"EFLHcool","2017 MO TRM",1376,"EFLHheat","The EFLH Cooling and Heating hours are based on a EnergyStar study that was normalized (based on HDD and CDD) to Kansas City. This was for both AC and HP units."," "]
["Whole House Efficiency","Refrigerant Charge Adjustment (RCA)_SF: CAC",266,"Single Family","HVAC",null,"per measure",127,{"$f":"ROUND((AT93*AK93*(1/AN93))/1000*AE93,4)","v":58.92},"IL TRM v5",null,0.68,null,1.77E-2,"IL TRM v5",null,null,5,"Sub-measure of HVAC Maintenance and Tune-up"," ",null,"kWh, kW",null,null,"=ROUND((AT93*AK93*(1/AN93))/1000*AE93,4)","=ROUND(AK93*(1/AQ93)/1000*AH93*L93,4)","2018-04-01","2019-03-31",null,null,0.05,"MFe","IL TRM v5",0.02,"MFd","IL TRM v5",12000,"Allows for Capacity input in Tons; converts tons to BTUs",null,10,"SEERCAC","IL TRM v5",9.2000000000000011,"EER","IL TRM v5",982,"EFLHcool","The EFLH Cooling and Heating hours are based on a EnergyStar study that was normalized (based on HDD and CDD) to Kansas City. This was for both AC and HP units.",1376,"EFLHheat","The EFLH Cooling and Heating hours are based on a EnergyStar study that was normalized (based on HDD and CDD) to Kansas City. This was for both AC and HP units."," "]
["Whole House Efficiency","Refrigerant Charge Adjustment (RCA)_SF: CAC",266.10000000000002,"Single Family","HVAC",null,"per measure",127,{"$f":"ROUND((AT94*AK94*(1/AN94))/1000*AE94,4)","v":44.28},"IL TRM v5",null,0.68,null,{"$f":"ROUND(AK94*(1/AQ94)/1000*AH94*L94,4)","v":1.77E-2},"IL TRM v5",null,null,5,"Sub-measure of HVAC Maintenance and Tune-up"," ",null,"kWh, kW",null,null,{"$f":"cellformula(I94)","v":"=ROUND((AT94*AK94*(1/AN94))/1000*AE94,4)"},{"$f":"cellformula(N94)","v":"=ROUND(AK94*(1/AQ94)/1000*AH94*L94,4)"},"2019-04-01",null,null,null,0.05,"MFe","IL TRM v5",0.02,"MFd","IL TRM v5",12000,"Allows for Capacity input in Tons; converts tons to BTUs",null,10,"SEERCAC","IL TRM v5",9.2000000000000011,"EER","IL TRM v5",738,"EFLHcool","2017 MO TRM",1376,"EFLHheat","The EFLH Cooling and Heating hours are based on a EnergyStar study that was normalized (based on HDD and CDD) to Kansas City. This was for both AC and HP units."," "]
["Whole House Efficiency","Refrigerant Charge Adjustment (RCA)_SF: ASHP",267,"Single Family","HVAC",null,"per measure",127,{"$f":"ROUND((AW95*AK95*(1/AN95))/1000*AE95+(AZ95*AK95*(1/AT95))/1000*AE95,4)","v":180.33179999999999},"IL TRM v5",null,0.72,null,1.8800000000000001E-2,"IL TRM v5",null,null,5,"Sub-measure of HVAC Maintenance and Tune-up"," ",null,"kWh, kW",null," ","=ROUND((AW95*AK95*(1/AN95))/1000*AE95+(AZ95*AK95*(1/AT95))/1000*AE95,4)","=ROUND(AK95*(1/AQ95)/1000*AH95*L95,4)","2018-04-01","2019-03-31",null,null,0.05,"MFe","IL TRM v5",0.02,"MFd","IL TRM v5",12000,"Allows for Capacity input in Tons; converts tons to BTUs",null,10,"SEERASHP","IL TRM v5",9.2000000000000011,"EER","IL TRM v5",6.8,"HSPFASHP","IL TRM v5",982,"EFLHcool",null,1376,"EFLHheat","The EFLH Cooling and Heating hours are based on a EnergyStar study that was normalized (based on HDD and CDD) to Kansas City. This was for both AC and HP units."," "]
["Whole House Efficiency","Refrigerant Charge Adjustment (RCA)_SF: ASHP",267.10000000000002,"Single Family","HVAC",null,"per measure",127,{"$f":"ROUND((AW96*AK96*(1/AN96))/1000*AE96+(AZ96*AK96*(1/AT96))/1000*AE96,4)","v":165.6918},"IL TRM v5",null,0.72,null,{"$f":"ROUND(AK96*(1/AQ96)/1000*AH96*L96,4)","v":1.8800000000000001E-2},"IL TRM v5",null,null,5,"Sub-measure of HVAC Maintenance and Tune-up"," ",null,"kWh, kW",null," ",{"$f":"cellformula(I96)","v":"=ROUND((AW96*AK96*(1/AN96))/1000*AE96+(AZ96*AK96*(1/AT96))/1000*AE96,4)"},{"$f":"cellformula(N96)","v":"=ROUND(AK96*(1/AQ96)/1000*AH96*L96,4)"},"2019-04-01",null,null,null,0.05,"MFe","IL TRM v5",0.02,"MFd","IL TRM v5",12000,"Allows for Capacity input in Tons; converts tons to BTUs",null,10,"SEERASHP","IL TRM v5",9.2000000000000011,"EER","IL TRM v5",6.8,"HSPFASHP","IL TRM v5",738,"EFLHcool","2017 MO TRM",1376,"EFLHheat","The EFLH Cooling and Heating hours are based on a EnergyStar study that was normalized (based on HDD and CDD) to Kansas City. This was for both AC and HP units."," "]
["Whole House Efficiency","HVAC Maintenance and Tune-up_SF: CAC",238,"Single Family","HVAC",null,"per measure",70,{"$f":"ROUND(173.9,4)","v":173.9},null,1.6500000000000001E-2,0.68,null,{"$f":"ROUND(K97*L97,4)","v":1.12E-2},null,8640,null,5,"Sub-measure of HVAC Maintenance and Tune-up","N/A",null,"kWh, kW","N/A",null,"=ROUND(173.9,4)","=ROUND(K97*L97,4)","2017-04-07","2019-03-31",3020,4470]
["Whole House Efficiency","HVAC Maintenance and Tune-up_SF: CAC",238.1,"Single Family","HVAC",null,"per measure",70,{"$f":"ROUND(173.9,4)","v":173.9},null,1.6500000000000001E-2,0.68,null,{"$f":"ROUND(K98*L98,4)","v":1.12E-2},null,8640,null,5,"Sub-measure of HVAC Maintenance and Tune-up","N/A",null,"kWh, kW","N/A",null,{"$f":"cellformula(I98)","v":"=ROUND(173.9,4)"},{"$f":"cellformula(N98)","v":"=ROUND(K98*L98,4)"},"2019-04-01",null,3020,4470]
["Whole House Efficiency","GSHP - Early Replacement GSHP_SF: HVAC, replace ASHP",239.1,"Single Family","HVAC",null,"per unit",4859,{"$f":"ROUND(((BC99*AE99*(1/W99)-(1/T99))/1000)+((BF99*AE99*(1/AH99)-(1/(AK99*3.412)))/1000)+((AN99*AQ99*(1/AT99)*AW99)/1000),4)","v":6554.2619000000004},"IL TRM v5",{"$f":"I99/P99","v":6.6744011201629334},0.72,"IL TRM v5",{"$f":"ROUND(((AE99*(1/AZ99)-(1/T99))/1000)*L99,4)","v":1.0105},"IL TRM v5",982,"EFLHcool, from PY2016 analysis\n(Normalized EnergyStar KC Cooling Hours to IL TRM CDD)",18,"Part Load EER Efficiency of efficient GSHP unit",23,"Not verified.","SEER Efficiency of existing cooling unit\n= Actual, if available",8.5500000000000007,"IL TRM v5","=ROUND(((BC99*AE99*(1/W99)-(1/T99))/1000)+((BF99*AE99*(1/AH99)-(1/(AK99*3.412)))/1000)+((AN99*AQ99*(1/AT99)*AW99)/1000),4)","=ROUND(((AE99*(1/AZ99)-(1/T99))/1000)*L99,4)","2018-04-01","2019-03-31",null,null,12000,"Allows for Capacity input in Tons; converts tons to BTUs"," ",5.44,"HSPFexist = Heating System Performance Factor of existing heating system\n5.44 for replacing ASHP\n3.41 for replacing Electric Resistance Heat","IL TRM v5",4.5,"COPpl = Part Load Coefficient of Performance, Actual installed value","This example value is the mean of values listed in ENERGY STAR criteria here: https://www.energystar.gov/index.cfm?c=most_efficient.me_geothermal_heat_pumps , https://data.energystar.gov/Active-Specifications/ENERGY-STAR-Most-Efficient-Geothermal-Heat-Pumps/4c82-7ysy . \nIdeally this value would come from the specs of the actual unit installed.",1,"ElecDHW:\n= 1 if HW system is electric\n= 0 if HW system is not electric","IL TRM v5",0.44,"%DHWdisplaced = Percentage of total DHW load the GSHP will provide.\n= Actual, if known\n= 0% if no desuperheater installed\n= 44% if desuperheater installed and actual is unknown","IL TRM v5",2.0004999999999997,"Efelec = Energy Factor of electric WH.\n= Actual, if known\n= 0.96 – (0.0003 * rated volume in gallons) for 55+ gallon DHW\n= 2.057 – (0.00113 * rated volume in gallons) for < 55 gallon DHW","IL TRM v5",9732988.4467200004,"GSHP Coefficient\n= GPD * Household * 365.25 * γWater * (Tout - Tin)","IL TRM v5",8.5500000000000007,"Energy Efficiency Ratio of existing cooling unit\n= Actual, if available\n= 8.55 for replacing ASHP\n= 8.15 for replacing Central AC","IL TRM v5",982,"EFLHcool","The EFLH Cooling and Heating hours are based on a EnergyStar study that was normalized (based on HDD and CDD) to Kansas City. This was for both AC and HP units.",1376,"EFLHheat","The EFLH Cooling and Heating hours are based on a EnergyStar study that was normalized (based on HDD and CDD) to Kansas City. This was for both AC and HP units."," "]
["Whole House Efficiency","GSHP - Early Replacement GSHP_SF: HVAC, replace ASHP",239.2,"Single Family","HVAC",null,"per unit",4859,{"$f":"ROUND(((BC100*AE100*(1/W100)-(1/T100))/1000)+((BF100*AE100*(1/AH100)-(1/(AK100*3.412)))/1000)+((AN100*AQ100*(1/AT100)*AW100)/1000),4)","v":6211.8058000000001},"IL TRM v5",{"$f":"I100/P100","v":8.4170810298102978},0.72,"IL TRM v5",{"$f":"ROUND(((AE100*(1/AZ100)-(1/T100))/1000)*L100,4)","v":1.0105},"IL TRM v5",738,"EFLHcool, from 2017 MO TRM",18,"Part Load EER Efficiency of efficient GSHP unit",23,"Not verified.","SEER Efficiency of existing cooling unit\n= Actual, if available",8.5500000000000007,"IL TRM v5",{"$f":"cellformula(I100)","v":"=ROUND(((BC100*AE100*(1/W100)-(1/T100))/1000)+((BF100*AE100*(1/AH100)-(1/(AK100*3.412)))/1000)+((AN100*AQ100*(1/AT100)*AW100)/1000),4)"},{"$f":"cellformula(N100)","v":"=ROUND(((AE100*(1/AZ100)-(1/T100))/1000)*L100,4)"},"2019-04-01",null,null,null,12000,"Allows for Capacity input in Tons; converts tons to BTUs"," ",5.44,"HSPFexist = Heating System Performance Factor of existing heating system\n5.44 for replacing ASHP\n3.41 for replacing Electric Resistance Heat","IL TRM v5",4.5,"COPpl = Part Load Coefficient of Performance, Actual installed value","This example value is the mean of values listed in ENERGY STAR criteria here: https://www.energystar.gov/index.cfm?c=most_efficient.me_geothermal_heat_pumps , https://data.energystar.gov/Active-Specifications/ENERGY-STAR-Most-Efficient-Geothermal-Heat-Pumps/4c82-7ysy . \nIdeally this value would come from the specs of the actual unit installed.",1,"ElecDHW:\n= 1 if HW system is electric\n= 0 if HW system is not electric","IL TRM v5",0.44,"%DHWdisplaced = Percentage of total DHW load the GSHP will provide.\n= Actual, if known\n= 0% if no desuperheater installed\n= 44% if desuperheater installed and actual is unknown","IL TRM v5",2.0004999999999997,"Efelec = Energy Factor of electric WH.\n= Actual, if known\n= 0.96 – (0.0003 * rated volume in gallons) for 55+ gallon DHW\n= 2.057 – (0.00113 * rated volume in gallons) for < 55 gallon DHW","IL TRM v5",9732988.4467200004,"GSHP Coefficient\n= GPD * Household * 365.25 * γWater * (Tout - Tin)","IL TRM v5",8.5500000000000007,"Energy Efficiency Ratio of existing cooling unit\n= Actual, if available\n= 8.55 for replacing ASHP\n= 8.15 for replacing Central AC","IL TRM v5",738,"EFLHcool","2017 MO TRM",1376,"EFLHheat","The EFLH Cooling and Heating hours are based on a EnergyStar study that was normalized (based on HDD and CDD) to Kansas City. This was for both AC and HP units."," "]
["Whole House Efficiency","GSHP - Replace at Fail GSHP_SF: HVAC",240.1,"Single Family","HVAC",null,"per unit",3200,{"$f":"ROUND(((BC101*AE101*(1/W101)-(1/T101))/1000)+((BF101*AE101*(1/AH101)-(1/(AK101*3.412)))/1000)+((AN101*AQ101*(1/AT101)*AW101)/1000),4)","v":5225.6534000000001},"IL TRM v5",{"$f":"I101/P101","v":5.3214393075356421},0.72,"IL TRM v5",{"$f":"ROUND(((AE101*(1/AZ101)-(1/T101))/1000)*L101,4)","v":0.73219999999999996},"IL TRM v5",982,"EFLHcool, from PY2016 analysis\n(Normalized EnergyStar KC Cooling Hours to IL TRM CDD)",18,"Part Load EER Efficiency of efficient GSHP unit",23,"Not verified.","GSHP replacing Failed GSHP – 23 EER minimum (EER)",11,"IL TRM v5","=ROUND(((BC101*AE101*(1/W101)-(1/T101))/1000)+((BF101*AE101*(1/AH101)-(1/(AK101*3.412)))/1000)+((AN101*AQ101*(1/AT101)*AW101)/1000),4)","=ROUND(((AE101*(1/AZ101)-(1/T101))/1000)*L101,4)","2018-04-01","2019-03-31",null,null,12000,"Allows for Capacity input in Tons; converts tons to BTUs"," ",8.1999999999999993,"HSPFbase = Heating System Performance Factor of new replacement baseline heating system\n8.2 for replacing ASHP\n3.41 for replacing Electric Resistance Heat","IL TRM v5",4.5,"COPpl = Part Load Coefficient of Performance, Actual installed value","This example value is the mean of values listed in ENERGY STAR criteria here: https://www.energystar.gov/index.cfm?c=most_efficient.me_geothermal_heat_pumps , https://data.energystar.gov/Active-Specifications/ENERGY-STAR-Most-Efficient-Geothermal-Heat-Pumps/4c82-7ysy . \nIdeally this value would come from the specs of the actual unit installed.",1,"ElecDHW:\n= 1 if HW system is electric\n= 0 if HW system is not electric","IL TRM v5",0.44,"%DHWdisplaced = Percentage of total DHW load the GSHP will provide.\n= Actual, if known\n= 0% if no desuperheater installed\n= 44% if desuperheater installed and actual is unknown","IL TRM v5",2.0004999999999997,"Efelec = Energy Factor of electric WH.\n= Actual, if known\n= 0.96 – (0.0003 * rated volume in gallons) for 55+ gallon DHW\n= 2.057 – (0.00113 * rated volume in gallons) for < 55 gallon DHW","IL TRM v5",9732988.4467200004,"GSHP Coefficient\n= GPD * Household * 365.25 * γWater * (Tout - Tin)","IL TRM v5",11.8,"EER Efficiency of new replacement ASHP","IL TRM v5",982,"EFLHcool","The EFLH Cooling and Heating hours are based on a EnergyStar study that was normalized (based on HDD and CDD) to Kansas City. This was for both AC and HP units.",1376,"EFLHheat","The EFLH Cooling and Heating hours are based on a EnergyStar study that was normalized (based on HDD and CDD) to Kansas City. This was for both AC and HP units."," "]
["Whole House Efficiency","GSHP - Replace at Fail GSHP_SF: HVAC",240.2,"Single Family","HVAC",null,"per measure",3200,{"$f":"ROUND(((BC102*AE102*(1/W102)-(1/T102))/1000)+((BF102*AE102*(1/AH102)-(1/(AK102*3.412)))/1000)+((AN102*AQ102*(1/AT102)*AW102)/1000),4)","v":4959.4715999999999},"IL TRM v5",{"$f":"I102/P102","v":6.7201512195121946},0.72,"IL TRM v5",{"$f":"ROUND(((AE102*(1/AZ102)-(1/T102))/1000)*L102,4)","v":0.73219999999999996},"IL TRM v5",738,"EFLHcool, from 2017 MO TRM",18,"Part Load EER Efficiency of efficient GSHP unit",23,"Not verified.","GSHP replacing Failed GSHP – 23 EER minimum (EER)",11,"IL TRM v5",{"$f":"cellformula(I102)","v":"=ROUND(((BC102*AE102*(1/W102)-(1/T102))/1000)+((BF102*AE102*(1/AH102)-(1/(AK102*3.412)))/1000)+((AN102*AQ102*(1/AT102)*AW102)/1000),4)"},{"$f":"cellformula(N102)","v":"=ROUND(((AE102*(1/AZ102)-(1/T102))/1000)*L102,4)"},"2019-04-01",null,null,null,12000,"Allows for Capacity input in Tons; converts tons to BTUs"," ",8.1999999999999993,"HSPFbase = Heating System Performance Factor of new replacement baseline heating system\n8.2 for replacing ASHP\n3.41 for replacing Electric Resistance Heat","IL TRM v5",4.5,"COPpl = Part Load Coefficient of Performance, Actual installed value","This example value is the mean of values listed in ENERGY STAR criteria here: https://www.energystar.gov/index.cfm?c=most_efficient.me_geothermal_heat_pumps , https://data.energystar.gov/Active-Specifications/ENERGY-STAR-Most-Efficient-Geothermal-Heat-Pumps/4c82-7ysy . \nIdeally this value would come from the specs of the actual unit installed.",1,"ElecDHW:\n= 1 if HW system is electric\n= 0 if HW system is not electric","IL TRM v5",0.44,"%DHWdisplaced = Percentage of total DHW load the GSHP will provide.\n= Actual, if known\n= 0% if no desuperheater installed\n= 44% if desuperheater installed and actual is unknown","IL TRM v5",2.0004999999999997,"Efelec = Energy Factor of electric WH.\n= Actual, if known\n= 0.96 – (0.0003 * rated volume in gallons) for 55+ gallon DHW\n= 2.057 – (0.00113 * rated volume in gallons) for < 55 gallon DHW","IL TRM v5",9732988.4467200004,"GSHP Coefficient\n= GPD * Household * 365.25 * γWater * (Tout - Tin)","IL TRM v5",11.8,"EER Efficiency of new replacement ASHP","IL TRM v5",738,"EFLHcool","2017 MO TRM",1376,"EFLHheat","The EFLH Cooling and Heating hours are based on a EnergyStar study that was normalized (based on HDD and CDD) to Kansas City. This was for both AC and HP units."," "]
["Whole House Efficiency","GSHP - AC + Early Replacement Electric Resistance Furnace_SF: HVAC",241.1,"Single Family","HVAC",null,"per unit",5250,{"$f":"ROUND(((BC103*AE103*(1/W103)-(1/T103))/1000)+((BF103*AE103*(1/AH103)-(1/(AK103*3.412)))/1000)+((AN103*AQ103*(1/AT103)*AW103)/1000),4)","v":8428.8405000000002},"IL TRM v5",{"$f":"I103/P103","v":8.5833406313645622},0.72,"IL TRM v5",{"$f":"ROUND(((AE103*(1/AZ103)-(1/T103))/1000)*L103,4)","v":1.0601},null,982,"EFLHcool, from PY2016 analysis\n(Normalized EnergyStar KC Cooling Hours to IL TRM CDD)",18,"Part Load EER Efficiency of efficient GSHP unit",23,"Not verified.","SEER Efficiency of existing cooling unit\n= Actual, if available",8.15,"IL TRM v5","=ROUND(((BC103*AE103*(1/W103)-(1/T103))/1000)+((BF103*AE103*(1/AH103)-(1/(AK103*3.412)))/1000)+((AN103*AQ103*(1/AT103)*AW103)/1000),4)","=ROUND(((AE103*(1/AZ103)-(1/T103))/1000)*L103,4)","2018-04-01","2019-03-31",null,null,12000,"Allows for Capacity input in Tons; converts tons to BTUs"," ",3.41,"HSPFexist = Heating System Performance Factor of existing heating system\n5.44 for replacing ASHP\n3.41 for replacing Electric Resistance Heat","IL TRM v5",4.5,"COPpl = Part Load Coefficient of Performance, Actual installed value","This example value is the mean of values listed in ENERGY STAR criteria here: https://www.energystar.gov/index.cfm?c=most_efficient.me_geothermal_heat_pumps , https://data.energystar.gov/Active-Specifications/ENERGY-STAR-Most-Efficient-Geothermal-Heat-Pumps/4c82-7ysy . \nIdeally this value would come from the specs of the actual unit installed.",1,"ElecDHW:\n= 1 if HW system is electric\n= 0 if HW system is not electric","IL TRM v5",0.44,"%DHWdisplaced = Percentage of total DHW load the GSHP will provide.\n= Actual, if known\n= 0% if no desuperheater installed\n= 44% if desuperheater installed and actual is unknown","IL TRM v5",2.0004999999999997,"Efelec = Energy Factor of electric WH.\n= Actual, if known\n= 0.96 – (0.0003 * rated volume in gallons) for 55+ gallon DHW\n= 2.057 – (0.00113 * rated volume in gallons) for < 55 gallon DHW","IL TRM v5",9732988.4467200004,"GSHP Coefficient\n= GPD * Household * 365.25 * γWater * (Tout - Tin)","IL TRM v5",8.15,"Energy Efficiency Ratio of existing cooling unit\n= Actual, if available\n= 8.55 for replacing ASHP\n= 8.15 for replacing Central AC","IL TRM v5",982,"EFLHcool","The EFLH Cooling and Heating hours are based on a EnergyStar study that was normalized (based on HDD and CDD) to Kansas City. This was for both AC and HP units.",1376,"EFLHheat","The EFLH Cooling and Heating hours are based on a EnergyStar study that was normalized (based on HDD and CDD) to Kansas City. This was for both AC and HP units."," "]
["Whole House Efficiency","GSHP - AC + Early Replacement Electric Resistance Furnace_SF: HVAC",241.2,"Single Family","HVAC",null,"per unit",5250,{"$f":"ROUND(((BC104*AE104*(1/W104)-(1/T104))/1000)+((BF104*AE104*(1/AH104)-(1/(AK104*3.412)))/1000)+((AN104*AQ104*(1/AT104)*AW104)/1000),4)","v":8069.5766999999996},"IL TRM v5",{"$f":"I104/P104","v":10.934385772357723},0.72,"IL TRM v5",{"$f":"ROUND(((AE104*(1/AZ104)-(1/T104))/1000)*L104,4)","v":1.0601},null,738,"EFLHcool, from 2017 MO TRM",18,"Part Load EER Efficiency of efficient GSHP unit",23,"Not verified.","SEER Efficiency of existing cooling unit\n= Actual, if available",8.15,"IL TRM v5",{"$f":"cellformula(I104)","v":"=ROUND(((BC104*AE104*(1/W104)-(1/T104))/1000)+((BF104*AE104*(1/AH104)-(1/(AK104*3.412)))/1000)+((AN104*AQ104*(1/AT104)*AW104)/1000),4)"},{"$f":"cellformula(N104)","v":"=ROUND(((AE104*(1/AZ104)-(1/T104))/1000)*L104,4)"},"2019-04-01",null,null,null,12000,"Allows for Capacity input in Tons; converts tons to BTUs"," ",3.41,"HSPFexist = Heating System Performance Factor of existing heating system\n5.44 for replacing ASHP\n3.41 for replacing Electric Resistance Heat","IL TRM v5",4.5,"COPpl = Part Load Coefficient of Performance, Actual installed value","This example value is the mean of values listed in ENERGY STAR criteria here: https://www.energystar.gov/index.cfm?c=most_efficient.me_geothermal_heat_pumps , https://data.energystar.gov/Active-Specifications/ENERGY-STAR-Most-Efficient-Geothermal-Heat-Pumps/4c82-7ysy . \nIdeally this value would come from the specs of the actual unit installed.",1,"ElecDHW:\n= 1 if HW system is electric\n= 0 if HW system is not electric","IL TRM v5",0.44,"%DHWdisplaced = Percentage of total DHW load the GSHP will provide.\n= Actual, if known\n= 0% if no desuperheater installed\n= 44% if desuperheater installed and actual is unknown","IL TRM v5",2.0004999999999997,"Efelec = Energy Factor of electric WH.\n= Actual, if known\n= 0.96 – (0.0003 * rated volume in gallons) for 55+ gallon DHW\n= 2.057 – (0.00113 * rated volume in gallons) for < 55 gallon DHW","IL TRM v5",9732988.4467200004,"GSHP Coefficient\n= GPD * Household * 365.25 * γWater * (Tout - Tin)","IL TRM v5",8.15,"Energy Efficiency Ratio of existing cooling unit\n= Actual, if available\n= 8.55 for replacing ASHP\n= 8.15 for replacing Central AC","IL TRM v5",738,"EFLHcool","2017 MO TRM",1376,"EFLHheat","The EFLH Cooling and Heating hours are based on a EnergyStar study that was normalized (based on HDD and CDD) to Kansas City. This was for both AC and HP units."," "]
["Whole House Efficiency","GSHP - AC + Replace at Fail Electric Resistance Furnace_SF: HVAC",242.1,"Single Family","HVAC",null,"per unit",4717,{"$f":"ROUND(((BC105*AE105*(1/W105)-(1/T105))/1000)+((BF105*AE105*(1/AH105)-(1/(AK105*3.412)))/1000)+((AN105*AQ105*(1/AT105)*AW105)/1000),4)","v":8054.2236000000003},"IL TRM v5",{"$f":"I105/P105","v":8.2018570264765795},0.72,"IL TRM v5",{"$f":"ROUND(((AE105*(1/AZ105)-(1/T105))/1000)*L105,4)","v":0.78539999999999999},"IL TRM v5",982,"EFLHcool, from PY2016 analysis\n(Normalized EnergyStar KC Cooling Hours to IL TRM CDD)",18,"Part Load EER Efficiency of efficient GSHP unit",23,"Not verified.","GSHP replacing failed AC w/ electric furnace – 23 EER minimum (EER)",11,"IL TRM v5","=ROUND(((BC105*AE105*(1/W105)-(1/T105))/1000)+((BF105*AE105*(1/AH105)-(1/(AK105*3.412)))/1000)+((AN105*AQ105*(1/AT105)*AW105)/1000),4)","=ROUND(((AE105*(1/AZ105)-(1/T105))/1000)*L105,4)","2018-04-01","2019-03-31",null,null,12000,"Allows for Capacity input in Tons; converts tons to BTUs"," ",3.41,"HSPFbase = Heating System Performance Factor of new replacement baseline heating system\n8.2 for replacing ASHP\n3.41 for replacing Electric Resistance Heat","IL TRM v5",4.5,"COPpl = Part Load Coefficient of Performance, Actual installed value","This example value is the mean of values listed in ENERGY STAR criteria here: https://www.energystar.gov/index.cfm?c=most_efficient.me_geothermal_heat_pumps , https://data.energystar.gov/Active-Specifications/ENERGY-STAR-Most-Efficient-Geothermal-Heat-Pumps/4c82-7ysy . \nIdeally this value would come from the specs of the actual unit installed.",1,"ElecDHW:\n= 1 if HW system is electric\n= 0 if HW system is not electric","IL TRM v5",0.44,"%DHWdisplaced = Percentage of total DHW load the GSHP will provide.\n= Actual, if known\n= 0% if no desuperheater installed\n= 44% if desuperheater installed and actual is unknown","IL TRM v5",2.0004999999999997,"Efelec = Energy Factor of electric WH.\n= Actual, if known\n= 0.96 – (0.0003 * rated volume in gallons) for 55+ gallon DHW\n= 2.057 – (0.00113 * rated volume in gallons) for < 55 gallon DHW","IL TRM v5",9732988.4467200004,"GSHP Coefficient\n= GPD * Household * 365.25 * γWater * (Tout - Tin)","IL TRM v5",11,"EER Efficiency of new replacement Central AC","IL TRM v5",982,"EFLHcool","The EFLH Cooling and Heating hours are based on a EnergyStar study that was normalized (based on HDD and CDD) to Kansas City. This was for both AC and HP units.",1376,"EFLHheat","The EFLH Cooling and Heating hours are based on a EnergyStar study that was normalized (based on HDD and CDD) to Kansas City. This was for both AC and HP units."," "]
["Whole House Efficiency","GSHP - AC + Replace at Fail Electric Resistance Furnace_SF: HVAC",242.2,"Single Family","HVAC",null,"per unit",4717,{"$f":"ROUND(((BC106*AE106*(1/W106)-(1/T106))/1000)+((BF106*AE106*(1/AH106)-(1/(AK106*3.412)))/1000)+((AN106*AQ106*(1/AT106)*AW106)/1000),4)","v":7788.0418},"IL TRM v5",{"$f":"I106/P106","v":10.55290216802168},0.72,"IL TRM v5",{"$f":"ROUND(((AE106*(1/AZ106)-(1/T106))/1000)*L106,4)","v":0.78539999999999999},"IL TRM v5",738,"EFLHcool, from 2017 MO TRM",18,"Part Load EER Efficiency of efficient GSHP unit",23,"Not verified.","GSHP replacing failed AC w/ electric furnace – 23 EER minimum (EER)",11,"IL TRM v5",{"$f":"cellformula(I106)","v":"=ROUND(((BC106*AE106*(1/W106)-(1/T106))/1000)+((BF106*AE106*(1/AH106)-(1/(AK106*3.412)))/1000)+((AN106*AQ106*(1/AT106)*AW106)/1000),4)"},{"$f":"cellformula(N106)","v":"=ROUND(((AE106*(1/AZ106)-(1/T106))/1000)*L106,4)"},"2019-04-01",null,null,null,12000,"Allows for Capacity input in Tons; converts tons to BTUs"," ",3.41,"HSPFbase = Heating System Performance Factor of new replacement baseline heating system\n8.2 for replacing ASHP\n3.41 for replacing Electric Resistance Heat","IL TRM v5",4.5,"COPpl = Part Load Coefficient of Performance, Actual installed value","This example value is the mean of values listed in ENERGY STAR criteria here: https://www.energystar.gov/index.cfm?c=most_efficient.me_geothermal_heat_pumps , https://data.energystar.gov/Active-Specifications/ENERGY-STAR-Most-Efficient-Geothermal-Heat-Pumps/4c82-7ysy . \nIdeally this value would come from the specs of the actual unit installed.",1,"ElecDHW:\n= 1 if HW system is electric\n= 0 if HW system is not electric","IL TRM v5",0.44,"%DHWdisplaced = Percentage of total DHW load the GSHP will provide.\n= Actual, if known\n= 0% if no desuperheater installed\n= 44% if desuperheater installed and actual is unknown","IL TRM v5",2.0004999999999997,"Efelec = Energy Factor of electric WH.\n= Actual, if known\n= 0.96 – (0.0003 * rated volume in gallons) for 55+ gallon DHW\n= 2.057 – (0.00113 * rated volume in gallons) for < 55 gallon DHW","IL TRM v5",9732988.4467200004,"GSHP Coefficient\n= GPD * Household * 365.25 * γWater * (Tout - Tin)","IL TRM v5",11,"EER Efficiency of new replacement Central AC","IL TRM v5",738,"EFLHcool","2017 MO TRM",1376,"EFLHheat","The EFLH Cooling and Heating hours are based on a EnergyStar study that was normalized (based on HDD and CDD) to Kansas City. This was for both AC and HP units."," "]
["Whole House Efficiency","GSHP - ASHP + Early Replacement _SF: HVAC",243.1,"Single Family","HVAC",null,"per unit",5250,{"$f":"ROUND(((BC107*AE107*(1/W107)-(1/T107))/1000)+((BF107*AE107*(1/AH107)-(1/(AK107*3.412)))/1000)+((AN107*AQ107*(1/AT107)*AW107)/1000),4)","v":6554.2619000000004},"IL TRM v5",{"$f":"I107/P107","v":6.6744011201629334},0.72,"IL TRM v5",{"$f":"ROUND(((AE107*(1/AZ107)-(1/T107))/1000)*L107,4)","v":1.0105},null,982,"EFLHcool, from PY2016 analysis\n(Normalized EnergyStar KC Cooling Hours to IL TRM CDD)",18,"Part Load EER Efficiency of efficient GSHP unit",23,"Not verified.","SEER Efficiency of existing cooling unit\n= Actual, if available",8.5500000000000007,"IL TRM v5","=ROUND(((BC107*AE107*(1/W107)-(1/T107))/1000)+((BF107*AE107*(1/AH107)-(1/(AK107*3.412)))/1000)+((AN107*AQ107*(1/AT107)*AW107)/1000),4)","=ROUND(((AE107*(1/AZ107)-(1/T107))/1000)*L107,4)","2018-04-01","2019-03-31",null,null,12000,"Allows for Capacity input in Tons; converts tons to BTUs"," ",5.44,"HSPFexist = Heating System Performance Factor of existing heating system\n5.44 for replacing ASHP\n3.41 for replacing Electric Resistance Heat","IL TRM v5",4.5,"COPpl = Part Load Coefficient of Performance, Actual installed value","This example value is the mean of values listed in ENERGY STAR criteria here: https://www.energystar.gov/index.cfm?c=most_efficient.me_geothermal_heat_pumps , https://data.energystar.gov/Active-Specifications/ENERGY-STAR-Most-Efficient-Geothermal-Heat-Pumps/4c82-7ysy . \nIdeally this value would come from the specs of the actual unit installed.",1,"ElecDHW:\n= 1 if HW system is electric\n= 0 if HW system is not electric","IL TRM v5",0.44,"%DHWdisplaced = Percentage of total DHW load the GSHP will provide.\n= Actual, if known\n= 0% if no desuperheater installed\n= 44% if desuperheater installed and actual is unknown","IL TRM v5",2.0004999999999997,"Efelec = Energy Factor of electric WH.\n= Actual, if known\n= 0.96 – (0.0003 * rated volume in gallons) for 55+ gallon DHW\n= 2.057 – (0.00113 * rated volume in gallons) for < 55 gallon DHW","IL TRM v5",9732988.4467200004,"GSHP Coefficient\n= GPD * Household * 365.25 * γWater * (Tout - Tin)","IL TRM v5",8.5500000000000007,"Energy Efficiency Ratio of existing cooling unit\n= Actual, if available\n= 8.55 for replacing ASHP\n= 8.15 for replacing Central AC","IL TRM v5",982,"EFLHcool","The EFLH Cooling and Heating hours are based on a EnergyStar study that was normalized (based on HDD and CDD) to Kansas City. This was for both AC and HP units.",1376,"EFLHheat","The EFLH Cooling and Heating hours are based on a EnergyStar study that was normalized (based on HDD and CDD) to Kansas City. This was for both AC and HP units."," "]
["Whole House Efficiency","GSHP - ASHP + Early Replacement _SF: HVAC",243.2,"Single Family","HVAC",null,"per unit",5250,{"$f":"ROUND(((BC108*AE108*(1/W108)-(1/T108))/1000)+((BF108*AE108*(1/AH108)-(1/(AK108*3.412)))/1000)+((AN108*AQ108*(1/AT108)*AW108)/1000),4)","v":6211.8058000000001},"IL TRM v5",{"$f":"I108/P108","v":8.4170810298102978},0.72,"IL TRM v5",{"$f":"ROUND(((AE108*(1/AZ108)-(1/T108))/1000)*L108,4)","v":1.0105},null,738,"EFLHcool, from 2017 MO TRM",18,"Part Load EER Efficiency of efficient GSHP unit",23,"Not verified.","SEER Efficiency of existing cooling unit\n= Actual, if available",8.5500000000000007,"IL TRM v5",{"$f":"cellformula(I108)","v":"=ROUND(((BC108*AE108*(1/W108)-(1/T108))/1000)+((BF108*AE108*(1/AH108)-(1/(AK108*3.412)))/1000)+((AN108*AQ108*(1/AT108)*AW108)/1000),4)"},{"$f":"cellformula(N108)","v":"=ROUND(((AE108*(1/AZ108)-(1/T108))/1000)*L108,4)"},"2019-04-01",null,null,null,12000,"Allows for Capacity input in Tons; converts tons to BTUs"," ",5.44,"HSPFexist = Heating System Performance Factor of existing heating system\n5.44 for replacing ASHP\n3.41 for replacing Electric Resistance Heat","IL TRM v5",4.5,"COPpl = Part Load Coefficient of Performance, Actual installed value","This example value is the mean of values listed in ENERGY STAR criteria here: https://www.energystar.gov/index.cfm?c=most_efficient.me_geothermal_heat_pumps , https://data.energystar.gov/Active-Specifications/ENERGY-STAR-Most-Efficient-Geothermal-Heat-Pumps/4c82-7ysy . \nIdeally this value would come from the specs of the actual unit installed.",1,"ElecDHW:\n= 1 if HW system is electric\n= 0 if HW system is not electric","IL TRM v5",0.44,"%DHWdisplaced = Percentage of total DHW load the GSHP will provide.\n= Actual, if known\n= 0% if no desuperheater installed\n= 44% if desuperheater installed and actual is unknown","IL TRM v5",2.0004999999999997,"Efelec = Energy Factor of electric WH.\n= Actual, if known\n= 0.96 – (0.0003 * rated volume in gallons) for 55+ gallon DHW\n= 2.057 – (0.00113 * rated volume in gallons) for < 55 gallon DHW","IL TRM v5",9732988.4467200004,"GSHP Coefficient\n= GPD * Household * 365.25 * γWater * (Tout - Tin)","IL TRM v5",8.5500000000000007,"Energy Efficiency Ratio of existing cooling unit\n= Actual, if available\n= 8.55 for replacing ASHP\n= 8.15 for replacing Central AC","IL TRM v5",738,"EFLHcool","2017 MO TRM",1376,"EFLHheat","The EFLH Cooling and Heating hours are based on a EnergyStar study that was normalized (based on HDD and CDD) to Kansas City. This was for both AC and HP units."," "]
["Income-Eligible Multi-Family","Screw In - LEDs",53.2,"Multi-Family","Lighting","Kits","per lamp",3.93,{"$f":"ROUND(($W109-$T109)/1000*$P109*$AE109*$AK109,4)","v":28.2745},"IL TRM v5",{"$f":"I109/P109","v":3.366011904761905E-2},0.08,"IL TRM v5",{"$f":"ROUND(($W109-$T109)/1000*L109*$AH109*$AK109,4)","v":2.8E-3},"IL TRM v5",840,"IL TRM v5",10,"Screw In - LEDs",9.2899999999999991,"Program Tracking Database","43 watts based on halogen equivalent to average of bulbs sold in program ",43,null,{"$f":"cellformula(I109)","v":"=ROUND(($W109-$T109)/1000*$P109*$AE109*$AK109,4)"},{"$f":"cellformula(N109)","v":"=ROUND(($W109-$T109)/1000*L109*$AH109*$AK109,4)"},"2018-04-01","2019-03-31",null,null,1.06,"Waste Heat Factor, Energy","IL TRM v5",1.1100000000000001,"Waste Heat Factor, Demand","IL TRM v5",0.94199999999999995,"ISR","Navigant MEEIA Cycle 1 Research"," ",null,null,null,null,null,null,null,null,null,null,null,null,null,null,null,null,null,null,null,null,null,null,null,null,null,null,null,null,null,null,null,null,null,null,null,null,null,null,null,null,null,null,null,null,null,null,null,null,31.2,"Single Family","HVAC",null,"per ton",317,1527.2772,"IL TRM v5",2.069481300813008,0.72,"IL TRM v5",0.36270000000000002]
["Income-Eligible Multi-Family","Screw In - LEDs (In-Unit)",53.3,"Multi-Family","Lighting","Kits","per lamp",3.93,{"$f":"ROUND(($W110-$T110)/1000*$P110*$AE110*$AK110,4)","v":26.0063},"IL TRM v5",{"$f":"I110/P110","v":3.4263899868247696E-2},7.0999999999999994E-2,"IL TRM v5",{"$f":"ROUND(($W110-$T110)/1000*L110*$AH110*$AK110,4)","v":2.5000000000000001E-3},"IL TRM v5",759,"IL TRM v5",10,"Screw In - LEDs",9,"Program Tracking Database","43 watts based on halogen equivalent to average of bulbs sold in program ",43,null,{"$f":"cellformula(I110)","v":"=ROUND(($W110-$T110)/1000*$P110*$AE110*$AK110,4)"},{"$f":"cellformula(N110)","v":"=ROUND(($W110-$T110)/1000*L110*$AH110*$AK110,4)"},"2019-04-01",null,null,null,1.04,"Waste Heat Factor, Energy","IL TRM v5",1.07,"Waste Heat Factor, Demand","IL TRM v5",0.96899999999999997,"ISR","IL TRM v5"," ",null,null,null,null,null,null,null,null,null,null,null,null,null,null,null,null,null,null,null,null,null,null,null,null,null,null,null,null,null,null,null,null,null,null,null,null,null,null,null,null,null,null,null,null,null,null,null,null,32.1,"Single Family","HVAC",null,"per ton",317,183.29079999999999,"IL TRM v5",0.18665050916496945,0.72,"IL TRM v5",0.32029999999999997]
["Income-Eligible Multi-Family","Low Flow Faucet Aerator-Bathroom",268,"Multi-Family","Hot Water","Kits","per unit",8,{"$f":"ROUND(((W111-T111)*AH111*AK111*365.25)*AE111*AN111,4)","v":38.928699999999999},"IL TRM V.5",{"$f":"I111/P111","v":2.7806214285714286},2.1999999999999999E-2,"IL TRM v5",{"$f":"ROUND((((W111-T111)*AH111*AK111*365.25)*AE111*AN111)/P111*L111,4)","v":6.1199999999999997E-2},null,14,"IL TRM V.5",9,"Low Flow (GPM)",1.5,"Program Tracking Database","Standard (GPM)",2.2000000000000002,"Federal Baseline",{"$f":"cellformula(I111)","v":"=ROUND(((W111-T111)*AH111*AK111*365.25)*AE111*AN111,4)"},{"$f":"cellformula(N111)","v":"=ROUND((((W111-T111)*AH111*AK111*365.25)*AE111*AN111)/P111*L111,4)"},"2018-04-01","2019-03-31",null,null,7.9500000000000001E-2,"kWh per gallon hot water, bathroom"," ",{"$f":"1.6*0.9/1.5","v":0.96000000000000008},"Faucet Coefficient, Bathroom: Minutes/day * Drain Factor / Faucets per Household","IL TRM v5",2.1,"Persons per household","IL TRM v5",0.95,"Installation Rate","IL TRM v5",null,null,null,null,null,null,null,null,null,null,null,null,null,null,null,null,null,null,null,null,null,null,null,null,null,null,null,null,null,null,null,null,null,null,null,null,null,null,null,null,null,null,null,null,null,null,32.200000000000003,"Single Family","HVAC",null,"per ton",317,167.16050000000001,"IL TRM v5",0.2265047425474255,0.72,"IL TRM v5",3.7199999999999997E-2]
["Income-Eligible Multi-Family","Low Flow Faucet Aerator-Bathroom",268.10000000000002,"Multi-Family","Hot Water","Kits","per unit",8,{"$f":"ROUND(((W112-T112)*AH112*AK112*365.25)*AE112*AN112,4)","v":66.734899999999996},"IL TRM V.5",3.0334045454545451,2.1999999999999999E-2,"IL TRM v5",{"$f":"ROUND((((W112-T112)*AH112*AK112*365.25)*AE112*AN112)/P112*L112,4)","v":6.6699999999999995E-2},null,22,"IL TRM V.5",9,"Low Flow (GPM)",1,"Program Tracking Database","Standard (GPM)",2.2000000000000002,"Federal Baseline",{"$f":"cellformula(I112)","v":"=ROUND(((W112-T112)*AH112*AK112*365.25)*AE112*AN112,4)"},{"$f":"cellformula(N112)","v":"=ROUND((((W112-T112)*AH112*AK112*365.25)*AE112*AN112)/P112*L112,4)"},"2019-04-01",null,null,null,7.9500000000000001E-2,"kWh per gallon hot water, bathroom","IL TRM v5",{"$f":"1.6*0.9/1.5","v":0.96000000000000008},"Faucet Coefficient, Bathroom: Minutes/day * Drain Factor / Faucets per Household","IL TRM v5",2.1,"Persons per household","IL TRM v5",0.95,"Installation Rate","IL TRM v5",null,null,null,null,null,null,null,null,null,null,null,null,null,null,null,null,null,null,null,null,null,null,null,null,null,null,null,null,null,null,null,null,null,null,null,null,null,null,null,null,null,null,null,null,null,null,33.1,"Single Family","HVAC",null,"per ton",137,217.7936,"IL TRM v5",0.22178574338085538,0.72,"IL TRM v5",5.4600000000000003E-2]
["Income-Eligible Multi-Family","Low Flow Faucet Aerator-Kitchen",269,"Multi-Family","Hot Water","Kits","per unit",8,{"$f":"ROUND(((W113-T113)*AH113*AK113*365.25)*AE113*AN113,4)","v":159.78890000000001},"IL TRM V.5",1.6998819148936171,2.1999999999999999E-2,"IL TRM v5",{"$f":"ROUND((((W113-T113)*AH113*AK113*365.25)*AE113*AN113)/P113*L113,4)","v":3.7400000000000003E-2},null,94,"IL TRM V.5",9,"Low Flow (GPM)",1.5,"Program Tracking Database","Standard (GPM)",2.2000000000000002,"Federal Baseline","=ROUND(((W113-T113)*AH113*AK113*365.25)*AE113*AN113,4)","=ROUND((((W113-T113)*AH113*AK113*365.25)*AE113*AN113)/P113*L113,4)","2018-04-01","2019-03-31",null,null,9.69E-2,"kWh per gallon hot water, kitchen"," ",{"$f":"4.5*0.75/1","v":3.375},"Faucet Coefficient, Kitchen","IL TRM v5",2.1,"Persons per household","IL TRM v5",0.91,"Installation Rate","IL TRM v5",null,null,null,null,null,null,null,null,null,null,null,null,null,null,null,null,null,null,null,null,null,null,null,null,null,null,null,null,null,null,null,null,null,null,null,null,null,null,null,null,null,null,null,null,null,null,33.200000000000003,"Single Family","HVAC",null,"per ton",137,201.66329999999999,"IL TRM v5",0.27325650406504065,0.72,"IL TRM v5",5.4600000000000003E-2]
["Income-Eligible Multi-Family","Low Flow Faucet Aerator-Kitchen",269.10000000000002,"Multi-Family","Hot Water","Kits","per unit",8,{"$f":"ROUND(((W114-T114)*AH114*AK114*365.25)*AE114*AN114,4)","v":159.78890000000001},"IL TRM V.5",2.0751805194805195,2.1999999999999999E-2,"IL TRM v5",{"$f":"ROUND((((W114-T114)*AH114*AK114*365.25)*AE114*AN114)/P114*L114,4)","v":4.5699999999999998E-2},null,77,"IL TRM V.5",9,"Low Flow (GPM)",1.5,"Program Tracking Database","Standard (GPM)",2.2000000000000002,"Federal Baseline",{"$f":"cellformula(I114)","v":"=ROUND(((W114-T114)*AH114*AK114*365.25)*AE114*AN114,4)"},{"$f":"cellformula(N114)","v":"=ROUND((((W114-T114)*AH114*AK114*365.25)*AE114*AN114)/P114*L114,4)"},"2019-04-01",null,null,null,9.69E-2,"kWh per gallon hot water, kitchen","IL TRM v5",{"$f":"4.5*0.75/1","v":3.375},"Faucet Coefficient, Kitchen","IL TRM v5",2.1,"Persons per household","IL TRM v5",0.91,"Installation Rate","IL TRM v5",null,null,null,null,null,null,null,null,null,null,null,null,null,null,null,null,null,null,null,null,null,null,null,null,null,null,null,null,null,null,null,null,null,null,null,null,null,null,null,null,null,null,null,null,null,null,314,"Single Family","HVAC",null,"per ton",1482,3885.4304999999999,"IL TRM v5",3.9566502036659879,0.72,"IL TRM v5",0.59060000000000001]
["Income-Eligible Multi-Family","Pipe Insulated",55.1,"Multi-Family","Hot Water","Kits","per unit",18,{"$f":"ROUND(((((AE115*PI()*AK115)/W115) - ((AH115*PI()*AK115)/T115))*AN115)/AQ115/3412,4)","v":72.064999999999998},"IL TRM v5, modified to account for larger diameter due to added pipe insulation",{"$f":"I115/P115","v":8.2209673739447858E-3},"NA","NA",{"$f":"ROUND(I115/8766,4)","v":8.2000000000000007E-3},null,8766,"IL TRM V.5",15,"Efficient R-Value due to added insulation",{"$f":"1+5","v":6},"IL TRM v5","R-Value of bare pipe",1,"IL TRM v5",{"$f":"cellformula(I115)","v":"=ROUND(((((AE115*PI()*AK115)/W115) - ((AH115*PI()*AK115)/T115))*AN115)/AQ115/3412,4)"},{"$f":"cellformula(N115)","v":"=ROUND(I115/8766,4)"},"2018-04-01","2019-03-31",null,null,{"$f":"0.75/12","v":6.25E-2},"Dbase = Pipe Diameter (ft)","IL TRM v5",{"$f":"(0.75+1*2)/12","v":0.22916666666666666},"Dee = Updated Pipe Diameter, due to added insulation (ft)","IL TRM v5",6,"Length of added pipe insulation"," ",{"$f":"60*8766","v":525960},"Pipe Insulated Coefficient 1 = ∆T * Hours = 60 * 8766","IL TRM v5",0.98,"Recovery efficiency of electric water heater","IL TRM v5",null,null,null,null,null,null,null,null,null,null,null,null,null,null,null,null,null,null,null,null,null,null,null,null,null,null,null,null,null,null,null,null,null,null,null,null,null,null,null,null,null,null,null,314.10000000000002,"Single Family","HVAC",null,"per ton",1482,3334.2118999999998,"IL TRM v5",4.5179023035230346,0.72,"IL TRM v5",0.36270000000000002]
["Income-Eligible Multi-Family","Pipe Insulated",55.2,"Multi-Family","Hot Water","Kits","per unit",18,{"$f":"ROUND(((((AE116*PI()*AK116)/W116) - ((AH116*PI()*AK116)/T116))*AN116)/AQ116/3412,4)","v":10.295},"IL TRM v5, modified to account for larger diameter due to added pipe insulation",{"$f":"I116/P116","v":1.174423910563541E-3},"NA","NA",{"$f":"ROUND(I116/8766,4)","v":1.1999999999999999E-3},null,8766,"IL TRM V.5",15,"Efficient R-Value due to added insulation",{"$f":"1+5","v":6},"IL TRM v5","R-Value of bare pipe",1,"IL TRM v5",{"$f":"cellformula(I116)","v":"=ROUND(((((AE116*PI()*AK116)/W116) - ((AH116*PI()*AK116)/T116))*AN116)/AQ116/3412,4)"},{"$f":"cellformula(N116)","v":"=ROUND(I116/8766,4)"},"2019-04-01",null,null,null,{"$f":"0.5/12","v":4.1666666666666664E-2},"Dbase = Pipe Diameter (ft)","IL TRM v5",{"$f":"(0.75+1*2)/12","v":0.22916666666666666},"Dee = Updated Pipe Diameter, due to added insulation (ft)","IL TRM v5",6,"Length of added pipe insulation"," ",{"$f":"60*8766","v":525960},"Pipe Insulated Coefficient 1 = ∆T * Hours = 60 * 8766","IL TRM v5",0.98,"Recovery efficiency of electric water heater","IL TRM v5",null,null,null,null,null,null,null,null,null,null,null,null,null,null,null,null,null,null,null,null,null,null,null,null,null,null,null,null,null,null,null,null,null,null,null,null,null,null,null,null,null,null,null,315,"Single Family","HVAC",null,"per ton",644.55999999999995,183.29079999999999,"IL TRM v5",0.18665050916496945,0.72,"IL TRM v5",0.31309999999999999]
["Income-Eligible Multi-Family","Low Flow Showerhead",56.1,"Multi-Family","Hot Water","Kits","per unit",12,{"$f":"ROUND(((W117-T117)*AH117*AK117*365.25)*AE117*AN117,4)","v":260.79399999999998},"IL TRM V.5",{"$f":"I117/P117","v":0.86355629139072843},2.7799999999999998E-2,"IL TRM v5",{"$f":"ROUND((((W117-T117)*AH117*AK117*365.25)*AE117*AN117)/P117*L117,4)","v":2.4E-2},null,302,"IL TRM V.5",10,"Low Flow (GPM)",1.5,"EEP from ICF","Standard (GPM)",2.67,"IL TRM v5","=ROUND(((W117-T117)*AH117*AK117*365.25)*AE117*AN117,4)","=ROUND((((W117-T117)*AH117*AK117*365.25)*AE117*AN117)/P117*L117,4)","2018-04-01","2019-03-31",null,null,0.11700000000000001,"kWh per gallon hot water","IL TRM v5",{"$f":"7.8*0.6/1.79","v":2.6145251396648042},"Showerhead Coefficient: Minutes per day * Showers per day / Showers per household","IL TRM v5",2.1,"Persons per household","IL TRM v5",0.95,"Installation Rate","IL TRM v5",null,null,null,null,null,null,null,null,null,null,null,null,null,null,null,null,null,null,null,null,null,null,null,null,null,null,null,null,null,null,null,null,null,null,null,null,null,null,null,null,null,null,null,null,null,null,315.10000000000002,"Single Family","HVAC",null,"per ton",644.55999999999995,167.16050000000001,"IL TRM v5",0.2265047425474255,0.72,"IL TRM v5",3.7199999999999997E-2]
["Income-Eligible Multi-Family","Low Flow Showerhead",56.2,"Multi-Family","Hot Water","Kits","per unit",12,{"$f":"ROUND(((W118-T118)*AH118*AK118*365.25)*AE118*AN118,4)","v":359.0933},"IL TRM V.5",{"$f":"I118/P118","v":1.4479568548387096},2.7799999999999998E-2,"IL TRM v5",{"$f":"ROUND((((W118-T118)*AH118*AK118*365.25)*AE118*AN118)/P118*L118,4)","v":4.0300000000000002E-2},null,248,"IL TRM V.5",10,"Low Flow (GPM)",1.5,"EEP from ICF","Standard (GPM)",2.67,"IL TRM v5",{"$f":"cellformula(I118)","v":"=ROUND(((W118-T118)*AH118*AK118*365.25)*AE118*AN118,4)"},{"$f":"cellformula(N118)","v":"=ROUND((((W118-T118)*AH118*AK118*365.25)*AE118*AN118)/P118*L118,4)"},"2019-04-01",null,null,null,0.11700000000000001,"kWh per gallon hot water","IL TRM v5",{"$f":"7.8*0.6/1.3","v":3.5999999999999996},"Showerhead Coefficient: Minutes per day * Showers per day / Showers per household","IL TRM v5",2.1,"Persons per household","IL TRM v5",0.95,"Installation Rate","IL TRM v5",null,null,null,null,null,null,null,null,null,null,null,null,null,null,null,null,null,null,null,null,null,null,null,null,null,null,null,null,null,null,null,null,null,null,null,null,null,null,null,null,null,null,null,null,null,null,34.1,"Single Family","HVAC",null,"per ton",274,302.04039999999998,"IL TRM v5",0.30757678207739303,0.72,"IL TRM v5",6.4399999999999999E-2]
["Income-Eligible Multi-Family","Water Heater Tank Wrap",57,"Multi-Family","Hot Water","Kits","per unit",18,{"$f":"ROUND(131.295784945569,4)","v":131.29580000000001},null,{"$f":"I119/P119","v":1.4988105022831051E-2},null,null,{"$f":"ROUND(0.0149881033042887,4)","v":1.4999999999999999E-2},null,8760,null,5,"Water Heater Blanket/Tank Wrap",null,null,"No Blanket",null,null,"=ROUND(131.295784945569,4)","=ROUND(0.0149881033042887,4)","2016-04-01",null,null,null,null,null,null,null,null,null,null,null,null,null,null,null,null,null,null,null,null,null,null,null,null,null,null,null,null,null,null,null,null,null,null,null,null,null,null,null,null,null,null,null,null,null,null,null,null,null,null,null,null,null,null,null,null,null,null,null,null,null,34.200000000000003,"Single Family","HVAC",null,"per ton",274,275.44119999999998,"IL TRM v5",0.37322655826558265,0.72,"IL TRM v5",6.4399999999999999E-2]
["Income-Eligible Multi-Family","Smart Power Strip - Wh5-Plug",247,"Multi-Family","Electronics","Kits","per unit",16,{"$f":"ROUND(56.5,4)","v":56.5},"Il TRM v5",null,0.8,"Il TRM v5",{"$f":"ROUND(I120/P120*L120,4)","v":6.3E-3},"IL TRM v5",7129,"Il TRM v5",5,"Smart strip",null,null,"Standard outlet strip",null,null,"=ROUND(56.5,4)","=ROUND(I120/P120*L120,4)","2018-04-01","2019-03-31",null,null,null,null,null,null,null,null,null,null,null,null,null,null,null,null,null,null,null,null,null,null,null,null,null,null,null,null,null,null,null,null,null,null,null,null,null,null,null,null,null,null,null,null,null,null,null,null,null,null,null,null,null,null,null,null,null,null,null,null,35.1,"Single Family","HVAC",null,"per ton",415,2178.6968000000002,"IL TRM v5",2.2186321792260695,0.72,"IL TRM v5",0.61580000000000001]
["Income-Eligible Multi-Family","Smart Power Strip - Wh7-Plug",248,"Multi-Family","Electronics","Kits","per unit",16,{"$f":"ROUND(103,4)","v":103},"Il TRM v5",{"$f":"I121/P121","v":1.4448029176602609E-2},0.8,"Il TRM v5",{"$f":"ROUND(I121/P121*L121,4)","v":1.1599999999999999E-2},"IL TRM v5",7129,"Il TRM v5",5,"Smart strip",null,null,"Standard outlet strip",null,null,"=ROUND(103,4)","=ROUND(I121/P121*L121,4)","2018-04-01","2019-03-31",null,null,null,null,null,null,null,null,null,null,null,null,null,null,null,null,null,null,null,null,null,null,null,null,null,null,null,null,null,null,null,null,null,null,null,null,null,null,null,null,null,null,null,null,null,null,null,null,null,null,null,null,null,null,null,null,null,null,null,null,35.200000000000003,"Single Family","HVAC",null,"per ton",415,1616.5551,"IL TRM v5",2.1904540650406505,0.72,"IL TRM v5",0.3871]
["Income-Eligible Multi-Family","Smart Power Strip - Wh7-Plug",248.1,"Multi-Family","Electronics","Kits","per unit",26,{"$f":"ROUND(103,4)","v":103},"Il TRM v5",1.4448029176602609E-2,0.8,"Il TRM v5",{"$f":"ROUND(0.0115,4)","v":1.15E-2},"IL TRM v5",7129,"Il TRM v5",5,"Smart strip",null,null,"Standard outlet strip",null,null,{"$f":"cellformula(I122)","v":"=ROUND(103,4)"},{"$f":"cellformula(N122)","v":"=ROUND(0.0115,4)"},"2019-04-01",null,null,null,null,null,null,null,null,null,null,null,null,null,null,null,null,null,null,null,null,null,null,null,null,null,null,null,null,null,null,null,null,null,null,null,null,null,null,null,null,null,null,null,null,null,null,null,null,null,null,null,null,null,null,null,null,null,null,null,null,null,36.1,"Single Family","HVAC",null,"per ton",415,283.49169999999998,"IL TRM v5",0.28868808553971487,0.72,"IL TRM v5",0.3382]
["Income-Eligible Multi-Family","LED Exit Sign",59.1,"Multi-Family","Lighting","Common Area - DI","per unit",30,{"$f":"ROUND((W123-T123)/1000*P123*AE123,4)","v":82.049800000000005},"Il TRM v5",{"$f":"(W123-T123)/1000*AH123","v":9.6299999999999997E-3},1,"Il TRM v5",{"$f":"ROUND(K123*L123,4)","v":9.5999999999999992E-3},"IL TRM v5",8766,"Il TRM v5",16,"LED (watts)",2,null,"Fluorescent (watts)",11,"Illinois TRM V.5.","=ROUND((W123-T123)/1000*P123*AE123,4)","=ROUND(K123*L123,4)","2018-04-01",null,null,null,1.04,"Waste Heat Factor (energy)","Il TRM v5",1.07,"Waste Heat Factor (demand)",null,null,null,null,null,null,null,null,null,null,null,null,null,null,null,null,null,null,null,null,null,null,null,null,null,null,null,null,null,null,null,null,null,null,null,null,null,null,null,null,null,null,null,null,null,null,null,null,null,null,null,null,null,36.200000000000003,"Single Family","HVAC",null,"per ton",415,256.4384,"IL TRM v5",0.34747750677506778,0.72,"IL TRM v5",6.1699999999999998E-2]
["Income-Eligible Multi-Family","High Bay Fluorescent Fixture w/ HE Electronic Ballast (T5 >4 lamps)",60,"Multi-Family","Lighting","Common Area - DI","per fixture",100,{"$f":"ROUND((W124-T124)/1000*P124*AE124,4)","v":701.00689999999997},null,0.21574000000000002,0.66,null,{"$f":"ROUND(K124*L124,4)","v":0.1424},null,3088,null,15,"High Bay - T5 >4 lamp",295,null,"Metal Halide (watts)",456,null,"=ROUND((W124-T124)/1000*P124*AE124,4)","=ROUND(K124*L124,4)","2016-04-01",null,null,null,1.41,"Waste Heat Factor",null,1.34,"Waste Heat Factor",null,null,null,null,null,null,null,null,null,null,null,null,null,null,null,null,null,null,null,null,null,null,null,null,null,null,null,null,null,null,null,null,null,null,null,null,null,null,null,null,null,null,null,null,null,null,null,null,null,null,null,null,null,37.1,"Single Family","HVAC",null,"per ton",793.15789473684208,300.68520000000001,"IL TRM v5",0.30619674134419556,0.72,"IL TRM v5",4.7800000000000002E-2]
["Income-Eligible Multi-Family","Low Wattage T8 Lamp",61,"Multi-Family","Lighting","Common Area - DI","per lamp",2,{"$f":"ROUND((W125-T125)/1000*P125*AE125,4)","v":26.124500000000001},null,8.0400000000000003E-3,0.66,null,{"$f":"ROUND(K125*L125,4)","v":5.3E-3},null,3088,null,10,"Low Wattage T8 (watts)",22,null,"Standard T8 (watts)",28,null,"=ROUND((W125-T125)/1000*P125*AE125,4)","=ROUND(K125*L125,4)","2016-04-01",null,null,null,1.41,"Waste Heat Factor",null,1.34,"Waste Heat Factor",null,null,null,null,null,null,null,null,null,null,null,null,null,null,null,null,null,null,null,null,null,null,null,null,null,null,null,null,null,null,null,null,null,null,null,null,null,null,null,null,null,null,null,null,null,null,null,null,null,null,null,null,null,37.200000000000003,"Single Family","HVAC",null,"per ton",793.15789473684208,273.2928,"IL TRM v5",0.37031544715447157,0.72,"IL TRM v5",4.7800000000000002E-2]
["Income-Eligible Multi-Family","LED Flood Light (<15W) (Exterior)",62.1,"Multi-Family","Lighting","Common Area - DI","per lamp",35,{"$f":"ROUND(($W126-$T126)/1000*$P126*$AE126*$AK126,4)","v":212.465},null,4.6010000000000002E-2,0,null,{"$f":"ROUND(($W126-$T126)/1000*$L126*$AH126*$AK126,4)","v":0},null,4903,null,10,"LED (watts)",8.6999999999999993,null,"Metal Halide (watts)",51.7,null,"=ROUND(($W126-$T126)/1000*$P126*$AE126*$AK126,4)","=ROUND(($W126-$T126)/1000*$L126*$AH126*$AK126,4)","2018-04-01",null,null,null,1.04,"Waste Heat Factor (energy)","IL TRM v5",1.07,"Waste Heat Factor (demand)","IL TRM v5",0.96899999999999997,"ISR","IL TRM v5",null,null,null,null,null,null,null,null,null,null,null,null,null,null,null,null,null,null,null,null,null,null,null,null,null,null,null,null,null,null,null,null,null,null,null,null,null,null,null,null,null,null,null,null,null,null,null,null,null,316,"Single Family","HVAC",null,"per ton",1527,3985.6314000000002,"IL TRM v5",4.0586877800407333,0.72,"IL TRM v5",0.61509999999999998]
["Income-Eligible Multi-Family","Screw In - LEDs - Common Area (Interior)",249,"Multi-Family","Lighting","Common Area - DI","per lamp",3.93,{"$f":"ROUND(($W127-$T127)/1000*$P127*$AE127*$AK127,4)","v":119.9234},null,{"$f":"I127/P127","v":2.0155193277310926E-2},0.64,"IL TRM v5",{"$f":"ROUND(($W127-$T127)/1000*$L127*$AH127*$AK127,4)","v":1.3299999999999999E-2},"IL TRM v5",5950,"IL TRM v5",5,"LED (watts)",9,null,"EISA tier 1 compliant Halogen (watts)",29,"IL TRM v5","=ROUND(($W127-$T127)/1000*$P127*$AE127*$AK127,4)","=ROUND(($W127-$T127)/1000*$L127*$AH127*$AK127,4)","2018-04-01","2019-03-31",null,null,1.04,"Waste Heat Factor (energy)","IL TRM v5",1.07,"Waste Heat Factor (demand)","IL TRM v5",0.96899999999999997,"ISR","IL TRM v5",null,null,null,null,null,null,null,null,null,null,null,null,null,null,null,null,null,null,null,null,null,null,null,null,null,null,null,null,null,null,null,null,null,null,null,null,null,null,null,null,null,null,null,null,null,null,null,null,null,316.10000000000002,"Single Family","HVAC",null,"per ton",1527,3423.4897999999998,"IL TRM v5",4.6388750677506776,0.72,"IL TRM v5",0.3871]
["Income-Eligible Multi-Family","Screw In - LEDs - Common Area (Interior)",249.1,"Multi-Family","Lighting","Common Area - DI","per lamp",3.93,{"$f":"ROUND(($W128-$T128)/1000*$P128*$AE128*$AK128,4)","v":29.579599999999999},null,{"$f":"I128/P128","v":3.4922786304604485E-2},8.1000000000000003E-2,"IL TRM v5",{"$f":"ROUND(($W128-$T128)/1000*$L128*$AH128*$AK128,4)","v":3.0000000000000001E-3},"IL TRM v5",847,"IL TRM v5",5,"LED (watts)",9,"Program Tracking Database","EISA tier 1 compliant Halogen (watts)",43,"IL TRM v5",{"$f":"cellformula(I128)","v":"=ROUND(($W128-$T128)/1000*$P128*$AE128*$AK128,4)"},{"$f":"cellformula(N128)","v":"=ROUND(($W128-$T128)/1000*$L128*$AH128*$AK128,4)"},"2019-04-01",null,null,null,1.06,"Waste Heat Factor (energy)","IL TRM v5",1.1100000000000001,"Waste Heat Factor (demand)","IL TRM v5",0.96899999999999997,"ISR","IL TRM v5",null,null,null,null,null,null,null,null,null,null,null,null,null,null,null,null,null,null,null,null,null,null,null,null,null,null,null,null,null,null,null,null,null,null,null,null,null,null,null,null,null,null,null,null,null,null,null,null,null,317,"Single Family","HVAC",null,"per ton",644.55999999999995,283.49169999999998,"IL TRM v5",0.28868808553971487,0.72,"IL TRM v5",0.33750000000000002]
["Income-Eligible Multi-Family","Screw In - LEDs - Common Area (Exterior)",250,"Multi-Family","Lighting","Common Area - DI","per lamp",3.93,{"$f":"ROUND(($W129-$T129)/1000*$P129*$AE129*$AK129,4)","v":98.820899999999995},null,{"$f":"I129/P129","v":2.0155190699571689E-2},0,"IL TRM v5",{"$f":"ROUND(($W129-$T129)/1000*$L129*$AH129*$AK129,4)","v":0},"IL TRM v5",4903,"IL TRM v5",5,"LED (watts)",9,null,"EISA tier 1 compliant Halogen (watts)",29,"IL TRM v5","=ROUND(($W129-$T129)/1000*$P129*$AE129*$AK129,4)","=ROUND(($W129-$T129)/1000*$L129*$AH129*$AK129,4)","2018-04-01","2019-03-31",null,null,1.04,"Waste Heat Factor (energy)","IL TRM v5",1.07,"Waste Heat Factor (demand)","IL TRM v5",0.96899999999999997,"ISR","IL TRM v5",null,null,null,null,null,null,null,null,null,null,null,null,null,null,null,null,null,null,null,null,null,null,null,null,null,null,null,null,null,null,null,null,null,null,null,null,null,null,null,null,null,null,null,null,null,null,null,null,null,317.10000000000002,"Single Family","HVAC",null,"per ton",644.55999999999995,256.4384,"IL TRM v5",0.34747750677506778,0.72,"IL TRM v5",6.1699999999999998E-2]
["Income-Eligible Multi-Family","Screw In - LEDs - Common Area (Exterior)",250.1,"Multi-Family","Lighting","Common Area - DI","per lamp",3.93,{"$f":"ROUND(($W130-$T130)/1000*$P130*$AE130*$AK130,4)","v":81.541399999999996},null,{"$f":"I130/P130","v":3.2946020202020199E-2},0.27300000000000002,"IL TRM v5",{"$f":"ROUND(($W130-$T130)/1000*$L130*$AH130*$AK130,4)","v":8.9999999999999993E-3},"IL TRM v5",2475,"IL TRM v5",5,"LED (watts)",9,"Program Tracking Database","EISA tier 1 compliant Halogen (watts)",43,"IL TRM v5",{"$f":"cellformula(I130)","v":"=ROUND(($W130-$T130)/1000*$P130*$AE130*$AK130,4)"},{"$f":"cellformula(N130)","v":"=ROUND(($W130-$T130)/1000*$L130*$AH130*$AK130,4)"},"2019-04-01",null,null,null,1,"Waste Heat Factor (energy)","IL TRM v5",1,"Waste Heat Factor (demand)","IL TRM v5",0.96899999999999997,"ISR","IL TRM v5",null,null,null,null,null,null,null,null,null,null,null,null,null,null,null,null,null,null,null,null,null,null,null,null,null,null,null,null,null,null,null,null,null,null,null,null,null,null,null,null,null,null,null,null,null,null,null,null,null,38.1,"Single Family","HVAC",null,"per ton",411,357.73689999999999,"IL TRM v5",0.36429419551934827,0.72,"IL TRM v5",4.1000000000000002E-2]
["Residential Programmable Thermostat","Advanced Programmable Communicating Thermostat",65,"All","HVAC",null,"per unit",350,{"$f":"ROUND(462,4)","v":462},null,null,null,null,{"$f":"ROUND(1.26,4)","v":1.26},null,null,null,10,"PCT",null,null,"No PCT",null,null,"=ROUND(462,4)","=ROUND(1.26,4)","2016-04-01","2019-03-31",null,null,null,null,null,null,null,null,null,null,null,null,null,null,null,null,null,null,null,null,null,null,null,null,null,null,null,null,null,null,null,null,null,null,null,null,null,null,null,null,null,null,null,null,null,null,null,null,null,null,null,null,null,null,null,null,null,null,null,null,385,"Single Family","Motor",null,"per unit",97,1346.8467000000001,"Wisconsin Focus on Energy 2018 TRM",0.81470588235294117,0.68,"IL TRM v6.0",0.55400000000000005]
["Residential Programmable Thermostat","Smart Thermostat",65.099999999999994,"All","HVAC",null,"per unit",350,{"$f":"ROUND(197,4)","v":197},null,null,null,null,{"$f":"ROUND(1.4,4)","v":1.4},null,null,null,10,"PCT",null,null,"No PCT",null,null,{"$f":"cellformula(I132)","v":"=ROUND(197,4)"},{"$f":"cellformula(N132)","v":"=ROUND(1.4,4)"},"2019-04-01",null,null,null,null,null,null,null,null,null,null,null,null,null,null,null,null,null,null,null,null,null,null,null,null,null,null,null,null,null,null,null,null,null,null,null,null,null,null,null,null,null,null,null,null,null,null,null,null,null,null,null,null,null,null,null,null,null,null,null,null,null,386,"Single Family","Motor",null,"per unit",0,524.05529999999999,"Wisconsin Focus on Energy 2018 TRM",0.14132352941176471,0.68,"IL TRM v6.0",9.6100000000000005E-2]
["Business Programmable Thermostat","Advanced Programmable Communicating Thermostat",66,"All","HVAC",null,"per unit",350,{"$f":"ROUND(462,4)","v":462},null,null,null,null,{"$f":"ROUND(1.26,4)","v":1.26},null,null,null,10,"PCT",null,null,"No PCT",null,null,"=ROUND(462,4)","=ROUND(1.26,4)","2016-04-01","2019-03-31"]
["Business Programmable Thermostat","Smart Thermostat",66.099999999999994,"All","HVAC",null,"per unit",350,{"$f":"ROUND(197,4)","v":197},null,null,null,null,{"$f":"ROUND(1.4,4)","v":1.4},null,null,null,10,"PCT",null,null,"No PCT",null,null,{"$f":"cellformula(I134)","v":"=ROUND(197,4)"},"=ROUND(1.4,4)","2019-04-01"]
["Small Business Direct Install","Interior Daylighting Controls Replacing No Controls",67.099999999999994,"Small C&I","Lighting",null,"per sensor",66,{"$f":"ROUND(T135/1000*AK135*P135*AE135,4)","v":692.63400000000001},null,{"$f":"T135/1000*AK135*AH135","v":0.21316318000000001},0.66,null,{"$f":"ROUND(K135*L135,4)","v":0.14069999999999999},null,3088,null,8,"Photocell Occupancy Sensor",587,null,"No Control",null,null,"=ROUND(T135/1000*AK135*P135*AE135,4)","=ROUND(K135*L135,4)","2017-04-07",null,null,null,1.41,"Waste Heat Factor",null,1.34,"Waste Heat Factor",null,0.27100000000000002,"ESF"]
["Small Business Direct Install","LED Exit Sign",68.099999999999994,"Small C&I","Lighting","Direct Install","per unit",30,{"$f":"ROUND((W136-T136)/1000*P136*AE136*AK136,4)","v":55.697200000000002},"IL TRM V.5 & Navigant field work",{"$f":"(W136-T136)/1000*AH136*AK136","v":7.2277570892821897E-3},0.93373780930745376,"Navigant field work",6.7000000000000002E-3,"IL TRM V.5 & Navigant field work",7706.0165491512989,"Navigant field work",16,"LED (watts)",2,"IL TRM V.5 & Navigant field work","Fluorescent (watts)",7.666666666666667,"IL TRM V.5","=ROUND((W136-T136)/1000*P136*AE136*AK136,4)","=ROUND(K136*L136,4)","2018-04-01","2019-03-31",null,null,1.29,"Waste Heat Factor for energy","Navigant field work",1.29,"Waste Heat Factor for demand","Navigant field work",0.98874925981972495,"ISR - in service rate","Navigant field work"," "]
["Small Business Direct Install","LED Exit Sign",68.2,"Small C&I","Lighting","Direct Install","per unit",30,{"$f":"ROUND((W137-T137)/1000*P137*AE137*AK137,4)","v":45.868299999999998},"IL TRM V.5 & Navigant field work",{"$f":"(W137-T137)/1000*AH137*AK137","v":5.9522705441147454E-3},0.93373780930745376,"Navigant field work",5.5999999999999999E-3,"IL TRM V.5 & Navigant field work",7706.0165491512989,"Navigant field work",16,"LED (watts)",3,"Program Tracking Database","Fluorescent (watts)",7.666666666666667,"IL TRM V.5",{"$f":"cellformula(I137)","v":"=ROUND((W137-T137)/1000*P137*AE137*AK137,4)"},{"$f":"cellformula(N137)","v":"=ROUND(K137*L137,4)"},"2019-04-01",null,null,null,1.29,"Waste Heat Factor for energy","Navigant field work",1.29,"Waste Heat Factor for demand","Navigant field work",0.98874925981972495,"ISR - in service rate","Navigant field work"," "]
["Small Business Direct Install","High‐Bay Fluorescent Fixture T5 > 4 Lamps w/ HE Electronic Ballast Replacing HID Fixture",69.099999999999994,"Small C&I","Lighting",null,"per fixture",100,{"$f":"ROUND((W138-T138)/1000*P138*AE138,4)","v":701.00689999999997},null,{"$f":"(W138-T138)/1000*AH138","v":0.21574000000000002},0.66,null,0.1424,null,3088,null,15,"High Bay T5 (>4 lamps, wattage)",295,null,"Metal Halide (watts)",456,null,"=ROUND((W138-T138)/1000*P138*AE138,4)","=ROUND(K138*L138,4)","2017-04-07",null,null,null,1.41,"Waste Heat Factor",null,1.34,"Waste Heat Factor"]
["Small Business Direct Install","Interior Directional LED Lamp replacing 71-110W Lamp",70.099999999999994,"Small C&I","Lighting",null,"per lamp",50,230.7662,null,7.102E-2,0.66,null,4.6899999999999997E-2,null,3088,null,11,"LED (watts)",22,null,"Incandescent (watts)",75,null,"=ROUND((W139-T139)/1000*P139*AE139,4)","=ROUND(K139*L139,4)","2017-04-07","2019-03-31",null,null,1.41,"Waste Heat Factor",null,1.34,"Waste Heat Factor"]
["Small Business Direct Install","Interior Directional LED Lamp replacing 71-110W Lamp",70.2,"Small C&I","Lighting",null,"per lamp",20,{"$f":"ROUND((W140-T140)/1000*P140*AE140,4)","v":327.42680000000001},null,{"$f":"(W140-T140)/1000*AH140","v":0.10076800000000001},0.66,null,6.6500000000000004E-2,null,3088,null,{"$f":"ROUND(25000/P140,0)","v":8},"LED (watts)",14.8,"Program Tracking Database","Incandescent (watts)",90,"Midpoint Value",{"$f":"cellformula(I140)","v":"=ROUND((W140-T140)/1000*P140*AE140,4)"},{"$f":"cellformula(N140)","v":"=ROUND(K140*L140,4)"},"2019-04-01",null,null,null,1.41,"Waste Heat Factor",null,1.34,"Waste Heat Factor"]
["Small Business Direct Install","Remove 4ft Lamp from T8 or T12 system",72.099999999999994,"Small C&I","Lighting",null,"per lamp",12,121.91419999999999,null,3.7520000000000005E-2,0.66,null,2.4799999999999999E-2,null,3088,null,11,"Remove T8",0,null,"T8 4 ft (watts)",28,null,"=ROUND((W141-T141)/1000*P141*AE141,4)","=ROUND(K141*L141,4)","2017-04-07",null,null,null,1.41,"Waste Heat Factor",null,1.34,"Waste Heat Factor"]
["Business Standard","Heat Pump Water Heater",74,"C&I","Hot Water",null,"per unit",1000,{"$f":"ROUND(((1/W142-1/T142)*AH142*AE142*365.25),4)","v":1993.08},null,null,0.12,null,{"$f":"ROUND(0.297621384273147,4)","v":0.29759999999999998},null,2533,null,10,"Efficient EF",2,null,"Baseline EF",0.95,null,"=ROUND(((1/W142-1/T142)*AH142*AE142*365.25),4)","=ROUND(0.297621384273147,4)","2016-04-01","2019-03-31",null,null,55,"gallons used per day",null,0.17952962301216921,"Water Heating Coefficient"]
["Business Standard","Low Flow Faucet Aerator Kitchen",251,"C&I","Hot Water","Kitchen","per unit",8.35,{"$f":"ROUND(1*(W143-T143)/W143*AE143*AH143*AK143,4)","v":89.063999999999993},"IL TRM V.5",null,1.0159108680814667E-2,"Illinois TRM V.5.",{"$f":"ROUND(I143/AN143*L143,4)","v":2.1899999999999999E-2},"IL TRM V.5",null,null,9,"Low Flow (GPM)",1.41,"Illinois TRM V.5.","Standard (GPM)",1.8260000000000001,"https://www.usgbc.org/credits/we2","=ROUND(1*(W143-T143)/W143*AE143*AH143*AK143,4)","=ROUND(I143/AN143*L143,4)","2018-04-01",null,null,null,4246.8044407749239,"Usage - Estimated usage of mixed water (mixture of hot water from water heater line and cold water line) per faucet (gallons per year)","IL TRM V.5",9.69E-2,"EPG_electric - Energy per gallon of mixed water used by faucet (electric water heater)","IL TRM V.5",0.95,"ISR - in service rate","IL TRM V.5",{"$f":"AE143*0.545/56","v":41.330507503970246},"Annual Recovery Hours - Annual electric DHW recovery hours for faucet use"," "," "]
["Business Standard","Low Flow Faucet Aerator Bathroom",252,"C&I","Hot Water","Bathroom","per unit",8.35,{"$f":"ROUND(1*(W144-T144)/W144*AE144*AH144*AK144,4)","v":155.62739999999999},"IL TRM V.5",null,1.0159108680814667E-2,"Illinois TRM V.5.",{"$f":"ROUND(I144/AN144*L144,4)","v":3.8300000000000001E-2},"IL TRM V.5",null,null,9,"Low Flow (GPM)",0.94,"Illinois TRM V.5.","Standard (GPM)",1.8260000000000001,"United States Energy Policy Act of 1992","=ROUND(1*(W144-T144)/W144*AE144*AH144*AK144,4)","=ROUND(I144/AN144*L144,4)","2018-04-01",null,null,null,4246.8044407749239,"Usage - Estimated usage of mixed water (mixture of hot water from water heater line and cold water line) per faucet (gallons per year)","IL TRM V.5",7.9500000000000001E-2,"EPG_electric - Energy per gallon of mixed water used by faucet (electric water heater)","IL TRM V.5",0.95,"ISR - in service rate","IL TRM V.5",{"$f":"AE144*0.545/56","v":41.330507503970246},"Annual Recovery Hours - Annual electric DHW recovery hours for faucet use"," "," "]
["Business Standard","Pipe Wrap/Insulation",76,"C&I","Hot Water",null,"per unit",47.17,{"$f":"ROUND(224,4)","v":224},null,{"$f":"I145/P145","v":2.5570776255707764E-2},null,null,{"$f":"ROUND(0.2779713001086,4)","v":0.27800000000000002},null,8760,null,6,"5 linear feet of insulation",null,null,"none",null,null,"=ROUND(224,4)","=ROUND(0.2779713001086,4)","2016-04-01"]
["Business Standard","Pre-Rinse Spray Valves Small",253,"C&I","Hot Water","Small, quick- service restaurants","per unit",100,{"$f":"ROUND((W146-T146)*60*AK146*312*8.33*1*AE146*1/AH146/3413*1,4)","v":2769.6197999999999},"IL TRM V.5",null,null,null,{"$f":"ROUND(0,4)","v":0},null,null,null,5,"Low Flow (GPM)",1.06,"IL TRM V.5","Standard (GPM)",1.9,"IL TRM V.5","=ROUND((W146-T146)*60*AK146*312*8.33*1*AE146*1/AH146/3413*1,4)","=ROUND(0,4)","2018-04-01",null,null,null,70,"Temp difference between water heater outlet water temperature","IL TRM V.5",0.97,"EFF_Elec - Efficiency of electric water heater supplying hot water to pre-rinse spray valve","IL TRM V.5",1,"Hours per day that the pre-rinse spray valve is used at the site - Hours/day","IL TRM V.5"]
["Business Standard","Pre-Rinse Spray Valves Medium",254,"C&I","Hot Water","Medium-sized casual dining restaurants","per unit",100,{"$f":"ROUND((W147-T147)*60*AK147*312*8.33*1*AE147*1/AH147/3413*1,4)","v":4154.4296000000004},"IL TRM V.5",null,null,null,{"$f":"ROUND(0,4)","v":0},null,null,null,5,"Low Flow (GPM)",1.06,"IL TRM V.5","Standard (GPM)",1.9,"IL TRM V.5","=ROUND((W147-T147)*60*AK147*312*8.33*1*AE147*1/AH147/3413*1,4)","=ROUND(0,4)","2018-04-01",null,null,null,70,"Temp difference between water heater outlet water temperature","IL TRM V.5",0.97,"EFF_Elec - Efficiency of electric water heater supplying hot water to pre-rinse spray valve","IL TRM V.5",1.5,"Hours per day that the pre-rinse spray valve is used at the site - Hours/day","IL TRM V.5"]
["Business Standard","Pre-Rinse Spray Valves Large",255,"C&I","Hot Water","Large institutional establishments with cafeteria","per unit",100,{"$f":"ROUND((W148-T148)*60*AK148*312*8.33*1*AE148*1/AH148/3413*1,4)","v":8308.8593000000001},"IL TRM V.5",null,null,null,{"$f":"ROUND(0,4)","v":0},null,null,null,5,"Low Flow (GPM)",1.06,"IL TRM V.5","Standard (GPM)",1.9,"IL TRM V.5","=ROUND((W148-T148)*60*AK148*312*8.33*1*AE148*1/AH148/3413*1,4)","=ROUND(0,4)","2018-04-01",null,null,null,70,"Temp difference between water heater outlet water temperature","IL TRM V.5",0.97,"EFF_Elec - Efficiency of electric water heater supplying hot water to pre-rinse spray valve","IL TRM V.5",3,"Hours per day that the pre-rinse spray valve is used at the site - Hours/day","IL TRM V.5"]
["Business Standard","High Efficiency Pool Pump",78,"C&I","Pools",null,"per unit",273.31999999999994,{"$f":"ROUND(1301.24777183601,4)","v":1301.2478000000001},null,null,1,null,{"$f":"ROUND(0.148544266191325,4)","v":0.14849999999999999},null,null,null,10,"High Efficiency",null,null,"Standard Pool Pump",null,null,"=ROUND(1301.24777183601,4)","=ROUND(0.148544266191325,4)","2016-04-01"]
["Business Standard","Pool Pump VSD",79,"C&I","Pools",null,"per unit",579,{"$f":"ROUND(2461.44821213111,4)","v":2461.4481999999998},null,null,1,null,{"$f":"ROUND(0.280987238827752,4)","v":0.28100000000000003},null,null,null,10,"VSD",null,null,"Standard Pool Pump",null,null,"=ROUND(2461.44821213111,4)","=ROUND(0.280987238827752,4)","2016-04-01"]
["Business Standard","ENERGY STAR Beverage Machine w/o software",256,"C&I","Refrigeration","kWh savings per machine w/o software","per unit",500,{"$f":"ROUND(1310,4)","v":1310},"IL TRM V.5",null,null,null,{"$f":"ROUND(0,4)","v":0},"IL TRM V.5",null,null,14,"Efficient Operating Watts",null,null,"Watts Base",null,null,"=ROUND(1310,4)","=ROUND(0,4)","2018-04-01"]
["Business Standard","ENERGY STAR Beverage Machine w/ software",257,"C&I","Refrigeration","kWh savings per machine w/ software","per unit",500,{"$f":"ROUND(1842,4)","v":1842},"IL TRM V.5",null,null,null,{"$f":"ROUND(0,4)","v":0},"IL TRM V.5",null,null,14,"Efficient Operating Watts",null,null,"Watts Base",null,null,"=ROUND(1842,4)","=ROUND(0,4)","2018-04-01"]
["Business Standard","High Efficiency Reach-In Refrigerator",258,"C&I","Refrigeration","No unique savings for this measure. The savings is based on actual chilled or frozen compartment volume of the efficient unit. This measure life is for refrigerator","per unit",164,{"$f":"ROUND((W153-T153)*365.25,4)","v":286.72129999999999},"IL TRM V.5. Assumes 15 ft^3 of actual chilled or frozen compartment volume."," ",0.93700000000000006,"IL TRM V.5",{"$f":"ROUND(I153/P153*L153,4)","v":3.0599999999999999E-2},"IL TRM V.5",8766,"IL TRM v5",12,"High Efficiency kWh/day",{"$f":"0.037*15+2.2","v":2.7549999999999999},"IL TRM V.5","Standard kWh/day",{"$f":"0.1*15+2.04","v":3.54},"IL TRM V.5","=ROUND((W153-T153)*365.25,4)","=ROUND(I153/P153*L153,4)","2018-04-01"]
["Business Standard","High Efficiency Reach-In Freezer",259,"C&I","Refrigeration","No unique savings for this measure. The savings is based on actual chilled or frozen compartment volume of the efficient unit. This measure life is for freezer","per unit",166,{"$f":"ROUND((W154-T154)*365.25,4)","v":869.29499999999996},"IL TRM V.5. Assumes 15 ft^3 of actual chilled or frozen compartment volume."," ",0.93700000000000006,"IL TRM V.5",{"$f":"ROUND(I154/P154*L154,4)","v":9.2899999999999996E-2},"IL TRM V.5",8766,"IL TRM v5",12,"High Efficiency kWh/day",{"$f":"0.4*15-1","v":5},"IL TRM V.5","Standard kWh/day",{"$f":"0.4*15+1.38","v":7.38},"IL TRM V.5","=ROUND((W154-T154)*365.25,4)","=ROUND(I154/P154*L154,4)","2018-04-01"]
["Business Standard","Strip Curtains Freezer",260,"C&I","Refrigeration","per freezer with curtains installed","per unit",286.16000000000003,{"$f":"ROUND(2974,4)","v":2974},"IL TRM V.5",null,1,null,{"$f":"ROUND(0.34,4)","v":0.34},"IL TRM V.5",null,null,6,"Strip Curtain",null,null,"No strip curtain",null,null,"=ROUND(2974,4)","=ROUND(0.34,4)","2018-04-01"]
["Business Standard","Strip Curtains Cooler",261,"C&I","Refrigeration","per cooler with curtains installed","per unit",286.16000000000003,{"$f":"ROUND(422,4)","v":422},"IL TRM V.5",null,1,null,{"$f":"ROUND(0.05,4)","v":0.05},"IL TRM V.5",null,null,6,"Strip Curtain",null,null,"No strip curtain",null,null,"=ROUND(422,4)","=ROUND(0.05,4)","2018-04-01"]
["Business Standard","LED Refrigerator Case Light",84.1,"C&I","Refrigeration",null,"per unit",133,{"$f":"ROUND((W157-T157)/1000*P157*AE157*AK157,4)","v":224.97130000000001},"IL TRM V.5",{"$f":"(W157-T157)/1000*AH157*AK157","v":3.8774790973090334E-2},0.69,"IL TRM V.5",{"$f":"ROUND(K157*L157,4)","v":2.6800000000000001E-2},"IL TRM V.5",5802,"IL TRM V.5",10,"LED Display Lighting (watts)",{"$f":"4*7.6","v":30.4},"IL TRM V.5 Assume 4 ft lamp","Base Refrigeration - Standard (watts)",{"$f":"15.2*4","v":60.8},"IL TRM V.5. Assume 4 ft lamp","=ROUND((W157-T157)/1000*P157*AE157*AK157,4)","=ROUND(K157*L157,4)","2018-04-01",null,null,null,1.29,"Waste Heat Factor for Energy","IL TRM V.5",1.29,"Waste Heat Factor for Demand","IL TRM V.5",0.98874925981972495,"ISR","Navigant field work"," "]
["Business Standard","ECM Motors Walk-In Coolers & Freezers",85,"C&I","Refrigeration",null,"per motor",50,{"$f":"ROUND(401,4)","v":401},null,null,1,null,{"$f":"ROUND(0.042,4)","v":4.2000000000000003E-2},null,null,null,15,"ECM Motor",null,null,"Standard Motor",null,null,"=ROUND(401,4)","=ROUND(0.042,4)","2016-04-01"]
["Business Standard","High Efficiency PTAC/PTHP",86,"C&I","HVAC",null,"per ton",12.26,{"$f":"ROUND(((1/W159-1/T159)*AC159 + AK159*AD159)*AE159/AH159,4)","v":30.0701},null,null,0.91,null,{"$f":"ROUND(0.0118300668666732,4)","v":1.18E-2},null,null,null,15,"EER",12,null,"EER",10.199999999999999,null,"=ROUND(((1/W159-1/T159)*AC159 + AK159*AD159)*AE159/AH159,4)","=ROUND(0.0118300668666732,4)","2016-04-01",null,1325,5249,12000,"Btu/hr",null,11535.608280259705,"Coefficient",null,{"$f":"(1/8.2-1/8.5)*0.417","v":1.7948350071736064E-3},"HSPF improvement factor"]
["Business Standard","Programmable Thermostat Controls",87,"C&I","HVAC",null,"per ton",5.8950564026163983,{"$f":"ROUND(126.052734375,4)","v":126.0527},null,null,null,null,{"$f":"ROUND(0,4)","v":0},null,null,null,8,"Programmable Tstat",null,null,"No Tstat",null,null,"=ROUND(126.052734375,4)","=ROUND(0,4)","2016-04-01"]
["Business Standard","ASHP <65 kBtuh",88,"C&I","HVAC",null,"per ton",120,{"$f":"ROUND(((1/W161-1/T161)*AC161 + AK161*AD161)*AE161/AH161,4)","v":157.69370000000001},null,null,0.91,null,{"$f":"ROUND(0.194113768584357,4)","v":0.19409999999999999},null,816,null,15,"SEER",14,null,"SEER",13,null,"=ROUND(((1/W161-1/T161)*AC161 + AK161*AD161)*AE161/AH161,4)","=ROUND(0.194113768584357,4)","2016-04-01","2019-03-31",1325,5249,12000,"Btu/hr",null,2194.4038715044217,"Coefficient",null,{"$f":"(1/7.7-1/8.5)*0.33599","v":4.1068296409472842E-3},"HSPF improvement factor"]
["Business Standard","ASHP 65<135 kBtuh",89,"C&I","HVAC",null,"per ton",100,{"$f":"ROUND(((1/W162-1/T162)*AC162 + AK162*AD162)*AE162/AH162,4)","v":91.330399999999997},null,{"$f":"I162/P162","v":0.11192450980392156},0.91,null,{"$f":"ROUND(0.124089536699636,4)","v":0.1241},null,816,null,15,"SEER",14,null,"SEER",13,null,"=ROUND(((1/W162-1/T162)*AC162 + AK162*AD162)*AE162/AH162,4)","=ROUND(0.124089536699636,4)","2016-04-01","2019-03-31",1325,5249,12000,"Btu/hr",null,2194.4038715044217,"Coefficient",null,{"$f":"(1/8.2-1/8.5)*0.417","v":1.7948350071736064E-3},"HSPF improvement factor"]
["Business Standard","CAC <65 kBtuh",90,"C&I","HVAC",null,"per ton",120,{"$f":"ROUND((1/W163-1/T163)*AC163*AE163/AH163,4)","v":81.56},null,{"$f":"I163/P163","v":8.1560000000000007E-2},0.91,null,{"$f":"ROUND(0.065934065934066,4)","v":6.59E-2},null,1000,null,15,"EER",14,null,"EER",13,null,"=ROUND((1/W163-1/T163)*AC163*AE163/AH163,4)","=ROUND(0.065934065934066,4)","2016-04-01",null,1325,5249,12000,"Btu/hr",null,1071.1454823833506,"Coefficient"]
["Business Standard","CAC 65<135 kBtuh",91,"C&I","HVAC",null,"per ton",100,{"$f":"ROUND((1/W164-1/T164)*AC164*AE164/AH164,4)","v":56.6389},null,{"$f":"I164/P164","v":5.6638899999999999E-2},{"$f":"N164/K164","v":0.80863152356419354},null,{"$f":"ROUND(0.0457875457875458,4)","v":4.58E-2},null,1000,null,15,"EER",11.7,null,"EER",11.2,null,"=ROUND((1/W164-1/T164)*AC164*AE164/AH164,4)","=ROUND(0.0457875457875458,4)","2016-04-01",null,1325,5249,12000,"Btu/hr",null,1071.1454823833506,"Coefficient"]
["Business Standard","CAC 135<240 kBtuh",92,"C&I","HVAC",null,"per ton",100,{"$f":"ROUND((1/W165-1/T165)*AC165*AE165/AH165,4)","v":80.736199999999997},null,{"$f":"I165/P165","v":8.0736199999999994E-2},{"$f":"N165/K165","v":0.80880695400576197},null,{"$f":"ROUND(0.0652680652680653,4)","v":6.5299999999999997E-2},null,1000,null,15,"EER",11.7,null,"EER",11,null,"=ROUND((1/W165-1/T165)*AC165*AE165/AH165,4)","=ROUND(0.0652680652680653,4)","2016-04-01",null,1325,5249,12000,"Btu/hr",null,1071.1454823833506,"Coefficient"]
["Business Standard","CAC >240 kBtuh",93,"C&I","HVAC",null,"per ton",100,{"$f":"ROUND((1/W166-1/T166)*AC166*AE166/AH166,4)","v":70.685299999999998},null,{"$f":"I166/P166","v":7.0685299999999993E-2},{"$f":"N166/K166","v":0.80780586628337159},null,{"$f":"ROUND(0.0571428571428573,4)","v":5.7099999999999998E-2},null,1000,null,15,"EER",10.5,null,"EER",10,null,{"$f":"cellformula(I166)","v":"=ROUND((1/W166-1/T166)*AC166*AE166/AH166,4)"},{"$f":"cellformula(N166)","v":"=ROUND(0.0571428571428573,4)"},"2016-04-01",null,1325,5249,12000,"Btu/hr",null,1071.1454823833506,"Coefficient"]
["Business Standard","Interior Directional LED Lamp replacing 50-70W Lamp",96.2,"C&I","Lighting",null,"per lamp",40,{"$f":"ROUND((W167-T167)/1000*P167*AE167,4)","v":223.66909999999999},"IL TRM v5",{"$f":"(W167-T167)/1000*AH167","v":6.8835800000000003E-2},0.61929999999999996,"IL TRM v5",{"$f":"ROUND(K167*L167,4)","v":4.2599999999999999E-2},"IL TRM v5",3088,"IL TRM v5",11,"LED (watts)",13.63,"IL TRM v5","Incandescent (watts)",65,"IL TRM v5",{"$f":"cellformula(I167)","v":"=ROUND((W167-T167)/1000*P167*AE167,4)"},{"$f":"cellformula(N167)","v":"=ROUND(K167*L167,4)"},"2018-04-01","2019-03-31",null,null,1.41,"Waste Heat Factor Energy","IL TRM v5",1.34,"Waste Heat Factor Demand","IL TRM v5"]
["Business Standard","Interior Directional LED Lamp replacing 50-70W Lamp",96.3,"C&I","Lighting",null,"per lamp",15,{"$f":"ROUND((W168-T168)/1000*P168*AE168,4)","v":214.65610000000001},"IL TRM v5",{"$f":"(W168-T168)/1000*AH168","v":6.6061999999999996E-2},0.61929999999999996,"IL TRM v5",4.0899999999999999E-2,"IL TRM v5",3088,"IL TRM v5",{"$f":"ROUND(25000/P168,0)","v":8},"LED (watts)",10.7,"Program Tracking Database","Incandescent (watts)",60,"Midpoint Value",{"$f":"cellformula(I168)","v":"=ROUND((W168-T168)/1000*P168*AE168,4)"},{"$f":"cellformula(N168)","v":"=ROUND(K168*L168,4)"},"2019-04-01",null,null,null,1.41,"Waste Heat Factor Energy","IL TRM v5",1.34,"Waste Heat Factor Demand","IL TRM v5"]
["Business Standard","Interior Directional LED Lamp replacing 71-110W Lamp",97.2,"C&I","Lighting",null,"per lamp",50,{"$f":"ROUND((W169-T169)/1000*P169*AE169,4)","v":306.52719999999999},"IL TRM v5",{"$f":"(W169-T169)/1000*AH169","v":9.4336000000000017E-2},0.61929999999999996,"IL TRM v5",{"$f":"ROUND(K169*L169,4)","v":5.8400000000000001E-2},"IL TRM v5",3088,"IL TRM v5",11,"LED (watts)",19.600000000000001,"IL TRM v5","Incandescent (watts)",90,"IL TRM v5",{"$f":"cellformula(I169)","v":"=ROUND((W169-T169)/1000*P169*AE169,4)"},{"$f":"cellformula(N169)","v":"=ROUND(K169*L169,4)"},"2018-04-01","2019-03-31",null,null,1.41,"Waste Heat Factor Energy","IL TRM v5",1.34,"Waste Heat Factor Demand","IL TRM v5"]
["Business Standard","Interior Directional LED Lamp replacing 71-110W Lamp",97.3,"C&I","Lighting",null,"per lamp",20,{"$f":"ROUND((W170-T170)/1000*P170*AE170,4)","v":327.42680000000001},"IL TRM v5",{"$f":"(W170-T170)/1000*AH170","v":0.10076800000000001},0.61929999999999996,"IL TRM v5",6.2399999999999997E-2,"IL TRM v5",3088,"IL TRM v5",{"$f":"ROUND(25000/P170,0)","v":8},"LED (watts)",14.8,"Program Tracking Database","Incandescent (watts)",90,"Midpoint Value",{"$f":"cellformula(I170)","v":"=ROUND((W170-T170)/1000*P170*AE170,4)"},{"$f":"cellformula(N170)","v":"=ROUND(K170*L170,4)"},"2019-04-01",null,null,null,1.41,"Waste Heat Factor Energy","IL TRM v5",1.34,"Waste Heat Factor Demand","IL TRM v5"]
["Business Standard","High Performance High-Bay Fluorescent Fixture T8 > 4 Lamps Replacing HID Fixture",98.1,"C&I","Lighting",null,"per fixture",200,{"$f":"ROUND((W171-T171)/1000*P171*AE171,4)","v":1084.1659},null,{"$f":"(W171-T171)/1000*AH171","v":0.33366000000000001},0.66,null,{"$f":"ROUND(K171*L171,4)","v":0.22020000000000001},null,3088,null,15,"High Bay T8 (>4 lamps, wattage)",206,null,"Metal Halide (watts)",455,null,"=ROUND((W171-T171)/1000*P171*AE171,4)","=ROUND(K171*L171,4)","2017-04-07",null,null,null,1.41,"Waste Heat Factor",null,1.34,"Waste Heat Factor"]
["Business Standard","High Bay Fluorescent Fixture (HP T8 <=4 lamps)",99,"C&I","Lighting",null,"per fixture",225,648.75789999999995,null,0.19966,0.66,null,{"$f":"ROUND(K172*L172,4)","v":0.1318},null,3088,null,15,"High Bay T8 (≤4 lamps, wattage)",146,null,"Metal Halide (watts)",295,null,"=ROUND((W172-T172)/1000*P172*AE172,4)","=ROUND(K172*L172,4)","2016-04-01",null,null,null,1.41,"Waste Heat Factor",null,1.34,"Waste Heat Factor"]
["Business Standard","High-Bay Fluorescent Fixture T5 > 4 Lamps w/ HE Electronic Ballast Replacing HID Fixture",100.1,"C&I","Lighting",null,"per fixture",100,701.00689999999997,null,0.21574000000000002,0.66,null,{"$f":"ROUND(K173*L173,4)","v":0.1424},null,3088,null,15,"High Bay T5 (>4 lamps, wattage)",295,null,"Metal Halide (watts)",456,null,"=ROUND((W173-T173)/1000*P173*AE173,4)","=ROUND(K173*L173,4)","2017-04-07",null,null,null,1.41,"Waste Heat Factor",null,1.34,"Waste Heat Factor"]
["Business Standard","High-Bay Fluorescent Fixture T5 <= 4 Lamps w/ HE Electronic Ballast Replacing HID Fixture",101.1,"C&I","Lighting",null,"per fixture",100,404.92939999999999,null,0.12462000000000001,0.66,null,{"$f":"ROUND(K174*L174,4)","v":8.2199999999999995E-2},null,3088,null,15,"High Bay T5 (≤4 lamps, wattage)",117,null,"Metal Halide (watts)",210,null,"=ROUND((W174-T174)/1000*P174*AE174,4)","=ROUND(K174*L174,4)","2017-04-07",null,null,null,1.41,"Waste Heat Factor",null,1.34,"Waste Heat Factor"]
["Business Standard","LED Exit Sign",102.1,"C&I","Lighting",null,"per lamp",30,{"$f":"ROUND((W175-T175)/1000*P175*AE175*AK175,4)","v":50.598799999999997},"IL TRM V.5 and Navigant Field Work",{"$f":"(W175-T175)/1000*AH175*AK175","v":1.1821177180396538E-2},0.69103221292771599,"Navigant field work",8.2000000000000007E-3,"IL TRM V.5 and Navigant Field Work",5079.677101315252,"Navigant field work",16,"LED (watts)",2.0791505791505789,"IL TRM V.5 and Navigant field work","Fluorescent (watts)",11,"IL TRM V.5","=ROUND((W175-T175)/1000*P175*AE175*AK175,4)","=ROUND(K175*L175,4)","2018-04-01","2019-03-31",null,null,1.1293068008335863,"Waste Heat Factor","Navigant Field Work",1.3401960901115688,"Waste Heat Factor","Navigant Field Work",0.98874925981972495,"ISR","Navigant field work"," "]
["Business Standard","LED Exit Sign",102.2,"C&I","Lighting",null,"per lamp",30,{"$f":"ROUND((W176-T176)/1000*P176*AE176*AK176,4)","v":45.375799999999998},"IL TRM V.5 and Navigant Field Work",{"$f":"(W176-T176)/1000*AH176*AK176","v":1.0600943136888825E-2},0.69103221292771599,"Navigant field work",7.3000000000000001E-3,"IL TRM V.5 and Navigant Field Work",5079.677101315252,"Navigant field work",16,"LED (watts)",3,"Program Tracking Database","Fluorescent (watts)",11,"IL TRM V.5",{"$f":"cellformula(I176)","v":"=ROUND((W176-T176)/1000*P176*AE176*AK176,4)"},{"$f":"cellformula(N176)","v":"=ROUND(K176*L176,4)"},"2019-04-01",null,null,null,1.1293068008335863,"Waste Heat Factor","Navigant Field Work",1.3401960901115688,"Waste Heat Factor","Navigant Field Work",0.98874925981972495,"ISR","Navigant field work"," "]
["Business Standard","LED Flood Light (<15W)",103,"C&I","Lighting",null,"per lamp",35,{"$f":"ROUND((W177-T177)/1000*P177*AE177,4)","v":210.82900000000001},null,{"$f":"(W177-T177)/1000*AH177","v":4.2999999999999997E-2},0,null,0,null,4903,null,10,"LED (watts)",8.6999999999999993,null,"Metal Halide (watts)",51.7,null,"=ROUND((W177-T177)/1000*P177*AE177,4)","=ROUND(K177*L177,4)","2016-04-01",null,null,null,1,"Waste Heat Factor",null,1,"Waste Heat Factor"]
["Business Standard","LED Flood Light (>=15W)",104,"C&I","Lighting",null,"per lamp",45,236.3246,null,4.82E-2,0,null,0,null,4903,null,10,"LED (watts)",16.2,null,"Metal Halide (watts)",64.400000000000006,null,"=ROUND((W178-T178)/1000*P178*AE178,4)","=ROUND(K178*L178,4)","2016-04-01",null,null,null,1,"Waste Heat Factor",null,1,"Waste Heat Factor"]
["Business Standard","LED Recessed Fixture (1 ft x 4 ft)",106,"C&I","Lighting",null,"per fixture",36.17,116.6893,null,3.5911999999999999E-2,0.66,null,2.3699999999999999E-2,null,3088,null,11,"Linear style LED (watts)",32.200000000000003,null,"Standard T8 (watts)",59,null,"=ROUND((W179-T179)/1000*P179*AE179,4)","=ROUND(K179*L179,4)","2016-04-01",null,null,null,1.41,"Waste Heat Factor",null,1.34,"Waste Heat Factor"]
["Business Standard","LED Recessed Fixture (2 ft x 2 ft)",107,"C&I","Lighting",null,"per fixture",22.55,70.100700000000003,null,2.1573999999999999E-2,0.66,null,1.4200000000000001E-2,null,3088,null,11,"Linear style LED (watts)",44.9,null,"T8 U-tube (watts)",61,null,"=ROUND((W180-T180)/1000*P180*AE180,4)","=ROUND(K180*L180,4)","2016-04-01",null,null,null,1.41,"Waste Heat Factor",null,1.34,"Waste Heat Factor"]
["Business Standard","LED Recessed Fixture (2 ft x 4 ft)",108,"C&I","Lighting",null,"per fixture",55.5,149.78039999999999,null,4.6096000000000005E-2,0.66,null,3.04E-2,null,3088,null,11,"Linear style LED (watts)",53.6,null,"Standard T8 (watts)",88,null,"=ROUND((W181-T181)/1000*P181*AE181,4)","=ROUND(K181*L181,4)","2016-04-01",null,null,null,1.41,"Waste Heat Factor",null,1.34,"Waste Heat Factor"]
["Business Standard","Remove 4ft Lamp from T8 or T12 system",109.1,"C&I","Lighting",null,"per lamp",12,121.91419999999999,null,3.7520000000000005E-2,0.66,null,2.4799999999999999E-2,null,3088,null,11,"Remove T8",0,null,"T8 4 ft (watts)",28,null,"=ROUND((W182-T182)/1000*P182*AE182,4)","=ROUND(K182*L182,4)","2017-04-07",null,null,null,1.41,"Waste Heat Factor",null,1.34,"Waste Heat Factor"]
["Business Standard","Remove 8ft Lamp from T8 or T12 System",110.1,"C&I","Lighting",null,"per lamp",16,{"$f":"ROUND((W183-T183)/1000*P183*AE183,4)","v":252.53659999999999},null,{"$f":"(W183-T183)/1000*AH183","v":7.7720000000000011E-2},0.66,null,5.1299999999999998E-2,null,3088,null,11,"Remove T8",0,null,"T8 8 ft (watts)",58,null,"=ROUND((W183-T183)/1000*P183*AE183,4)","=ROUND(K183*L183,4)","2017-04-07",null,null,null,1.41,"Waste Heat Factor",null,1.34,"Waste Heat Factor"]
["Business Standard","Interior Omnidirectional LED Lamp replacing 40-60W Lamp",112.2,"C&I","Lighting",null,"per lamp",28.75,{"$f":"ROUND((W184-T184)/1000*P184*AE184,4)","v":117.3425},"IL TRM v5",{"$f":"(W184-T184)/1000*AH184","v":3.6112999999999999E-2},0.61929999999999996,"IL TRM v5",2.24E-2,"IL TRM v5",3088,"IL TRM v5",8,"LED (watts)",9.0500000000000007,"IL TRM v5","EISA tier 1 compliant Halogen (watts)",36,"IL TRM v5",{"$f":"cellformula(I184)","v":"=ROUND((W184-T184)/1000*P184*AE184,4)"},{"$f":"cellformula(N184)","v":"=ROUND(K184*L184,4)"},"2018-04-01","2019-03-31",null,null,1.41,"Waste Heat Factor Energy","IL TRM v5",1.34,"Waste Heat Factor Demand","IL TRM v5"]
["Business Standard","Interior Omnidirectional LED Lamp replacing 40-60W Lamp",112.3,"C&I","Lighting",null,"per lamp",8,{"$f":"ROUND((W185-T185)/1000*P185*AE185,4)","v":178.2996},"IL TRM v5",{"$f":"(W185-T185)/1000*AH185","v":5.4873000000000005E-2},0.61929999999999996,"IL TRM v5",3.4000000000000002E-2,"IL TRM v5",3088,"IL TRM v5",{"$f":"ROUND(25000/P185,0)","v":8},"LED (watts)",9.0500000000000007,"IL TRM v5","EISA tier 1 compliant Halogen (watts)",50,"Midpoint Value",{"$f":"cellformula(I185)","v":"=ROUND((W185-T185)/1000*P185*AE185,4)"},{"$f":"cellformula(N185)","v":"=ROUND(K185*L185,4)"},"2019-04-01",null,null,null,1.41,"Waste Heat Factor Energy","IL TRM v5",1.34,"Waste Heat Factor Demand","IL TRM v5"]
["Business Standard","Interior Omnidirectional LED Lamp replacing 61-100W Lamp",113.2,"C&I","Lighting",null,"per lamp",38.75,{"$f":"ROUND((W186-T186)/1000*P186*AE186,4)","v":160.66560000000001},"IL TRM v5",{"$f":"(W186-T186)/1000*AH186","v":4.9445999999999997E-2},0.61929999999999996,"IL TRM v5",3.0599999999999999E-2,"IL TRM v5",3088,"IL TRM v5",8,"LED (watts)",16.100000000000001,"IL TRM v5","EISA tier 1 compliant Halogen (watts)",53,"IL TRM v5",{"$f":"cellformula(I186)","v":"=ROUND((W186-T186)/1000*P186*AE186,4)"},{"$f":"cellformula(N186)","v":"=ROUND(K186*L186,4)"},"2018-04-01","2019-03-31",null,null,1.41,"Waste Heat Factor Energy","IL TRM v5",1.34,"Waste Heat Factor Demand","IL TRM v5"]
["Business Standard","Interior Omnidirectional LED Lamp replacing 61-100W Lamp",113.3,"C&I","Lighting",null,"per lamp",12,{"$f":"ROUND((W187-T187)/1000*P187*AE187,4)","v":300.43150000000003},"IL TRM v5",{"$f":"(W187-T187)/1000*AH187","v":9.2460000000000014E-2},0.61929999999999996,"IL TRM v5",5.7299999999999997E-2,"IL TRM v5",3088,"IL TRM v5",{"$f":"ROUND(25000/P187,0)","v":8},"LED (watts)",11,"Program Tracking Database","EISA tier 1 compliant Halogen (watts)",80,"Midpoint Value",{"$f":"cellformula(I187)","v":"=ROUND((W187-T187)/1000*P187*AE187,4)"},{"$f":"cellformula(N187)","v":"=ROUND(K187*L187,4)"},"2019-04-01",null,null,null,1.41,"Waste Heat Factor Energy","IL TRM v5",1.34,"Waste Heat Factor Demand","IL TRM v5"]
["Business Standard","Interior Daylighting Controls Replacing No Controls",114.1,"C&I","Lighting",null,"per sensor",66,{"$f":"ROUND(T188/1000*AK188*P188*AE188,4)","v":692.63400000000001},null,{"$f":"T188/1000*AK188*AH188","v":0.21316318000000001},0.66,null,0.14069999999999999,null,3088,null,8,"Photocell Occupancy Sensor",587,null,"No Control",null,null,"=ROUND(T188/1000*AK188*P188*AE188,4)","=ROUND(K188*L188,4)","2017-04-07",null,null,null,1.41,"Waste Heat Factor",null,1.34,"Waste Heat Factor",null,0.27100000000000002,"ESF"]
["Business Standard","Interior Occupancy or Vacancy Sensor Replacing No Controls",115.1,"C&I","Lighting",null,"per sensor",42,{"$f":"ROUND(T189/1000*AK189*P189*AE189,4)","v":457.17840000000001},null,{"$f":"T189/1000*AK189*AH189","v":0.14069999999999999},0.66,null,9.2899999999999996E-2,null,3088,null,8,"Wall-Mount Occupancy Sensor",350,null,"No Control",null,null,"=ROUND(T189/1000*AK189*P189*AE189,4)","=ROUND(K189*L189,4)","2017-04-07",null,null,null,1.41,"Waste Heat Factor",null,1.34,"Waste Heat Factor",null,0.3,"ESF"]
["Business Standard","High Volume Low Speed Fans (20ft Diameter)",116,"C&I","Pumps/Fans",null,"per fan",4150,{"$f":"ROUND(6577,4)","v":6577},null,null,null,null,{"$f":"ROUND(2.4,4)","v":2.4},null,null,null,10,null,null,null,null,null,null,"=ROUND(6577,4)","=ROUND(2.4,4)","2016-04-01"]
["Business Standard","High Volume Low Speed Fans (22ft Diameter)",117,"C&I","Pumps/Fans",null,"per fan",4180,{"$f":"ROUND(8543,4)","v":8543},null,null,null,null,{"$f":"ROUND(3.1,4)","v":3.1},null,null,null,10,null,null,null,null,null,null,"=ROUND(8543,4)","=ROUND(3.1,4)","2016-04-01"]
["Business Standard","High Volume Low Speed Fans (24ft Diameter)",118,"C&I","Pumps/Fans",null,"per fan",4225,{"$f":"ROUND(10018,4)","v":10018},null,null,null,null,{"$f":"ROUND(3.7,4)","v":3.7},null,null,null,10,null,null,null,null,null,null,"=ROUND(10018,4)","=ROUND(3.7,4)","2016-04-01"]
["Business Standard","Compressed Air - Engineered Nozzle 1/4\"",119,"C&I","Pumps/Fans",null,"per unit",57,{"$f":"ROUND(1086.638,4)","v":1086.6379999999999},null,null,null,null,{"$f":"ROUND(0.511,4)","v":0.51100000000000001},null,null,null,15,null,null,null,null,null,null,"=ROUND(1086.638,4)","=ROUND(0.511,4)","2016-04-01"]
["Business Standard","Compressed Air - Engineered Nozzle 1/8\"",120,"C&I","Pumps/Fans",null,"per unit",42,{"$f":"ROUND(393.438,4)","v":393.43799999999999},null,null,null,null,{"$f":"ROUND(0.163,4)","v":0.16300000000000001},null,null,null,15,null,null,null,null,null,null,"=ROUND(393.438,4)","=ROUND(0.163,4)","2016-04-01"]
["Business Standard","Compressed Air - No Loss Condensate Drain/Valve",121.1,"C&I","Pumps/Fans",null,"per unit",700,{"$f":"ROUND(1969.65,4)","v":1969.65},null,null,null,null,{"$f":"ROUND(0.30495,4)","v":0.30499999999999999},"IL TRM V.5",null,null,15,null,null,null,null,null,null,"=ROUND(1969.65,4)","=ROUND(0.30495,4)","2018-04-01"]
["Business Standard","Variable Speed Drive Compressor - 1 shift weekdays",122,"C&I","Pumps/Fans",null,"per HP",140.37,{"$f":"ROUND(329,4)","v":329},null,null,null,null,{"$f":"ROUND(0.15818,4)","v":0.15820000000000001},null,null,null,10,null,null,null,null,null,null,"=ROUND(329,4)","=ROUND(0.15818,4)","2016-04-01"]
["Business Standard","Variable Speed Drive Compressor - 2 shift weekdays",123,"C&I","Pumps/Fans",null,"per HP",140.37,{"$f":"ROUND(658,4)","v":658},null,null,null,null,{"$f":"ROUND(0.15818,4)","v":0.15820000000000001},null,null,null,10,null,null,null,null,null,null,"=ROUND(658,4)","=ROUND(0.15818,4)","2016-04-01"]
["Business Standard","Variable Speed Drive Compressor - 3 shift weekdays",124,"C&I","Pumps/Fans",null,"per HP",140.37,{"$f":"ROUND(987,4)","v":987},null,null,null,null,{"$f":"ROUND(0.15818,4)","v":0.15820000000000001},null,null,null,10,null,null,null,null,null,null,"=ROUND(987,4)","=ROUND(0.15818,4)","2016-04-01"]
["Business Standard","Variable Speed Drive Compressor - 3 shift weekdays plus weekends",125,"C&I","Pumps/Fans",null,"per HP",140.37,{"$f":"ROUND(1385.3,4)","v":1385.3},null,null,null,null,{"$f":"ROUND(0.15818,4)","v":0.15820000000000001},null,null,null,10,null,null,null,null,null,null,"=ROUND(1385.3,4)","=ROUND(0.15818,4)","2016-04-01"]
["Business Standard","Advanced Rooftop Unit Controls, 2000-4000 annual hours occupancy",137,"C&I","HVAC",null,"per ton",400,{"$f":"ROUND(420,4)","v":420},null,null,null,null,{"$f":"ROUND(0.15,4)","v":0.15},null,null,null,15,null,null,null,null,null,null,"=ROUND(420,4)","=ROUND(0.15,4)","2016-04-01"]
["Business Standard","Advanced Rooftop Unit Controls, > 4000 annual hours occupancy",138,"C&I","HVAC",null,"per ton",400,{"$f":"ROUND(700,4)","v":700},null,null,null,null,{"$f":"ROUND(0.15,4)","v":0.15},null,null,null,15,null,null,null,null,null,null,"=ROUND(700,4)","=ROUND(0.15,4)","2016-04-01"]
["Business Standard","Variable Speed ECM Pump, <100 Watts Max Input, Domestic Hot Water Recirculation",139,"C&I","Pumps/Fans",null,"per pump",690.79,{"$f":"ROUND(1312.09,4)","v":1312.09},null,null,null,null,{"$f":"ROUND(0.228,4)","v":0.22800000000000001},null,null,null,15,null,null,null,null,null,null,"=ROUND(1312.09,4)","=ROUND(0.228,4)","2016-04-01"]
["Business Standard","Variable Speed ECM Pump, 100 - 500 Watts Max Input, Domestic Hot Water Recirculation",140,"C&I","Pumps/Fans",null,"per pump",1324.75,{"$f":"ROUND(6555.36,4)","v":6555.36},null,null,null,null,{"$f":"ROUND(1.139,4)","v":1.139},null,null,null,15,null,null,null,null,null,null,"=ROUND(6555.36,4)","=ROUND(1.139,4)","2016-04-01"]
["Business Standard","Variable Speed ECM Pump, <100 Watts Max Input, Heating Water Circulation",142,"C&I","Pumps/Fans",null,"per pump",690.79,{"$f":"ROUND(359.03,4)","v":359.03},null,null,null,null,{"$f":"ROUND(0,4)","v":0},null,null,null,15,null,null,null,null,null,null,"=ROUND(359.03,4)","=ROUND(0,4)","2016-04-01"]
["Business Standard","Variable Speed ECM Pump, 100 - 500 Watts Max Input, Heating Water Circulation",143,"C&I","Pumps/Fans",null,"per pump",1324.75,{"$f":"ROUND(1793.58,4)","v":1793.58},null,null,null,null,{"$f":"ROUND(0,4)","v":0},null,null,null,15,null,null,null,null,null,null,"=ROUND(1793.58,4)","=ROUND(0,4)","2016-04-01"]
["Business Standard","Variable Speed ECM Pump, >500 Watts Max Input, Heating Water Circulation",144,"C&I","Pumps/Fans",null,"per pump",1844.58,{"$f":"ROUND(7174.33,4)","v":7174.33},null,null,null,null,{"$f":"ROUND(0,4)","v":0},null,null,null,15,null,null,null,null,null,null,"=ROUND(7174.33,4)","=ROUND(0,4)","2016-04-01"]
["Business Standard","Parking Garage 4ft 3 Lamp T5/T5HO or T8 replacing > 175W Fixture",146.1,"C&I","Lighting","Annual Operating Hours, Measure Life and CF source:  IL TRM","per fixture",136,{"$f":"ROUND((W207-T207)*(AE207)*P207/1000,4)","v":902.28},null,{"$f":"(W207-T207)*AH207/1000","v":0.10299999999999999},1,null,{"$f":"ROUND(K207*L207,4)","v":0.10299999999999999},null,8760,null,{"$f":"ROUND(50000/P207,0)","v":6},"4-ft 3L to 4L 4' T5, T5HO or T8",155,null,"200W - 250W HID Fixture",258,null,"=ROUND((W207-T207)*(AE207)*P207/1000,4)","=ROUND(K207*L207,4)","2017-04-07",null,null,null,1,"Waste Heat Factor_Energy",null,1,"Waste Heat Factor_Demand"]
["Business Standard","Parking Garage 4ft 2 Lamp T5/T5HO or T8 replacing 101W-175W Fixture",147.1,"C&I","Lighting","Annual Operating Hours, Measure Life and CF source:  IL TRM","per fixture",105,981.12,null,0.112,1,null,0.112,null,8760,null,6,"4-ft 2L to 3L 4' T5, T5HO or T8",84,null,"125W - 175W HID Fixture",196,null,"=ROUND((W208-T208)*(AE208)*P208/1000,4)","=ROUND(K208*L208,4)","2017-04-07","2019-03-31",null,null,1,"Waste Heat Factor_Energy",null,1,"Waste Heat Factor_Demand"]
["Business Standard","Parking Garage 4ft 2 Lamp T5/T5HO or T8 replacing 101W-175W Fixture",147.19999999999999,"C&I","Lighting","Annual Operating Hours, Measure Life and CF source:  IL TRM","per fixture",105,578.16,null,6.6000000000000003E-2,1,null,6.6000000000000003E-2,null,8760,null,6,"4-ft 2L to 3L 4' T5, T5HO or T8",84,null,"125W - 175W HID Fixture",150,"Midpoint Value",{"$f":"cellformula(I209)","v":"=ROUND((W209-T209)*(AE209)*P209/1000,4)"},{"$f":"cellformula(N209)","v":"=ROUND(K209*L209,4)"},"2019-04-01",null,null,null,1,"Waste Heat Factor_Energy",null,1,"Waste Heat Factor_Demand"]
["Business Standard","Parking Garage 4ft 1 Lamp T5/T5HO or T8 replacing <= 100W Fixture",148.1,"C&I","Lighting","Annual Operating Hours, Measure Life and CF source:  IL TRM","per fixture",74,613.20000000000005,null,7.0000000000000007E-2,1,null,7.0000000000000007E-2,null,8760,null,6,"4-ft 1L to 2L 4' T5, T5HO or T8 ",54,null,"≤ 100 W HID Fixture",124,null,{"$f":"cellformula(I210)","v":"=ROUND((W210-T210)*(AE210)*P210/1000,4)"},{"$f":"cellformula(N210)","v":"=ROUND(K210*L210,4)"},"2017-04-07",null,null,null,1,"Waste Heat Factor_Energy",null,1,"Waste Heat Factor_Demand"]
["Business Standard","Exterior LED replacing > 400W Fixture or Mogul Screw-Base Lamp",149.1,"C&I","Lighting","Annual Operating Hours and CF source:  IN TRM, Measure Life source: IL TRM","per fixture",1182.5,2661.7,null,0.61899999999999999,0,null,0,null,4300,null,12,"LED Exterior Lighting Fixtures (Includes Street and Area, Decorative, Soffit and Canopy, Wall-mounted, and Landscape and Flood lighting)",412,null,"> 400 W HID Fixture",1031,null,"=ROUND((W211-T211)*(AE211)*P211/1000,4)","=ROUND(K211*L211,4)","2017-04-07","2019-03-31",null,null,1,"Waste Heat Factor_Energy",null,1,"Waste Heat Factor_Demand"]
["Business Standard","Exterior LED replacing > 400W Fixture or Mogul Screw-Base Lamp",149.19999999999999,"C&I","Lighting","Annual Operating Hours and CF source:  IN TRM, Measure Life source: IL TRM","per fixture",1182.5,3838.61,null,0.89270000000000005,0,null,0,null,4300,null,12,"LED Exterior Lighting Fixtures (Includes Street and Area, Decorative, Soffit and Canopy, Wall-mounted, and Landscape and Flood lighting)",185.3,"Program Tracking Database","> 400 W HID Fixture",1078,"1000W MH Fixture",{"$f":"cellformula(I212)","v":"=ROUND((W212-T212)*(AE212)*P212/1000,4)"},{"$f":"cellformula(N212)","v":"=ROUND(K212*L212,4)"},"2019-04-01",null,null,null,1,"Waste Heat Factor_Energy",null,1,"Waste Heat Factor_Demand"]
["Business Standard","Exterior LED replacing 251W-400W Fixture or Mogul Screw‐Base Lamp",150.1,"C&I","Lighting","Annual Operating Hours and CF source:  IN TRM, Measure Life source: IL TRM","per fixture",535,{"$f":"ROUND((W213-T213)*(AE213)*P213/1000,4)","v":1191.0999999999999},null,{"$f":"(W213-T213)*AH213/1000","v":0.27700000000000002},0,null,0,null,4300,null,{"$f":"ROUND(50000/P213,0)","v":12},"LED Exterior Lighting Fixtures (Includes Street and Area, Decorative, Soffit and Canopy, Wall-mounted, and Landscape and Flood lighting)",167,null,"320 W Pulse Start and 400W MH/HPS Fixture",444,null,"=ROUND((W213-T213)*(AE213)*P213/1000,4)","=ROUND(K213*L213,4)","2017-04-07","2019-03-31",null,null,1,"Waste Heat Factor_Energy",null,1,"Waste Heat Factor_Demand"]
["Business Standard","Exterior LED replacing 251W-400W Fixture or Mogul Screw‐Base Lamp",150.19999999999999,"C&I","Lighting","Annual Operating Hours and CF source:  IN TRM, Measure Life source: IL TRM","per fixture",535,796.79,null,0.18530000000000002,0,null,0,null,4300,null,12,"LED Exterior Lighting Fixtures (Includes Street and Area, Decorative, Soffit and Canopy, Wall-mounted, and Landscape and Flood lighting)",139.69999999999999,"Program Tracking Database","320 W Pulse Start and 400W MH/HPS Fixture",325,"Midpoint Value",{"$f":"cellformula(I214)","v":"=ROUND((W214-T214)*(AE214)*P214/1000,4)"},{"$f":"cellformula(N214)","v":"=ROUND(K214*L214,4)"},"2019-04-01",null,null,null,1,"Waste Heat Factor_Energy",null,1,"Waste Heat Factor_Demand"]
["Business Standard","Exterior LED replacing 175W-250W Fixture or Mogul Screw-Base Lamp",151.1,"C&I","Lighting","Annual Operating Hours and CF source:  IN TRM, Measure Life source: IL TRM","per fixture",398.8,602,null,0.14000000000000001,0,null,0,null,4300,null,12,"LED Exterior Lighting Fixtures (Includes Street and Area, Decorative, Soffit and Canopy, Wall-mounted, and Landscape and Flood lighting)",82,null,"175 W HID - 250 W HID Fixture",222,null,"=ROUND((W215-T215)*(AE215)*P215/1000,4)","=ROUND(K215*L215,4)","2017-04-07","2019-03-31",null,null,1,"Waste Heat Factor_Energy",null,1,"Waste Heat Factor_Demand"]
["Business Standard","Exterior LED replacing 175W-250W Fixture or Mogul Screw-Base Lamp",151.19999999999999,"C&I","Lighting","Annual Operating Hours and CF source:  IN TRM, Measure Life source: IL TRM","per fixture",398.8,600.28,null,0.1396,0,null,0,null,4300,null,12,"LED Exterior Lighting Fixtures (Includes Street and Area, Decorative, Soffit and Canopy, Wall-mounted, and Landscape and Flood lighting)",73.400000000000006,"Program Tracking Database","175 W HID - 250 W HID Fixture",213,"Midpoint Value",{"$f":"cellformula(I216)","v":"=ROUND((W216-T216)*(AE216)*P216/1000,4)"},{"$f":"cellformula(N216)","v":"=ROUND(K216*L216,4)"},"2019-04-01",null,null,null,1,"Waste Heat Factor_Energy",null,1,"Waste Heat Factor_Demand"]
["Business Standard","Exterior LED replacing < 175W Fixture or Mogul Screw-Base Lamp",152.1,"C&I","Lighting","Annual Operating Hours and CF source:  IN TRM, Measure Life source: IL TRM","per fixture",299.75,490.2,null,0.114,0,null,0,null,4300,null,12,"LED Exterior Lighting Fixtures (Includes Street and Area, Decorative, Soffit and Canopy, Wall-mounted, and Landscape and Flood lighting)",37,null,"< 175 W HID Fixture",151,null,"=ROUND((W217-T217)*(AE217)*P217/1000,4)","=ROUND(K217*L217,4)","2017-04-07","2019-03-31",null,null,1,"Waste Heat Factor_Energy",null,1,"Waste Heat Factor_Demand"]
["Business Standard","Exterior LED replacing < 175W Fixture or Mogul Screw-Base Lamp",152.19999999999999,"C&I","Lighting","Annual Operating Hours and CF source:  IN TRM, Measure Life source: IL TRM","per fixture",299.75,532.34,null,0.12379999999999999,0,null,0,null,4300,null,12,"LED Exterior Lighting Fixtures (Includes Street and Area, Decorative, Soffit and Canopy, Wall-mounted, and Landscape and Flood lighting)",27.2,"Program Tracking Database","< 175 W HID Fixture",151,null,{"$f":"cellformula(I218)","v":"=ROUND((W218-T218)*(AE218)*P218/1000,4)"},{"$f":"cellformula(N218)","v":"=ROUND(K218*L218,4)"},"2019-04-01",null,null,null,1,"Waste Heat Factor_Energy",null,1,"Waste Heat Factor_Demand"]
["Business Standard","Parking Garage LED replacing > 175W Fixture or Mogul Screw-Base Lamp",153.1,"C&I","Lighting","Annual Operating Hours source, Measure Life and CF source:  IL TRM","per fixture",520,902.28,null,0.10299999999999999,1,null,0.10299999999999999,null,8760,null,6,"LED Parking Garage Lighting Fixtures",155,null,"200W - 250W HID Fixture",258,null,"=ROUND((W219-T219)*(AE219)*P219/1000,4)","=ROUND(K219*L219,4)","2017-04-07","2019-03-31",null,null,1,"Waste Heat Factor_Energy",null,1,"Waste Heat Factor_Demand"]
["Business Standard","Parking Garage LED replacing > 175W Fixture or Mogul Screw-Base Lamp",153.19999999999999,"C&I","Lighting","Annual Operating Hours source, Measure Life and CF source:  IL TRM","per fixture",520,1376.1959999999999,null,0.15709999999999999,1,null,0.15709999999999999,null,8760,null,6,"LED Parking Garage Lighting Fixtures",100.9,"Program Tracking Database","200W - 250W HID Fixture",258,null,{"$f":"cellformula(I220)","v":"=ROUND((W220-T220)*(AE220)*P220/1000,4)"},{"$f":"cellformula(N220)","v":"=ROUND(K220*L220,4)"},"2019-04-01",null,null,null,1,"Waste Heat Factor_Energy",null,1,"Waste Heat Factor_Demand"]
["Business Standard","Parking Garage LED replacing 101W-175W Fixture or Mogul Screw-Base Lamp",154.1,"C&I","Lighting","Annual Operating Hours source, Measure Life and CF source:  IL TRM","per fixture",380,981.12,null,0.112,1,null,0.112,null,8760,null,6,"LED Parking Garage Lighting Fixtures",84,null,"125W - 175W HID Fixture",196,null,"=ROUND((W221-T221)*(AE221)*P221/1000,4)","=ROUND(K221*L221,4)","2017-04-07","2019-03-31",null,null,1,"Waste Heat Factor_Energy",null,1,"Waste Heat Factor_Demand"]
["Business Standard","Parking Garage LED replacing 101W-175W Fixture or Mogul Screw-Base Lamp",154.19999999999999,"C&I","Lighting","Annual Operating Hours source, Measure Life and CF source:  IL TRM","per fixture",380,706.05600000000004,null,8.0599999999999991E-2,1,null,8.0600000000000005E-2,null,8760,null,6,"LED Parking Garage Lighting Fixtures",56.4,"Program Tracking Database","125W - 175W HID Fixture",137,"Midpoint Value",{"$f":"cellformula(I222)","v":"=ROUND((W222-T222)*(AE222)*P222/1000,4)"},{"$f":"cellformula(N222)","v":"=ROUND(K222*L222,4)"},"2019-04-01",null,null,null,1,"Waste Heat Factor_Energy",null,1,"Waste Heat Factor_Demand"]
["Business Standard","Parking Garage LED replacing <= 100W Fixture or Mogul Screw-Base Lamp",155.1,"C&I","Lighting","Annual Operating Hours source, Measure Life and CF source:  IL TRM","per fixture",320,613.20000000000005,null,7.0000000000000007E-2,1,null,7.0000000000000007E-2,null,8760,null,6,"LED Parking Garage Lighting Fixtures",54,null,"≤ 100 W HID Fixture",124,null,"=ROUND((W223-T223)*(AE223)*P223/1000,4)","=ROUND(K223*L223,4)","2017-04-07",null,null,null,1,"Waste Heat Factor_Energy",null,1,"Waste Heat Factor_Demand"]
["Business Standard","Interior LED Linear Lamp Replacing 4ft T8, T12, or T5 Lamp",166.1,"C&I","Lighting","Annual Operating Hours:  Weighted Average IN TRM, Measure Life: IL TRM, CF source: Weighted Average IN TRM","per lamp",24,54.489600000000003,null,1.6500000000000001E-2,0.75,null,1.24E-2,null,4128,null,12,"4-ft LED Linear Replacement Lamps",18,null,"32W 4-ft T8 with Electronic NBF Ballast",29,null,"=ROUND((W224-T224)*(AE224)*P224/1000,4)","=ROUND(K224*L224,4)","2017-04-07","2019-03-31",null,null,1.2,"Waste Heat Factor_Energy",null,1.5,"Waste Heat Factor_Demand"]
["Business Standard","Interior LED Linear Lamp Replacing 4ft T8, T12, or T5 Lamp",166.2,"C&I","Lighting","Annual Operating Hours:  Weighted Average IN TRM, Measure Life: IL TRM, CF source: Weighted Average IN TRM","per lamp",24,70.464100000000002,null,1.8538776149620236E-2,0.69769894861771964,null,1.29E-2,null,4408.8858506099996,null,{"$f":"ROUND(50000/P225,0)","v":11},"4-ft LED Linear Replacement Lamps",14.9,"Program Tracking Database","32W 4-ft T8 with Electronic NBF Ballast",29,null,"=ROUND((W186-T186)*(AE186)*P186/1000,4)","=ROUND(K186*L186,4)","2019-04-01",null,null,null,1.1334958992183046,"Waste Heat Factor_Energy",null,1.3148068191220026,"Waste Heat Factor_Demand"]
["Business Standard","Interior LED Linear Lamp Replacing 2ft T8, T12, or T5 Lamp",167.1,"C&I","Lighting","Annual Operating Hours:  Weighted Average IN TRM, Measure Life: IL TRM, CF source: Weighted Average IN TRM","per lamp",22,34.675199999999997,null,1.0500000000000001E-2,0.75,null,7.9000000000000008E-3,null,4128,null,12,"2-ft LED Linear Replacement Lamps",10,null,"17W 2-ft T8 with Electronic NBF Ballast",17,null,"=ROUND((W226-T226)*(AE226)*P226/1000,4)","=ROUND(K226*L226,4)","2017-04-07",null,null,null,1.2,"Waste Heat Factor_Energy",null,1.5,"Waste Heat Factor_Demand"]
["Business Standard","Interior LED 1X4 Retrofit Kit replacing T8, T12 or T5/T5HO fixture",168.1,"C&I","Lighting","Annual Operating Hours:  Weighted Average IN TRM, Measure Life: IL TRM, CF source: Weighted Average IN TRM","per fixture",155,199.773,null,6.0493275000000006E-2,0.75,null,{"$f":"ROUND(K227*L227,4)","v":4.5400000000000003E-2},null,4128,null,12,"LED 1X4 Retrofit Kits",37,null,"1x4 T8, T12 or T5 Fluorescents",77.328850000000003,null,"=ROUND((W227-T227)*(AE227)*P227/1000,4)","=ROUND(K227*L227,4)","2017-04-07","2019-03-31",null,null,1.2,"Waste Heat Factor_Energy",null,1.5,"Waste Heat Factor_Demand"]
["Business Standard","Interior LED 1X4 Retrofit Kit replacing T8, T12 or T5/T5HO fixture",168.2,"C&I","Lighting","Annual Operating Hours:  Weighted Average IN TRM, Measure Life: IL TRM, CF source: Weighted Average IN TRM","per fixture",155,236.42959999999999,null,7.1593275000000012E-2,0.75,null,5.3699999999999998E-2,null,4128,null,12,"LED 1X4 Retrofit Kits",29.6,"Program Tracking Database","1x4 T8, T5, or T5HO Fluorescents",77.328850000000003,null,{"$f":"cellformula(I228)","v":"=ROUND((W228-T228)*(AE228)*P228/1000,4)"},{"$f":"cellformula(N228)","v":"=ROUND(K228*L228,4)"},"2019-04-01",null,null,null,1.2,"Waste Heat Factor_Energy",null,1.5,"Waste Heat Factor_Demand"]
["Business Standard","Interior LED 2X4 Retrofit Kit replacing T8, T12 or T5/T5HO fixture",169.1,"C&I","Lighting","Annual Operating Hours:  Weighted Average IN TRM, Measure Life: IL TRM, CF source: Weighted Average IN TRM","per fixture",145,257.87029999999999,null,7.8085724370000012E-2,0.75,null,5.8599999999999999E-2,null,4128,null,12,"LED 2X4 Retrofit Kits",46,null,"2x4 T8, T12 or T5 Fluorescents",98.057149580000001,null,"=ROUND((W229-T229)*(AE229)*P229/1000,4)","=ROUND(K229*L229,4)","2017-04-07","2019-03-31",null,null,1.2,"Waste Heat Factor_Energy",null,1.5,"Waste Heat Factor_Demand"]
["Business Standard","Interior LED 2X4 Retrofit Kit replacing T8, T12 or T5/T5HO fixture",169.2,"C&I","Lighting","Annual Operating Hours:  Weighted Average IN TRM, Measure Life: IL TRM, CF source: Weighted Average IN TRM","per fixture",145,300.279,null,8.2859541957690339E-2,0.67314062591104151,null,5.5800000000000002E-2,null,4143.0865648262179,null,12,"LED 2X4 Retrofit Kits",35.1,"Program Tracking Database","2x4 T8, T5, or T5HO Fluorescents",98.057149580000001,null,{"$f":"cellformula(I230)","v":"=ROUND((W230-T230)*(AE230)*P230/1000,4)"},{"$f":"cellformula(N230)","v":"=ROUND(K230*L230,4)"},"2019-04-01",null,null,null,1.1512134336091124,"Waste Heat Factor_Energy",null,1.3161260080938109,"Waste Heat Factor_Demand"]
["Business Standard","Interior LED 2X2 Retrofit Kit replacing T8, T12 or T5/T5HO fixture",170.1,"C&I","Lighting","Annual Operating Hours:  Weighted Average IN TRM, Measure Life: IL TRM, CF source: Weighted Average IN TRM","per fixture",130,194.8194,null,5.8993275000000005E-2,0.75,null,4.4200000000000003E-2,null,4128,null,12,"LED 2X2 Retrofit Kits",38,null,"2x2 T8, T12 or T5 Fluorescents",77.328850000000003,null,"=ROUND((W231-T231)*(AE231)*P231/1000,4)","=ROUND(K231*L231,4)","2017-04-07","2019-03-31",null,null,1.2,"Waste Heat Factor_Energy",null,1.5,"Waste Heat Factor_Demand"]
["Business Standard","Interior LED 2X2 Retrofit Kit replacing T8, T12 or T5/T5HO fixture",170.2,"C&I","Lighting","Annual Operating Hours:  Weighted Average IN TRM, Measure Life: IL TRM, CF source: Weighted Average IN TRM","per fixture",130,233.45750000000001,null,7.0693275E-2,0.75,null,5.2999999999999999E-2,null,4128,null,12,"LED 2X2 Retrofit Kits",30.2,"Program Tracking Database","2x2 T8, T5 or T5HO Fluorescents",77.328850000000003,null,{"$f":"cellformula(I232)","v":"=ROUND((W232-T232)*(AE232)*P232/1000,4)"},{"$f":"cellformula(N232)","v":"=ROUND(K232*L232,4)"},"2019-04-01",null,null,null,1.2,"Waste Heat Factor_Energy",null,1.5,"Waste Heat Factor_Demand"]
["Business Standard","Interior LED 1X4 Troffer or Linear Ambient replacing T8, T12 or T5/T5HO fixture",171.1,"C&I","Lighting","Annual Operating Hours:  Weighted Average IN TRM, Measure Life: IL TRM, CF source: Weighted Average IN TRM","per fixture",180,209.68020000000001,null,6.3493275000000002E-2,0.75,null,4.7600000000000003E-2,null,4128,null,12,"LED 1X4 Troffer or Linear Ambient Fixtures",35,null,"1X4 Troffer or Linear Ambient T8, T12 or T5/T5HO",77.328850000000003,null,"=ROUND((W233-T233)*(AE233)*P233/1000,4)","=ROUND(K233*L233,4)","2017-04-07","2019-03-31",null,null,1.2,"Waste Heat Factor_Energy",null,1.5,"Waste Heat Factor_Demand"]
["Business Standard","Interior LED 1X4 Troffer or Linear Ambient replacing T8, T12 or T5/T5HO fixture",171.2,"C&I","Lighting","Annual Operating Hours:  Weighted Average IN TRM, Measure Life: IL TRM, CF source: Weighted Average IN TRM","per fixture",180,177.48179999999999,null,5.3743275000000007E-2,0.75,null,4.0300000000000002E-2,null,4128,null,12,"LED 1X4 Troffer or Linear Ambient Fixtures",41.5,"Program Tracking Database","1X4 Troffer or Linear Ambient T8, or T5/T5HO",77.328850000000003,null,{"$f":"cellformula(I234)","v":"=ROUND((W234-T234)*(AE234)*P234/1000,4)"},{"$f":"cellformula(N234)","v":"=ROUND(K234*L234,4)"},"2019-04-01",null,null,null,1.2,"Waste Heat Factor_Energy",null,1.5,"Waste Heat Factor_Demand"]
["Business Standard","Interior LED 2X4 Troffer or Linear Ambient replacing T8, T12 or T5/T5HO fixture",172.1,"C&I","Lighting","Annual Operating Hours:  Weighted Average IN TRM, Measure Life: IL TRM, CF source: Weighted Average IN TRM","per fixture",170,257.87029999999999,null,7.8085724370000012E-2,0.75,null,5.8599999999999999E-2,null,4128,null,12,"LED 2X4 Troffer or Linear Ambient replacing T8, T12 or T5/T5HO fixture",46,null,"2X4 Troffer or Linear Ambient T8, or T5/T5HO",98.057149580000001,null,"=ROUND((W235-T235)*(AE235)*P235/1000,4)","=ROUND(K235*L235,4)","2017-04-07",null,null,null,1.2,"Waste Heat Factor_Energy",null,1.5,"Waste Heat Factor_Demand"]
["Business Standard","Interior LED 2X2 Troffer or Linear Ambient replacing T8, T12 or T5/T5HO fixture",173.1,"C&I","Lighting","Annual Operating Hours:  Weighted Average IN TRM, Measure Life: IL TRM, CF source: Weighted Average IN TRM","per fixture",155,204.72659999999999,null,6.1993275000000007E-2,0.75,null,4.65E-2,null,4128,null,12,"LED 2X2 Troffer or Linear Ambient replacing T8, T12 or T5/T5HO fixture",36,null,"2X2 Troffer or Linear Ambient T8, T12 or T5/T5HO",77.328850000000003,null,"=ROUND((W236-T236)*(AE236)*P236/1000,4)","=ROUND(K236*L236,4)","2017-04-07","2019-03-31",null,null,1.2,"Waste Heat Factor_Energy",null,1.5,"Waste Heat Factor_Demand"]
["Business Standard","Interior LED 2X2 Troffer or Linear Ambient replacing T8, T12 or T5/T5HO fixture",173.2,"C&I","Lighting","Annual Operating Hours:  Weighted Average IN TRM, Measure Life: IL TRM, CF source: Weighted Average IN TRM","per fixture",155,223.0549,null,6.7543275000000014E-2,0.75,null,5.0700000000000002E-2,null,4128,null,12,"LED 2X2 Troffer or Linear Ambient replacing T8, T12 or T5/T5HO fixture",32.299999999999997,"Program Tracking Database","2X2 Troffer or Linear Ambient T8 or T5/T5HO",77.328850000000003,null,{"$f":"cellformula(I237)","v":"=ROUND((W237-T237)*(AE237)*P237/1000,4)"},{"$f":"cellformula(N237)","v":"=ROUND(K237*L237,4)"},"2019-04-01",null,null,null,1.2,"Waste Heat Factor_Energy",null,1.5,"Waste Heat Factor_Demand"]
["Business Standard","LED Refrig Case Lights w/Doors 4ft 5ft or 6ft repl Fluor Refrig Case Lights w/Doors 4ft 5ft or 6ft",174.1,"C&I","Lighting","Annual Operating Hours source, Measure Life and CF source:  IL TRM","per door",230,{"$f":"ROUND((W238-T238)/1000*P238*AE238,4)","v":594.93539999999996},null,{"$f":"(W238-T238)/1000*L238*(1+AH238)","v":0.15076960000000003},0.92,null,0.13869999999999999,null,6205,null,8,"LED Refrigerated (Medium Temp) Case Light Fixtures (4, 5, and 6-foot)",34,null,"Linear Fluorescent T12 and T8 Fixtures",102,null,"=ROUND((W238-T238)/1000*P238*AE238,4)","=ROUND(K238*L238,4)","2017-04-07","2019-03-31",null,null,1.41,"Waste Heat Factor_Energy",null,1.41,"Waste Heat Factor_Demand"]
["Business Standard","LED Refrig Case Lights w/Doors 4ft 5ft or 6ft repl Fluor Refrig Case Lights w/Doors 4ft 5ft or 6ft",174.2,"C&I","Lighting","Annual Operating Hours source, Measure Life and CF source:  IL TRM","per door",230,{"$f":"ROUND((W239-T239)/1000*P239*AE239,4)","v":710.42290000000003},null,{"$f":"(W239-T239)/1000*L239*(1+AH239)","v":0.18003664000000003},0.92,null,0.1656,null,6205,null,8,"LED Refrigerated (Medium Temp) Case Light Fixtures (4, 5, and 6-foot)",20.8,"Program Tracking Database","Linear Fluorescent T8 Fixtures",102,null,{"$f":"cellformula(I239)","v":"=ROUND((W239-T239)/1000*P239*AE239,4)"},{"$f":"cellformula(N239)","v":"=ROUND(K239*L239,4)"},"2019-04-01",null,null,null,1.41,"Waste Heat Factor_Energy",null,1.41,"Waste Heat Factor_Demand"]
["Business Standard","LED Freezer Case Lights w/Doors 4ft 5ft or 6ft repl Fluor Frezer Case Lights w/Doors 4ft 5ft or 6ft",175.1,"C&I","Lighting","Annual Operating Hours source, Measure Life and CF source:  IL TRM","per door",230,{"$f":"ROUND((W240-T240)/1000*P240*AE240,4)","v":641.34879999999998},null,{"$f":"(W240-T240)/1000*L240*(1+AH240)","v":0.15765120000000002},0.92,null,0.14499999999999999,null,6205,null,8,"LED Freezer (Low Temp) Case Light Fixtures (4, 5, and 6-foot)",34,null,"Linear Fluorescent T12 and T8 Fixtures",102,null,"=ROUND((W240-T240)/1000*P240*AE240,4)","=ROUND(K240*L240,4)","2017-04-07","2019-03-31",null,null,1.52,"Waste Heat Factor_Energy",null,1.52,"Waste Heat Factor_Demand"]
["Business Standard","LED Freezer Case Lights w/Doors 4ft 5ft or 6ft repl Fluor Frezer Case Lights w/Doors 4ft 5ft or 6ft",175.2,"C&I","Lighting","Annual Operating Hours source, Measure Life and CF source:  IL TRM","per door",230,{"$f":"ROUND((W241-T241)/1000*P241*AE241,4)","v":761.13009999999997},null,{"$f":"(W241-T241)/1000*L241*(1+AH241)","v":0.18709488000000002},0.92,null,0.1721,null,6205,null,8,"LED Freezer (Low Temp) Case Light Fixtures (4, 5, and 6-foot)",21.3,"Program Tracking Database","Linear Fluorescent T8 Fixtures",102,null,{"$f":"cellformula(I241)","v":"=ROUND((W241-T241)/1000*P241*AE241,4)"},{"$f":"cellformula(N241)","v":"=ROUND(K241*L241,4)"},"2019-04-01",null,null,null,1.52,"Waste Heat Factor_Energy",null,1.52,"Waste Heat Factor_Demand"]
["Business Standard","Interior LED Downlight or Retrofit Kit replacing 45-60W Fixture",176.1,"C&I","Lighting","Annual Operating Hours:  Weighted Average IN TRM, Measure Life: IL TRM, CF source: Weighted Average IN TRM","per fixture",35,{"$f":"ROUND((W242-T242)*(AE242)*P242/1000,4)","v":195.07679999999999},null,{"$f":"(W242-T242)*AH242/1000","v":6.0399999999999995E-2},0.7,null,4.2299999999999997E-2,null,3933,null,13,"LED Downlight or Retrofit Kit ≤ 13W",11,null,"Incandescent and Halogen Downlights < 1000 lumens",51,null,"=ROUND((W242-T242)*(AE242)*P242/1000,4)","=ROUND(K242*L242,4)","2017-04-07","2019-03-31",null,null,1.24,"Waste Heat Factor_Energy",null,1.51,"Waste Heat Factor_Demand"]
["Business Standard","Interior LED Downlight or Retrofit Kit replacing 45-60W Fixture",176.2,"C&I","Lighting","Annual Operating Hours:  Weighted Average IN TRM, Measure Life: IL TRM, CF source: Weighted Average IN TRM","per fixture",35,199.9537,null,6.1910000000000007E-2,0.7,null,4.3299999999999998E-2,null,3933,null,13,"LED Downlight or Retrofit Kit ≤ 13W",11,null,"Incandescent and Halogen Downlights < 1000 lumens",52,"Midpoint Value",{"$f":"cellformula(I243)","v":"=ROUND((W243-T243)*(AE243)*P243/1000,4)"},{"$f":"cellformula(N243)","v":"=ROUND(K243*L243,4)"},"2019-04-01",null,null,null,1.24,"Waste Heat Factor_Energy",null,1.51,"Waste Heat Factor_Demand"]
["Business Standard","Interior LED Downlight or Retrofit Kit replacing 61-100W Fixture",177.1,"C&I","Lighting","Annual Operating Hours:  Weighted Average IN TRM, Measure Life: IL TRM, CF source: Weighted Average IN TRM","per fixture",68,321.87670000000003,null,9.9659999999999999E-2,0.7,null,6.9800000000000001E-2,null,3933,null,13,"LED Downlight or Retrofit Kit 14 to 21W",18,null,"Incandescent and Halogen Downlights 1000 to 2000 lumens",84,null,"=ROUND((W244-T244)*(AE244)*P244/1000,4)","=ROUND(K244*L244,4)","2017-04-07","2019-03-31",null,null,1.24,"Waste Heat Factor_Energy",null,1.51,"Waste Heat Factor_Demand"]
["Business Standard","Interior LED Downlight or Retrofit Kit replacing 61-100W Fixture",177.2,"C&I","Lighting","Annual Operating Hours:  Weighted Average IN TRM, Measure Life: IL TRM, CF source: Weighted Average IN TRM","per fixture",68,302.36900000000003,null,9.3620000000000009E-2,0.7,null,6.5500000000000003E-2,null,3933,null,13,"LED Downlight or Retrofit Kit 14 to 21W",18,null,"Incandescent and Halogen Downlights 1000 to 2000 lumens",80,"Midpoint Value",{"$f":"cellformula(I245)","v":"=ROUND((W245-T245)*(AE245)*P245/1000,4)"},{"$f":"cellformula(N245)","v":"=ROUND(K245*L245,4)"},"2019-04-01",null,null,null,1.24,"Waste Heat Factor_Energy",null,1.51,"Waste Heat Factor_Demand"]
["Business Standard","Interior LED Downlight or Retrofit Kit replacing 101-155W Fixture",178.1,"C&I","Lighting","Annual Operating Hours:  Weighted Average IN TRM, Measure Life: IL TRM, CF source: Weighted Average IN TRM","per fixture",120,512.07659999999998,null,0.15855000000000002,0.7,null,0.111,null,3933,null,13,"LED Downlight or Retrofit Kit ≥ 22W",28,null,"Incandescent, HID and Halogen Downlights > 2000 lumens",133,null,"=ROUND((W246-T246)*(AE246)*P246/1000,4)","=ROUND(K246*L246,4)","2017-04-07","2019-03-31",null,null,1.24,"Waste Heat Factor_Energy",null,1.51,"Waste Heat Factor_Demand"]
["Business Standard","Interior LED Downlight or Retrofit Kit replacing 101-155W Fixture",178.2,"C&I","Lighting","Annual Operating Hours:  Weighted Average IN TRM, Measure Life: IL TRM, CF source: Weighted Average IN TRM","per fixture",120,511.58890000000002,null,0.15839900000000001,0.7,null,0.1109,null,3933,null,13,"LED Downlight or Retrofit Kit ≥ 22W",23.1,"Program Tracking Database","Incandescent, HID and Halogen Downlights > 2000 lumens",128,"Midpoint Value",{"$f":"cellformula(I247)","v":"=ROUND((W247-T247)*(AE247)*P247/1000,4)"},{"$f":"cellformula(N247)","v":"=ROUND(K247*L247,4)"},"2019-04-01",null,null,null,1.24,"Waste Heat Factor_Energy",null,1.51,"Waste Heat Factor_Demand"]
["Small Business Direct Install","Interior Directional LED Lamp replacing 50-70W Lamp",179.1,"Small C&I","Lighting",null,"per lamp",18,277.2765,null,6.7000000000000004E-2,0.7,null,{"$f":"ROUND(K248*L248,4)","v":4.6899999999999997E-2},null,3933,null,7,"LED (watts)",10,null,"Incandescent (watts)",60,null,"=ROUND((W248-T248)*(AE248)*P248/1000,4)","=ROUND(K248*L248,4)","2017-04-07","2019-03-31",null,null,1.41,"Waste Heat Factor",null,1.34,"Waste Heat Factor"]
["Small Business Direct Install","Interior Directional LED Lamp replacing 50-70W Lamp",179.2,"Small C&I","Lighting",null,"per lamp",15,{"$f":"ROUND((W249-T249)*(AE249)*P249/1000,4)","v":273.39460000000003},null,{"$f":"(W249-T249)*AH249/1000","v":6.6061999999999996E-2},0.7,null,4.6199999999999998E-2,null,3933,null,{"$f":"ROUND(25000/P249,0)","v":6},"LED (watts)",10.7,"Program Tracking Database","Incandescent (watts)",60,"Midpoint Value",{"$f":"cellformula(I249)","v":"=ROUND((W249-T249)*(AE249)*P249/1000,4)"},{"$f":"cellformula(N249)","v":"=ROUND(K249*L249,4)"},"2019-04-01",null,null,null,1.41,"Waste Heat Factor",null,1.34,"Waste Heat Factor"]
["Small Business Direct Install","High Performance High-Bay Fluorescent Fixture T8 > 4 Lamps Replacing HID Fixture",181.1,"Small C&I","Lighting",null,"per fixture",220,1478.4695999999999,null,0.3216,0.78,null,0.25080000000000002,null,4369,null,12,"High Bay T8 (>4 lamps, wattage)",240,null,"Metal Halide (watts)",480,null,{"$f":"cellformula(I250)","v":"=ROUND((W250-T250)*(AE250)*P250/1000,4)"},{"$f":"cellformula(N250)","v":"=ROUND(K250*L250,4)"},"2017-04-07",null,null,null,1.41,"Waste Heat Factor",null,1.34,"Waste Heat Factor"]
["Small Business Direct Install","High‐Bay Fluorescent Fixture T5 <= 4 Lamps w/ HE Electronic Ballast Replacing HID Fixture",183.1,"Small C&I","Lighting",null,"per fixture",200,677.63189999999997,null,0.1474,0.78,null,0.115,null,4369,null,12,"High Bay T5 (≤4 lamps, wattage)",110,null,"Metal Halide (watts)",220,null,"=ROUND((W251-T251)*(AE251)*P251/1000,4)","=ROUND(K251*L251,4)","2017-04-07",null,null,null,1.41,"Waste Heat Factor",null,1.34,"Waste Heat Factor"]
["Small Business Direct Install","Remove 8ft Lamp from T8 or T12 System",186.1,"Small C&I","Lighting",null,"per lamp",70,{"$f":"ROUND((W252-T252)/1000*P252*AE252,4)","v":337.58780000000002},null,{"$f":"(W252-T252)/1000*AH252","v":7.7720000000000011E-2},0.75,null,5.8299999999999998E-2,null,4128,null,12,"Remove T8",0,null,"T8 8 ft (watts)",58,null,"=ROUND((W252-T252)/1000*P252*AE252,4)","=ROUND(K252*L252,4)","2017-04-07",null,null,null,1.41,"Waste Heat Factor",null,1.34,"Waste Heat Factor"]
["Small Business Direct Install","Interior Omnidirectional LED Lamp replacing 40-60W Lamp",187.1,"Small C&I","Lighting",null,"per lamp",12,211.5,null,5.3600000000000002E-2,0.65,null,3.4799999999999998E-2,null,3750,null,7,"LED (watts)",8,null,"EISA tier 1 compliant Halogen (watts)",48,null,"=ROUND((W253-T253)/1000*P253*AE253,4)","=ROUND(K253*L253,4)","2017-04-07","2019-03-31",null,null,1.41,"Waste Heat Factor",null,1.34,"Waste Heat Factor"]
["Small Business Direct Install","Interior Omnidirectional LED Lamp replacing 40-60W Lamp",187.2,"Small C&I","Lighting",null,"per lamp",8,{"$f":"ROUND((W254-T254)/1000*P254*AE254,4)","v":222.07499999999999},null,{"$f":"(W254-T254)/1000*AH254","v":5.6280000000000004E-2},0.65,null,3.6600000000000001E-2,null,3750,null,{"$f":"ROUND(25000/P254,0)","v":7},"LED (watts)",8,null,"EISA tier 1 compliant Halogen (watts)",50,"Midpoint Value",{"$f":"cellformula(I254)","v":"=ROUND((W254-T254)/1000*P254*AE254,4)"},{"$f":"cellformula(N254)","v":"=ROUND(K254*L254,4)"},"2019-04-01",null,null,null,1.41,"Waste Heat Factor",null,1.34,"Waste Heat Factor"]
["Small Business Direct Install","Interior Omnidirectional LED Lamp replacing 61-100W Lamp",188.1,"Small C&I","Lighting",null,"per lamp",20,360.45949999999999,null,8.7100000000000011E-2,0.7,null,6.0999999999999999E-2,null,3933,null,7,"LED (watts)",13,null,"EISA tier 1 compliant Halogen (watts)",78,null,"=ROUND((W255-T255)/1000*P255*AE255,4)","=ROUND(K255*L255,4)","2017-04-07","2019-03-31",null,null,1.41,"Waste Heat Factor",null,1.34,"Waste Heat Factor"]
["Small Business Direct Install","Interior Omnidirectional LED Lamp replacing 61-100W Lamp",188.2,"Small C&I","Lighting",null,"per lamp",12,{"$f":"ROUND((W256-T256)/1000*P256*AE256,4)","v":382.64159999999998},null,{"$f":"(W256-T256)/1000*AH256","v":9.2460000000000014E-2},0.7,null,6.4699999999999994E-2,null,3933,null,{"$f":"ROUND(25000/P256,0)","v":6},"LED (watts)",11,"Program Tracking Database","EISA tier 1 compliant Halogen (watts)",80,"Midpoint Value",{"$f":"cellformula(I256)","v":"=ROUND((W256-T256)/1000*P256*AE256,4)"},{"$f":"cellformula(N256)","v":"=ROUND(K256*L256,4)"},"2019-04-01",null,null,null,1.41,"Waste Heat Factor",null,1.34,"Waste Heat Factor"]
["Small Business Direct Install","Interior Occupancy or Vacancy Sensor Replacing No Controls",190.1,"Small C&I","Lighting",null,"per sensor",84,{"$f":"ROUND(T257/1000*AK257*P257*AE257,4)","v":323.03660000000002},null,{"$f":"T257/1000*AK257*AH257","v":7.4370000000000006E-2},0.95,null,7.0699999999999999E-2,null,4128,null,8,"Wall-Mount Occupancy Sensor",185,null,"No Control",null,null,"=ROUND(T257/1000*AK257*P257*AE257,4)","=ROUND(K257*L257,4)","2017-04-07",null,null,null,1.41,"Waste Heat Factor",null,1.34,"Waste Heat Factor",null,0.3,"ESF"]
["Small Business Direct Install","Parking Garage 4'3L T5, T5HP, or T8 replacing >175W fixture",191.1,"Small C&I","Lighting",null,"per fixture",136,{"$f":"ROUND((W258-T258)*(AE258)*P258/1000,4)","v":902.28},null,{"$f":"(W258-T258)*AH258/1000","v":0.10299999999999999},1,null,0.10299999999999999,null,8760,null,{"$f":"ROUND(50000/P258,0)","v":6},"4-ft 3L to 4L 4' T5, T5HO or T8",155,null,"200W - 250W HID Fixture",258,null,"=ROUND((W258-T258)*(AE258)*P258/1000,4)","=ROUND(K258*L258,4)","2017-04-07",null,null,null,1,"Waste Heat Factor_Energy",null,1,"Waste Heat Factor_Demand"]
["Small Business Direct Install","Parking Garage 4'2L T5, T5HP, or T8 replacing 101W-175W fixture",192.1,"Small C&I","Lighting",null,"per fixture",105,981.12,null,0.112,1,null,0.112,null,8760,null,6,"4-ft 2L to 3L 4' T5, T5HO or T8",84,null,"125W - 175W HID Fixture",196,null,"=ROUND((W259-T259)*(AE259)*P259/1000,4)","=ROUND(K259*L259,4)","2017-04-07","2019-03-31",null,null,1,"Waste Heat Factor_Energy",null,1,"Waste Heat Factor_Demand"]
["Small Business Direct Install","Parking Garage 4'2L T5, T5HP, or T8 replacing 101W-175W fixture",192.2,"Small C&I","Lighting",null,"per fixture",105,578.16,null,6.6000000000000003E-2,1,null,6.6000000000000003E-2,null,8760,null,6,"4-ft 2L to 3L 4' T5, T5HO or T8",84,null,"125W - 175W HID Fixture",150,"Midpoint Value",{"$f":"cellformula(I260)","v":"=ROUND((W260-T260)*(AE260)*P260/1000,4)"},{"$f":"cellformula(N260)","v":"=ROUND(K260*L260,4)"},"2019-04-01",null,null,null,1,"Waste Heat Factor_Energy",null,1,"Waste Heat Factor_Demand"]
["Small Business Direct Install","Parking Garage 4'1L T5, T5HP, or T8 replacing <=100W fixture",193.1,"Small C&I","Lighting",null,"per fixture",74,613.20000000000005,null,7.0000000000000007E-2,1,null,7.0000000000000007E-2,null,8760,null,6,"4-ft 1L to 2L 4' T5, T5HO or T8 ",54,null,"≤ 100 W HID Fixture",124,null,"=ROUND((W261-T261)*(AE261)*P261/1000,4)","=ROUND(K261*L261,4)","2017-04-07",null,null,null,1,"Waste Heat Factor_Energy",null,1,"Waste Heat Factor_Demand"]
["Small Business Direct Install","Exterior LED replacing > 400W Fixture or Mogul Screw-Base Lamp",194.1,"Small C&I","Lighting",null,"per fixture",1182.5,2661.7,null,0.61899999999999999,0,null,0,null,4300,null,12,"LED Exterior Lighting Fixtures (Includes Street and Area, Decorative, Soffit and Canopy, Wall-mounted, and Landscape and Flood lighting)",412,null,"> 400 W HID Fixture",1031,null,"=ROUND((W262-T262)*(AE262)*P262/1000,4)","=ROUND(K262*L262,4)","2017-04-07","2019-03-31",null,null,1,"Waste Heat Factor_Energy",null,1,"Waste Heat Factor_Demand"]
["Small Business Direct Install","Exterior LED replacing > 400W Fixture or Mogul Screw-Base Lamp",194.2,"Small C&I","Lighting",null,"per fixture",1182.5,3839.9,null,0.89300000000000002,0,null,0,null,4300,null,12,"LED Exterior Lighting Fixtures (Includes Street and Area, Decorative, Soffit and Canopy, Wall-mounted, and Landscape and Flood lighting)",185,"Program Tracking Database","> 400 W HID Fixture",1078,"1000W MH Fixture",{"$f":"cellformula(I263)","v":"=ROUND((W263-T263)*(AE263)*P263/1000,4)"},{"$f":"cellformula(N263)","v":"=ROUND(K263*L263,4)"},"2019-04-01",null,null,null,1,"Waste Heat Factor_Energy",null,1,"Waste Heat Factor_Demand"]
["Small Business Direct Install","Exterior LED replacing 251W-400W Fixture or Mogul Screw‐Base Lamp",195.1,"Small C&I","Lighting",null,"per fixture",535,{"$f":"ROUND((W264-T264)*(AE264)*P264/1000,4)","v":1191.0999999999999},null,{"$f":"(W264-T264)*AH264/1000","v":0.27700000000000002},0,null,0,null,4300,null,{"$f":"ROUND(50000/P264,0)","v":12},"LED Exterior Lighting Fixtures (Includes Street and Area, Decorative, Soffit and Canopy, Wall-mounted, and Landscape and Flood lighting)",167,null,"320 W Pulse Start and 400W MH/HPS Fixture",444,null,"=ROUND((W264-T264)*(AE264)*P264/1000,4)","=ROUND(K264*L264,4)","2017-04-07","2019-03-31",null,null,1,"Waste Heat Factor_Energy",null,1,"Waste Heat Factor_Demand"]
["Small Business Direct Install","Exterior LED replacing 251W-400W Fixture or Mogul Screw‐Base Lamp",195.2,"Small C&I","Lighting",null,"per fixture",535,795.5,null,0.185,0,null,0,null,4300,null,12,"LED Exterior Lighting Fixtures (Includes Street and Area, Decorative, Soffit and Canopy, Wall-mounted, and Landscape and Flood lighting)",140,"Program Tracking Database","320 W Pulse Start and 400W MH/HPS Fixture",325,"Midpoint Value",{"$f":"cellformula(I265)","v":"=ROUND((W265-T265)*(AE265)*P265/1000,4)"},{"$f":"cellformula(N265)","v":"=ROUND(K265*L265,4)"},"2019-04-01",null,null,null,1,"Waste Heat Factor_Energy",null,1,"Waste Heat Factor_Demand"]
["Small Business Direct Install","Exterior LED replacing 175W-250W Fixture or Mogul Screw-Base Lamp",196.1,"Small C&I","Lighting",null,"per fixture",398.8,602,null,0.14000000000000001,0,null,{"$f":"ROUND(K266*L266,4)","v":0},null,4300,null,12,"LED Exterior Lighting Fixtures (Includes Street and Area, Decorative, Soffit and Canopy, Wall-mounted, and Landscape and Flood lighting)",82,null,"175 W HID - 250 W HID Fixture",222,null,"=ROUND((W266-T266)*(AE266)*P266/1000,4)","=ROUND(K266*L266,4)","2017-04-07","2019-03-31",null,null,1,"Waste Heat Factor_Energy",null,1,"Waste Heat Factor_Demand"]
["Small Business Direct Install","Exterior LED replacing 175W-250W Fixture or Mogul Screw-Base Lamp",196.2,"Small C&I","Lighting",null,"per fixture",398.8,602,null,0.14000000000000001,0,null,0,null,4300,null,12,"LED Exterior Lighting Fixtures (Includes Street and Area, Decorative, Soffit and Canopy, Wall-mounted, and Landscape and Flood lighting)",73,"Program Tracking Database","175 W HID - 250 W HID Fixture",213,"Midpoint Value",{"$f":"cellformula(I267)","v":"=ROUND((W267-T267)*(AE267)*P267/1000,4)"},{"$f":"cellformula(N267)","v":"=ROUND(K267*L267,4)"},"2019-04-01",null,null,null,1,"Waste Heat Factor_Energy",null,1,"Waste Heat Factor_Demand"]
["Small Business Direct Install","Exterior LED replacing < 175W Fixture or Mogul Screw-Base Lamp",197.1,"Small C&I","Lighting",null,"per fixture",299.75,490.2,null,0.114,0,null,0,null,4300,null,12,"LED Exterior Lighting Fixtures (Includes Street and Area, Decorative, Soffit and Canopy, Wall-mounted, and Landscape and Flood lighting)",37,null,"< 175 W HID Fixture",151,null,"=ROUND((W268-T268)*(AE268)*P268/1000,4)","=ROUND(K268*L268,4)","2017-04-07","2019-03-31",null,null,1,"Waste Heat Factor_Energy",null,1,"Waste Heat Factor_Demand"]
["Small Business Direct Install","Exterior LED replacing < 175W Fixture or Mogul Screw-Base Lamp",197.2,"Small C&I","Lighting",null,"per fixture",299.75,533.20000000000005,null,0.124,0,null,0,null,4300,null,12,"LED Exterior Lighting Fixtures (Includes Street and Area, Decorative, Soffit and Canopy, Wall-mounted, and Landscape and Flood lighting)",27,"Program Tracking Database","< 175 W HID Fixture",151,null,{"$f":"cellformula(I269)","v":"=ROUND((W269-T269)*(AE269)*P269/1000,4)"},{"$f":"cellformula(N269)","v":"=ROUND(K269*L269,4)"},"2019-04-01",null,null,null,1,"Waste Heat Factor_Energy",null,1,"Waste Heat Factor_Demand"]
["Small Business Direct Install","Parking Garage LED replacing > 175W Fixture or Mogul Screw-Base Lamp",198.1,"Small C&I","Lighting",null,"per fixture",520,{"$f":"ROUND((W270-T270)*(AE270)*P270/1000,4)","v":902.28},null,{"$f":"(W270-T270)*AH270/1000","v":0.10299999999999999},1,null,0.10299999999999999,null,8760,null,{"$f":"ROUND(50000/P270,0)","v":6},"LED Parking Garage Lighting Fixtures",155,null,"200W - 250W HID Fixture",258,null,"=ROUND((W270-T270)*(AE270)*P270/1000,4)","=ROUND(K270*L270,4)","2017-04-07","2019-03-31",null,null,1,"Waste Heat Factor_Energy",null,1,"Waste Heat Factor_Demand"]
["Small Business Direct Install","Parking Garage LED replacing > 175W Fixture or Mogul Screw-Base Lamp",198.2,"Small C&I","Lighting",null,"per fixture",520,1376.1959999999999,null,0.15709999999999999,1,null,0.15709999999999999,null,8760,null,6,"LED Parking Garage Lighting Fixtures",100.9,"Program Tracking Database","200W - 250W HID Fixture",258,null,{"$f":"cellformula(I271)","v":"=ROUND((W271-T271)*(AE271)*P271/1000,4)"},{"$f":"cellformula(N271)","v":"=ROUND(K271*L271,4)"},"2019-04-01",null,null,null,1,"Waste Heat Factor_Energy",null,1,"Waste Heat Factor_Demand"]
["Small Business Direct Install","Parking Garage LED replacing 101W-175W Fixture or Mogul Screw-Base Lamp",199.1,"Small C&I","Lighting",null,"per fixture",380,981.12,null,0.112,1,null,0.112,null,8760,null,6,"LED Parking Garage Lighting Fixtures",84,null,"125W - 175W HID Fixture",196,null,"=ROUND((W272-T272)*(AE272)*P272/1000,4)","=ROUND(K272*L272,4)","2017-04-07","2019-03-31",null,null,1,"Waste Heat Factor_Energy",null,1,"Waste Heat Factor_Demand"]
["Small Business Direct Install","Parking Garage LED replacing 101W-175W Fixture or Mogul Screw-Base Lamp",199.2,"Small C&I","Lighting",null,"per fixture",380,706.05600000000004,null,8.0599999999999991E-2,1,null,8.0600000000000005E-2,null,8760,null,6,"LED Parking Garage Lighting Fixtures",56.4,"Program Tracking Database","125W - 175W HID Fixture",137,"Midpoint Value",{"$f":"cellformula(I273)","v":"=ROUND((W273-T273)*(AE273)*P273/1000,4)"},{"$f":"cellformula(N273)","v":"=ROUND(K273*L273,4)"},"2019-04-01",null,null,null,1,"Waste Heat Factor_Energy",null,1,"Waste Heat Factor_Demand"]
["Small Business Direct Install","Parking Garage LED replacing <= 100W Fixture or Mogul Screw-Base Lamp",200.1,"Small C&I","Lighting",null,"per fixture",320,613.20000000000005,null,7.0000000000000007E-2,1,null,7.0000000000000007E-2,null,8760,null,6,"LED Parking Garage Lighting Fixtures",54,null,"≤ 100 W HID Fixture",124,null,"=ROUND((W274-T274)*(AE274)*P274/1000,4)","=ROUND(K274*L274,4)","2017-04-07",null,null,null,1,"Waste Heat Factor_Energy",null,1,"Waste Heat Factor_Demand"]
["Small Business Direct Install","Interior LED Linear Lamp Replacing 4ft T8, T12, or T5 Lamp",201.1,"Small C&I","Lighting",null,"per fixture",24,{"$f":"ROUND((W275-T275)*(AE275)*P275/1000,4)","v":54.489600000000003},null,{"$f":"(W275-T275)*AH275/1000","v":1.6500000000000001E-2},0.75,null,1.24E-2,null,4128,null,{"$f":"ROUND(50000/P275,0)","v":12},"4-ft LED Linear Replacement Lamps",18,null,"32W 4-ft T8 with Electronic NBF Ballast",29,null,"=ROUND((W275-T275)*(AE275)*P275/1000,4)","=ROUND(K275*L275,4)","2017-04-07","2019-03-31",null,null,1.2,"Waste Heat Factor_Energy",null,1.5,"Waste Heat Factor_Demand"]
["Small Business Direct Install","Interior LED Linear Lamp Replacing 4ft T8, T12, or T5 Lamp",201.2,"Small C&I","Lighting",null,"per fixture",24,69.350399999999993,null,2.1000000000000001E-2,0.75,null,1.5800000000000002E-2,null,4128,null,12,"4-ft LED Linear Replacement Lamps",15,"Program Tracking Database","32W 4-ft T8 with Electronic NBF Ballast",29,null,{"$f":"cellformula(I276)","v":"=ROUND((W276-T276)*(AE276)*P276/1000,4)"},{"$f":"cellformula(N276)","v":"=ROUND(K276*L276,4)"},"2019-04-01",null,null,null,1.2,"Waste Heat Factor_Energy",null,1.5,"Waste Heat Factor_Demand"]
["Small Business Direct Install","Interior LED Linear Lamp Replacing 2ft T8, T12, or T5 Lamp",202.1,"Small C&I","Lighting",null,"per fixture",22,34.675199999999997,null,1.0500000000000001E-2,0.75,null,7.9000000000000008E-3,null,4128,null,12,"2-ft LED Linear Replacement Lamps",10,null,"17W 2-ft T8 with Electronic NBF Ballast",17,null,"=ROUND((W277-T277)*(AE277)*P277/1000,4)","=ROUND(K277*L277,4)","2017-04-07",null,null,null,1.2,"Waste Heat Factor_Energy",null,1.5,"Waste Heat Factor_Demand"]
["Small Business Direct Install","Interior LED 1X4 Retrofit Kit replacing T8, T12 or T5/T5HO fixture",203.1,"Small C&I","Lighting",null,"per fixture",155,199.773,null,6.0493275000000006E-2,0.75,null,4.5400000000000003E-2,null,4128,null,12,"LED 1X4 Retrofit Kits",37,null,"1x4 T8, T12 or T5 Fluorescents",77.328850000000003,null,"=ROUND((W278-T278)*(AE278)*P278/1000,4)","=ROUND(K278*L278,4)","2017-04-07","2019-03-31",null,null,1.2,"Waste Heat Factor_Energy",null,1.5,"Waste Heat Factor_Demand"]
["Small Business Direct Install","Interior LED 1X4 Retrofit Kit replacing T8, T12 or T5/T5HO fixture",203.2,"Small C&I","Lighting",null,"per fixture",155,234.44820000000001,null,7.0993275000000008E-2,0.75,null,5.3199999999999997E-2,null,4128,null,12,"LED 1X4 Retrofit Kits",30,"Program Tracking Database","1x4 T8, T5, or T5HO Fluorescents",77.328850000000003,null,{"$f":"cellformula(I279)","v":"=ROUND((W279-T279)*(AE279)*P279/1000,4)"},{"$f":"cellformula(N279)","v":"=ROUND(K279*L279,4)"},"2019-04-01",null,null,null,1.2,"Waste Heat Factor_Energy",null,1.5,"Waste Heat Factor_Demand"]
["Small Business Direct Install","Interior LED 2X4 Retrofit Kit replacing T8, T12 or T5/T5HO fixture",204.1,"Small C&I","Lighting",null,"per fixture",145,257.87029999999999,null,7.8085724370000012E-2,0.75,null,5.8599999999999999E-2,null,4128,null,12,"LED 2X4 Retrofit Kits",46,null,"2x4 T8, T12 or T5 Fluorescents",98.057149580000001,null,"=ROUND((W280-T280)*(AE280)*P280/1000,4)","=ROUND(K280*L280,4)","2017-04-07","2019-03-31",null,null,1.2,"Waste Heat Factor_Energy",null,1.5,"Waste Heat Factor_Demand"]
["Small Business Direct Install","Interior LED 2X4 Retrofit Kit replacing T8, T12 or T5/T5HO fixture",204.2,"Small C&I","Lighting",null,"per fixture",145,312.35989999999998,null,9.4585724370000013E-2,0.75,null,7.0900000000000005E-2,null,4128,null,12,"LED 2X4 Retrofit Kits",35,"Program Tracking Database","2x4 T8, T5, or T5HO Fluorescents",98.057149580000001,null,{"$f":"cellformula(I281)","v":"=ROUND((W281-T281)*(AE281)*P281/1000,4)"},{"$f":"cellformula(N281)","v":"=ROUND(K281*L281,4)"},"2019-04-01",null,null,null,1.2,"Waste Heat Factor_Energy",null,1.5,"Waste Heat Factor_Demand"]
["Small Business Direct Install","Interior LED 2X2 Retrofit Kit replacing T8, T12 or T5/T5HO fixture",205.1,"Small C&I","Lighting",null,"per fixture",130,194.8194,null,5.8993275000000005E-2,0.75,null,4.4200000000000003E-2,null,4128,null,12,"LED 2X2 Retrofit Kits",38,null,"2x2 T8, T12 or T5 Fluorescents",77.328850000000003,null,"=ROUND((W282-T282)*(AE282)*P282/1000,4)","=ROUND(K282*L282,4)","2017-04-07","2019-03-31",null,null,1.2,"Waste Heat Factor_Energy",null,1.5,"Waste Heat Factor_Demand"]
["Small Business Direct Install","Interior LED 2X2 Retrofit Kit replacing T8, T12 or T5/T5HO fixture",205.2,"Small C&I","Lighting",null,"per fixture",130,234.44820000000001,null,7.0993275000000008E-2,0.75,null,5.3199999999999997E-2,null,4128,null,12,"LED 2X2 Retrofit Kits",30,"Program Tracking Database","2x2 T8, T5 or T5HO Fluorescents",77.328850000000003,null,{"$f":"cellformula(I283)","v":"=ROUND((W283-T283)*(AE283)*P283/1000,4)"},{"$f":"cellformula(N283)","v":"=ROUND(K283*L283,4)"},"2019-04-01",null,null,null,1.2,"Waste Heat Factor_Energy",null,1.5,"Waste Heat Factor_Demand"]
["Small Business Direct Install","Interior LED 1X4 Troffer or Linear Ambient replacing T8, T12 or T5/T5HO fixture",206.1,"Small C&I","Lighting",null,"per fixture",180,209.68020000000001,null,6.3493275000000002E-2,0.75,null,4.7600000000000003E-2,null,4128,null,12,"LED 1X4 Troffer or Linear Ambient Fixtures",35,null,"1X4 Troffer or Linear Ambient T8, T12 or T5/T5HO",77.328850000000003,null,"=ROUND((W284-T284)*(AE284)*P284/1000,4)","=ROUND(K284*L284,4)","2017-04-07","2019-03-31",null,null,1.2,"Waste Heat Factor_Energy",null,1.5,"Waste Heat Factor_Demand"]
["Small Business Direct Install","Interior LED 1X4 Troffer or Linear Ambient replacing T8, T12 or T5/T5HO fixture",206.2,"Small C&I","Lighting",null,"per fixture",180,175.005,null,5.2993275000000006E-2,0.75,null,3.9699999999999999E-2,null,4128,null,12,"LED 1X4 Troffer or Linear Ambient Fixtures",42,"Program Tracking Database","1X4 Troffer or Linear Ambient T8, or T5/T5HO",77.328850000000003,null,{"$f":"cellformula(I285)","v":"=ROUND((W285-T285)*(AE285)*P285/1000,4)"},{"$f":"cellformula(N285)","v":"=ROUND(K285*L285,4)"},"2019-04-01",null,null,null,1.2,"Waste Heat Factor_Energy",null,1.5,"Waste Heat Factor_Demand"]
["Small Business Direct Install","Interior LED 2X4 Troffer or Linear Ambient replacing T8, T12 or T5/T5HO fixture",207.1,"Small C&I","Lighting",null,"per fixture",170,257.87029999999999,null,7.8085724370000012E-2,0.75,null,{"$f":"ROUND(K286*L286,4)","v":5.8599999999999999E-2},null,4128,null,12,"LED 2X4 Troffer or Linear Ambient replacing T8, T12 or T5/T5HO fixture",46,null,"2X4 Troffer or Linear Ambient T8, or T5/T5HO",98.057149580000001,null,"=ROUND((W286-T286)*(AE286)*P286/1000,4)","=ROUND(K286*L286,4)","2017-04-07",null,null,null,1.2,"Waste Heat Factor_Energy",null,1.5,"Waste Heat Factor_Demand"]
["Small Business Direct Install","Interior LED 2X2 Troffer or Linear Ambient replacing T8, T12 or T5/T5HO fixture",208.1,"Small C&I","Lighting",null,"per fixture",155,204.72659999999999,null,6.1993275000000007E-2,0.75,null,4.65E-2,null,4128,null,12,"LED 2X2 Troffer or Linear Ambient replacing T8, T12 or T5/T5HO fixture",36,null,"2X2 Troffer or Linear Ambient T8, T12 or T5/T5HO",77.328850000000003,null,"=ROUND((W287-T287)*(AE287)*P287/1000,4)","=ROUND(K287*L287,4)","2017-04-07","2019-03-31",null,null,1.2,"Waste Heat Factor_Energy",null,1.5,"Waste Heat Factor_Demand"]
["Small Business Direct Install","Interior LED 2X2 Troffer or Linear Ambient replacing T8, T12 or T5/T5HO fixture",208.2,"Small C&I","Lighting",null,"per fixture",155,224.541,null,6.7993275000000006E-2,0.75,null,5.0999999999999997E-2,null,4128,null,12,"LED 2X2 Troffer or Linear Ambient replacing T8, T12 or T5/T5HO fixture",32,"Program Tracking Database","2X2 Troffer or Linear Ambient T8 or T5/T5HO",77.328850000000003,null,{"$f":"cellformula(I288)","v":"=ROUND((W288-T288)*(AE288)*P288/1000,4)"},{"$f":"cellformula(N288)","v":"=ROUND(K288*L288,4)"},"2019-04-01",null,null,null,1.2,"Waste Heat Factor_Energy",null,1.5,"Waste Heat Factor_Demand"]
["Small Business Direct Install","LED Refrig Case Lights w/Doors 4ft 5ft or 6ft repl Fluor Refrig Case Lights w/Doors 4ft 5ft or 6ft",209.1,"Small C&I","Lighting",null,"per fixture",230,594.93539999999996,null,9.5879999999999993E-2,0.92,null,8.8200000000000001E-2,null,6205,null,8,"LED Refrigerated (Medium Temp) Case Light Fixtures (4, 5, and 6-foot)",34,null,"Linear Fluorescent T12 and T8 Fixtures",102,null,{"$f":"cellformula(I289)","v":"=ROUND((W289-T289)*(AE289)*P289/1000,4)"},{"$f":"cellformula(N289)","v":"=ROUND(K289*L289,4)"},"2017-04-07","2019-03-31",null,null,1.41,"Waste Heat Factor_Energy",null,1.41,"Waste Heat Factor_Demand"]
["Small Business Direct Install","LED Refrig Case Lights w/Doors 4ft 5ft or 6ft repl Fluor Refrig Case Lights w/Doors 4ft 5ft or 6ft",209.2,"Small C&I","Lighting",null,"per fixture",230,710.42290000000003,null,0.11449200000000001,0.92,null,0.1053,null,6205,null,8,"LED Refrigerated (Medium Temp) Case Light Fixtures (4, 5, and 6-foot)",20.8,"Program Tracking Database","Linear Fluorescent T8 Fixtures",102,null,{"$f":"cellformula(I290)","v":"=ROUND((W290-T290)*(AE290)*P290/1000,4)"},{"$f":"cellformula(N290)","v":"=ROUND(K290*L290,4)"},"2019-04-01",null,null,null,1.41,"Waste Heat Factor_Energy",null,1.41,"Waste Heat Factor_Demand"]
["Small Business Direct Install","LED Freezer Case Lights w/Doors 4ft 5ft or 6ft repl Fluor Frezer Case Lights w/Doors 4ft 5ft or 6ft",210.1,"Small C&I","Lighting",null,"per fixture",230,641.34879999999998,null,0.10335999999999999,0.92,null,9.5100000000000004E-2,null,6205,null,8,"LED Freezer (Low Temp) Case Light Fixtures (4, 5, and 6-foot)",34,null,"Linear Fluorescent T12 and T8 Fixtures",102,null,"=ROUND((W291-T291)*(AE291)*P291/1000,4)","=ROUND(K291*L291,4)","2017-04-07","2019-03-31",null,null,1.52,"Waste Heat Factor_Energy",null,1.52,"Waste Heat Factor_Demand"]
["Small Business Direct Install","LED Freezer Case Lights w/Doors 4ft 5ft or 6ft repl Fluor Frezer Case Lights w/Doors 4ft 5ft or 6ft",210.2,"Small C&I","Lighting",null,"per fixture",230,761.13009999999997,null,0.122664,0.92,null,0.1129,null,6205,null,8,"LED Freezer (Low Temp) Case Light Fixtures (4, 5, and 6-foot)",21.3,"Program Tracking Database","Linear Fluorescent T8 Fixtures",102,null,{"$f":"cellformula(I292)","v":"=ROUND((W292-T292)*(AE292)*P292/1000,4)"},{"$f":"cellformula(N292)","v":"=ROUND(K292*L292,4)"},"2019-04-01",null,null,null,1.52,"Waste Heat Factor_Energy",null,1.52,"Waste Heat Factor_Demand"]
["Small Business Direct Install","Interior LED Downlight or Retrofit Kit replacing 45-60W Fixture",211.1,"Small C&I","Lighting",null,"per fixture",35,195.07679999999999,null,6.0399999999999995E-2,0.7,null,4.2299999999999997E-2,null,3933,null,13,"LED Downlight or Retrofit Kit ≤ 13W",11,null,"Incandescent and Halogen Downlights < 1000 lumens",51,null,"=ROUND((W293-T293)*(AE293)*P293/1000,4)","=ROUND(K293*L293,4)","2017-04-07","2019-03-31",null,null,1.24,"Waste Heat Factor_Energy",null,1.51,"Waste Heat Factor_Demand"]
["Small Business Direct Install","Interior LED Downlight or Retrofit Kit replacing 45-60W Fixture",211.2,"Small C&I","Lighting",null,"per fixture",35,199.9537,null,6.1910000000000007E-2,0.7,null,4.3299999999999998E-2,null,3933,null,13,"LED Downlight or Retrofit Kit ≤ 13W",11,null,"Incandescent and Halogen Downlights < 1000 lumens",52,"Midpoint Value",{"$f":"cellformula(I294)","v":"=ROUND((W294-T294)*(AE294)*P294/1000,4)"},{"$f":"cellformula(N294)","v":"=ROUND(K294*L294,4)"},"2019-04-01",null,null,null,1.24,"Waste Heat Factor_Energy",null,1.51,"Waste Heat Factor_Demand"]
["Small Business Direct Install","Interior LED Downlight or Retrofit Kit replacing 61-100W Fixture",212.1,"Small C&I","Lighting",null,"per fixture",68,321.87670000000003,null,9.9659999999999999E-2,0.7,null,6.9800000000000001E-2,null,3933,null,13,"LED Downlight or Retrofit Kit 14 to 21W",18,null,"Incandescent and Halogen Downlights 1000 to 2000 lumens",84,null,"=ROUND((W295-T295)*(AE295)*P295/1000,4)","=ROUND(K295*L295,4)","2017-04-07","2019-03-31",null,null,1.24,"Waste Heat Factor_Energy",null,1.51,"Waste Heat Factor_Demand"]
["Small Business Direct Install","Interior LED Downlight or Retrofit Kit replacing 61-100W Fixture",212.2,"Small C&I","Lighting",null,"per fixture",68,302.36900000000003,null,9.3620000000000009E-2,0.7,null,6.5500000000000003E-2,null,3933,null,13,"LED Downlight or Retrofit Kit 14 to 21W",18,null,"Incandescent and Halogen Downlights 1000 to 2000 lumens",80,"Midpoint Value",{"$f":"cellformula(I296)","v":"=ROUND((W296-T296)*(AE296)*P296/1000,4)"},{"$f":"cellformula(N296)","v":"=ROUND(K296*L296,4)"},"2019-04-01",null,null,null,1.24,"Waste Heat Factor_Energy",null,1.51,"Waste Heat Factor_Demand"]
["Small Business Direct Install","Interior LED Downlight or Retrofit Kit replacing 101-155W Fixture",213.1,"Small C&I","Lighting",null,"per fixture",120,512.07659999999998,null,0.15855000000000002,0.7,null,0.111,null,3933,null,13,"LED Downlight or Retrofit Kit ≥ 22W",28,null,"Incandescent, HID and Halogen Downlights > 2000 lumens",133,null,"=ROUND((W297-T297)*(AE297)*P297/1000,4)","=ROUND(K297*L297,4)","2017-04-07","2019-03-31",null,null,1.24,"Waste Heat Factor_Energy",null,1.51,"Waste Heat Factor_Demand"]
["Small Business Direct Install","Interior LED Downlight or Retrofit Kit replacing 101-155W Fixture",213.2,"Small C&I","Lighting",null,"per fixture",120,512.07659999999998,null,0.15855000000000002,0.7,null,0.111,null,3933,null,13,"LED Downlight or Retrofit Kit ≥ 22W",23,"Program Tracking Database","Incandescent, HID and Halogen Downlights > 2000 lumens",128,"Midpoint Value",{"$f":"cellformula(I298)","v":"=ROUND((W298-T298)*(AE298)*P298/1000,4)"},{"$f":"cellformula(N298)","v":"=ROUND(K298*L298,4)"},"2019-04-01",null,null,null,1.24,"Waste Heat Factor_Energy",null,1.51,"Waste Heat Factor_Demand"]
["Small Business Direct Install","LED Low Bay Fixture replacing 150W-300W fixture",214.1,"Small C&I","Lighting",null,"per fixture",305,806.62860000000001,null,0.17554000000000003,0.83,null,0.1457,null,4367,null,12,"LED Low Bay (watts)",70,null,"Pulse Start Metal Halide (watts)",201,null,"=ROUND((W299-T299)*(AE299)*P299/1000,4)","=ROUND(K299*L299,4)","2017-04-07","2019-03-31",null,null,1.41,"Waste Heat Factor",null,1.34,"Waste Heat Factor"]
["Small Business Direct Install","LED Low Bay Fixture replacing 150W-300W fixture",214.2,"Small C&I","Lighting",null,"per fixture",305,668.08550000000002,null,0.14539000000000002,0.83,null,0.1207,null,4367,null,{"$f":"ROUND(50000/P300,0)","v":11},"LED Low Bay (watts)",116.5,"Program Tracking Database","Pulse Start Metal Halide (watts)",225,"Midpoint Value",{"$f":"cellformula(I300)","v":"=ROUND((W300-T300)*(AE300)*P300/1000,4)"},{"$f":"cellformula(N300)","v":"=ROUND(K300*L300,4)"},"2019-04-01",null,null,null,1.41,"Waste Heat Factor",null,1.34,"Waste Heat Factor"]
["Small Business Direct Install","LED Low/High Bay Fixture replacing 301W-450W fixture",215.1,"Small C&I","Lighting",null,"per fixture",330,1096.0297,null,0.23852000000000001,0.83,null,0.19800000000000001,null,4367,null,12,"LED High/Low Bay (watts)",110,null,"Pulse Start Metal Halide (watts)",288,null,"=ROUND((W301-T301)*(AE301)*P301/1000,4)","=ROUND(K301*L301,4)","2017-04-07","2019-03-31",null,null,1.41,"Waste Heat Factor",null,1.34,"Waste Heat Factor"]
["Small Business Direct Install","LED Low/High Bay Fixture replacing 301W-450W fixture",215.2,"Small C&I","Lighting",null,"per fixture",330,1234.5726999999999,null,0.26867000000000002,0.83,null,0.223,null,4367,null,{"$f":"ROUND(50000/P302,0)","v":11},"LED High/Low Bay (watts)",174.5,"Program Tracking Database","Pulse Start Metal Halide (watts)",375,"Midpoint Value",{"$f":"cellformula(I302)","v":"=ROUND((W302-T302)*(AE302)*P302/1000,4)"},{"$f":"cellformula(N302)","v":"=ROUND(K302*L302,4)"},"2019-04-01",null,null,null,1.41,"Waste Heat Factor",null,1.34,"Waste Heat Factor"]
["Small Business Direct Install","LED High Bay Fixture replacing 451W - 750W fixture",216.1,"Small C&I","Lighting",null,"per fixture",430,1711.7766999999999,null,0.37252000000000002,0.83,null,0.30919999999999997,null,4367,null,12,"LED High Bay (watts)",175,null,"Pulse Start Metal Halide (watts)",453,null,"=ROUND((W303-T303)*(AE303)*P303/1000,4)","=ROUND(K303*L303,4)","2017-04-07","2019-03-31",null,null,1.41,"Waste Heat Factor",null,1.34,"Waste Heat Factor"]
["Small Business Direct Install","LED High Bay Fixture replacing 451W - 750W fixture",216.2,"Small C&I","Lighting",null,"per fixture",430,2567.0491999999999,null,0.55864599999999998,0.83,null,0.4637,null,4367,null,{"$f":"ROUND(50000/P304,0)","v":11},"LED High Bay (watts)",183.1,"Program Tracking Database","Pulse Start Metal Halide (watts)",600,"Midpoint Value",{"$f":"cellformula(I304)","v":"=ROUND((W304-T304)*(AE304)*P304/1000,4)"},{"$f":"cellformula(N304)","v":"=ROUND(K304*L304,4)"},"2019-04-01",null,null,null,1.41,"Waste Heat Factor",null,1.34,"Waste Heat Factor"]
["Small Business Direct Install","LED High Bay fixture replacing > 750W fixture",217.1,"Small C&I","Lighting",null,"per fixture",725,4482.6382000000003,null,0.97552000000000005,0.83,null,0.80969999999999998,null,4367,null,12,"LED High Bay (watts)",350,null,"Pulse Start Metal Halide (watts)",1078,null,"=ROUND((W305-T305)*(AE305)*P305/1000,4)","=ROUND(K305*L305,4)","2017-04-07","2019-03-31",null,null,1.41,"Waste Heat Factor",null,1.34,"Waste Heat Factor"]
["Small Business Direct Install","LED High Bay fixture replacing > 750W fixture",217.2,"Small C&I","Lighting",null,"per fixture",725,5131.6355000000003,null,1.1167560000000001,0.83,null,0.92689999999999995,null,4367,null,{"$f":"ROUND(50000/P306,0)","v":11},"LED High Bay (watts)",244.6,"Program Tracking Database","Pulse Start Metal Halide (watts)",1078,null,{"$f":"cellformula(I306)","v":"=ROUND((W306-T306)*(AE306)*P306/1000,4)"},{"$f":"cellformula(N306)","v":"=ROUND(K306*L306,4)"},"2019-04-01",null,null,null,1.41,"Waste Heat Factor",null,1.34,"Waste Heat Factor"]
["Small Business Direct Install","28W - 4 ft fluorescent T8 lamp",218,"Small C&I","Lighting",null,"per lamp",1,17.9222,null,4.3550000000000004E-3,0.72,null,3.0999999999999999E-3,null,3911,null,7,"28W - 4 ft fluorescent T8 lamp",24.75,null,"32W 4 ft fluorescent T8 lamp",28,null,"=ROUND((W307-T307)*(AE307)*P307/1000,4)","=ROUND(K307*L307,4)","2016-04-01","2019-03-31",null,null,1.41,"Waste Heat Factor",null,1.34,"Waste Heat Factor"]
["Small Business Direct Install","28W - 4 ft fluorescent T8 lamp",218.1,"Small C&I","Lighting",null,"per lamp",1,22.058,null,5.3600000000000002E-3,0.72,null,3.8999999999999998E-3,null,3911,null,7,"28W - 4 ft fluorescent T8 lamp",28,"Program Tracking Database","32W 4 ft fluorescent T8 lamp",32,null,{"$f":"cellformula(I308)","v":"=ROUND((W308-T308)*(AE308)*P308/1000,4)"},{"$f":"cellformula(N308)","v":"=ROUND(K308*L308,4)"},"2019-04-01",null,null,null,1.41,"Waste Heat Factor",null,1.34,"Waste Heat Factor"]
["Small Business Direct Install","25W - 4 ft fluorescent T8 lamp",219,"Small C&I","Lighting",null,"per lamp",2.5,35.844299999999997,null,8.7100000000000007E-3,0.72,null,{"$f":"ROUND(K309*L309,4)","v":6.3E-3},null,3911,null,7,"25W - 4 ft fluorescent T8 lamp",21.5,null,"32W 4 ft fluorescent T8 lamp",28,null,"=ROUND((W309-T309)*(AE309)*P309/1000,4)","=ROUND(K309*L309,4)","2016-04-01","2019-03-31",null,null,1.41,"Waste Heat Factor",null,1.34,"Waste Heat Factor"]
["Small Business Direct Install","25W - 4 ft fluorescent T8 lamp",219.1,"Small C&I","Lighting",null,"per lamp",2.5,38.601599999999998,null,9.3800000000000012E-3,0.72,null,6.7999999999999996E-3,null,3911,null,7,"25W - 4 ft fluorescent T8 lamp",25,"Program Tracking Database","32W 4 ft fluorescent T8 lamp",32,null,{"$f":"cellformula(I310)","v":"=ROUND((W310-T310)*(AE310)*P310/1000,4)"},{"$f":"cellformula(N310)","v":"=ROUND(K310*L310,4)"},"2019-04-01",null,null,null,1.41,"Waste Heat Factor",null,1.34,"Waste Heat Factor"]
["Business Standard","LED Low Bay Fixture replacing 150W-300W fixture",220.1,"C&I","Lighting",null,"per fixture",305,806.62860000000001,null,0.17554000000000003,0.83,null,0.1457,null,4367,null,12,"LED Low Bay (watts)",70,null,"Pulse Start Metal Halide (watts)",201,null,"=ROUND((W311-T311)*(AE311)*P311/1000,4)","=ROUND(K311*L311,4)","2017-04-07","2019-03-31",null,null,1.41,"Waste Heat Factor",null,1.34,"Waste Heat Factor"]
["Business Standard","LED Low Bay Fixture replacing 150W-300W fixture",220.2,"C&I","Lighting",null,"per fixture",305,668.08550000000002,null,0.14539000000000002,0.83,null,0.1207,null,4367,null,{"$f":"ROUND(50000/P312,0)","v":11},"LED Low Bay (watts)",116.5,"Program Tracking Database","Pulse Start Metal Halide (watts)",225,"Midpoint Value",{"$f":"cellformula(I312)","v":"=ROUND((W312-T312)*(AE312)*P312/1000,4)"},{"$f":"cellformula(N312)","v":"=ROUND(K312*L312,4)"},"2019-04-01",null,null,null,1.41,"Waste Heat Factor",null,1.34,"Waste Heat Factor"]
["Business Standard","LED Low/High Bay Fixture replacing 301W‐450W fixture",221.2,"C&I","Lighting",null,"per fixture",330,{"$f":"ROUND((W313-T313)/1000*P313*AE313,4)","v":1508.5802000000001},"IL TRM v5",{"$f":"(W313-T313)/1000*AH313","v":0.30992431121712727},0.70264904374341364,"IL TRM v5",0.21779999999999999,"IL TRM v5",4367,"IL TRM v5",12,"LED High/Low Bay (watts)",120,"IL TRM v5","Pulse Start Metal Halide (watts)",365,"IL TRM v5",{"$f":"cellformula(I313)","v":"=ROUND((W313-T313)/1000*P313*AE313,4)"},{"$f":"cellformula(N313)","v":"=ROUND(K313*L313,4)"},"2018-04-01","2019-03-31",null,null,1.41,"Waste Heat Factor Energy","IL TRM v5",1.2649971886413358,"Waste Heat Factor Demand","IL TRM v5"]
["Business Standard","LED Low/High Bay Fixture replacing 301W‐450W fixture",221.3,"C&I","Lighting",null,"per fixture",330,{"$f":"ROUND((W314-T314)/1000*P314*AE314,4)","v":949.02700000000004},"IL TRM v5",{"$f":"(W314-T314)/1000*AH314","v":0.24280220200149882},0.66077261181013702,"IL TRM v5",0.16039999999999999,"IL TRM v5",4431.5553592345677,"IL TRM v5",{"$f":"ROUND(50000/P314,0)","v":11},"LED High/Low Bay (watts)",174.5,"Program Tracking Database","Pulse Start Metal Halide (watts)",375,"Midpoint Value",{"$f":"cellformula(I314)","v":"=ROUND((W314-T314)/1000*P314*AE314,4)"},{"$f":"cellformula(N314)","v":"=ROUND(K314*L314,4)"},"2019-04-01",null,null,null,1.0680904520679591,"Waste Heat Factor Energy","IL TRM v5",1.2109835511296698,"Waste Heat Factor Demand","IL TRM v5"]
["Business Standard","LED High Bay Fixture replacing 451W - 750W fixture",222.1,"C&I","Lighting",null,"per fixture",430,{"$f":"ROUND((W315-T315)*(AE315)*P315/1000,4)","v":1711.7766999999999},null,{"$f":"(W315-T315)*AH315/1000","v":0.37252000000000002},0.83,null,0.30919999999999997,null,4367,null,12,"LED High Bay (watts)",175,null,"Pulse Start Metal Halide (watts)",453,null,"=ROUND((W315-T315)*(AE315)*P315/1000,4)","=ROUND(K315*L315,4)","2017-04-07","2019-03-31",null,null,1.41,"Waste Heat Factor",null,1.34,"Waste Heat Factor"]
["Business Standard","LED High Bay Fixture replacing 451W - 750W fixture",222.2,"C&I","Lighting",null,"per fixture",430,{"$f":"ROUND((W316-T316)*(AE316)*P316/1000,4)","v":2567.0491999999999},null,{"$f":"(W316-T316)*AH316/1000","v":0.55864599999999998},0.83,null,0.4637,null,4367,null,{"$f":"ROUND(50000/P316,0)","v":11},"LED High Bay (watts)",183.1,"Program Tracking Database","Pulse Start Metal Halide (watts)",600,"Midpoint Value",{"$f":"cellformula(I316)","v":"=ROUND((W316-T316)*(AE316)*P316/1000,4)"},{"$f":"cellformula(N316)","v":"=ROUND(K316*L316,4)"},"2019-04-01",null,null,null,1.41,"Waste Heat Factor",null,1.34,"Waste Heat Factor"]
["Business Standard","LED High Bay fixture replacing > 750W fixture",223.1,"C&I","Lighting",null,"per fixture",725,{"$f":"ROUND((W317-T317)*(AE317)*P317/1000,4)","v":4482.6382000000003},null,{"$f":"(W317-T317)*AH317/1000","v":0.97552000000000005},0.83,null,0.80969999999999998,null,4367,null,12,"LED High Bay (watts)",350,null,"Pulse Start Metal Halide (watts)",1078,null,"=ROUND((W317-T317)*(AE317)*P317/1000,4)","=ROUND(K317*L317,4)","2017-04-07","2019-03-31",null,null,1.41,"Waste Heat Factor",null,1.34,"Waste Heat Factor"]
["Business Standard","LED High Bay fixture replacing > 750W fixture",223.2,"C&I","Lighting",null,"per fixture",725,{"$f":"ROUND((W318-T318)*(AE318)*P318/1000,4)","v":5131.6355000000003},null,{"$f":"(W318-T318)*AH318/1000","v":1.1167560000000001},0.83,null,0.92689999999999995,null,4367,null,{"$f":"ROUND(50000/P318,0)","v":11},"LED High Bay (watts)",244.6,"Program Tracking Database","Pulse Start Metal Halide (watts)",1078,null,{"$f":"cellformula(I318)","v":"=ROUND((W318-T318)*(AE318)*P318/1000,4)"},{"$f":"cellformula(N318)","v":"=ROUND(K318*L318,4)"},"2019-04-01",null,null,null,1.41,"Waste Heat Factor",null,1.34,"Waste Heat Factor"]
["Business Standard","28W 4ft T8 Lamp Replacing 32W 4ft T8 Lamp",224.1,"C&I","Lighting",null,"per lamp",1,{"$f":"ROUND((W319-T319)*(AE319)*P319/1000,4)","v":17.9222},null,{"$f":"(W319-T319)*AH319/1000","v":4.3550000000000004E-3},0.72,null,3.0999999999999999E-3,null,3911,null,7,"28W - 4 ft fluorescent T8 lamp",24.75,null,"32W 4 ft fluorescent T8 lamp",28,null,"=ROUND((W319-T319)*(AE319)*P319/1000,4)","=ROUND(K319*L319,4)","2017-04-07","2019-03-31",null,null,1.41,"Waste Heat Factor",null,1.34,"Waste Heat Factor"]
["Business Standard","28W 4ft T8 Lamp Replacing 32W 4ft T8 Lamp",224.2,"C&I","Lighting",null,"per lamp",1,22.058,null,5.3600000000000002E-3,0.72,null,3.8999999999999998E-3,null,3911,null,7,"28W - 4 ft fluorescent T8 lamp",28,"Program Tracking Database","32W 4 ft fluorescent T8 lamp",32,null,{"$f":"cellformula(I320)","v":"=ROUND((W320-T320)*(AE320)*P320/1000,4)"},{"$f":"cellformula(N320)","v":"=ROUND(K320*L320,4)"},"2019-04-01",null,null,null,1.41,"Waste Heat Factor",null,1.34,"Waste Heat Factor"]
["Business Standard","25W 4ft T8 Lamp Replacing 32W 4ft T8 Lamp",225.1,"C&I","Lighting",null,"per lamp",2.5,35.844299999999997,null,8.7100000000000007E-3,0.72,null,6.3E-3,null,3911,null,7,"25W - 4 ft fluorescent T8 lamp",21.5,null,"32W 4 ft fluorescent T8 lamp",28,null,"=ROUND((W321-T321)*(AE321)*P321/1000,4)","=ROUND(K321*L321,4)","2017-04-07","2019-03-31",null,null,1.41,"Waste Heat Factor",null,1.34,"Waste Heat Factor"]
["Business Standard","25W 4ft T8 Lamp Replacing 32W 4ft T8 Lamp",225.2,"C&I","Lighting",null,"per lamp",2.5,38.601599999999998,null,9.3800000000000012E-3,0.72,null,6.7999999999999996E-3,null,3911,null,7,"25W - 4 ft fluorescent T8 lamp",25,"Program Tracking Database","32W 4 ft fluorescent T8 lamp",32,null,{"$f":"cellformula(I322)","v":"=ROUND((W322-T322)*(AE322)*P322/1000,4)"},{"$f":"cellformula(N322)","v":"=ROUND(K322*L322,4)"},"2019-04-01",null,null,null,1.41,"Waste Heat Factor",null,1.34,"Waste Heat Factor"]
["Business Standard","LED low bay mogul screw-base lamp/retrofit kit replacing 150W - 300W fixture",226,"C&I","Lighting",null,"per fixture",100,806.62860000000001,null,0.17554000000000003,0.83,null,0.1457,null,4367,null,12,"LED Low Bay (watts)",70,null,"Pulse Start Metal Halide (watts)",201,null,"=ROUND((W323-T323)*(AE323)*P323/1000,4)","=ROUND(K323*L323,4)","2017-04-07","2019-03-31",null,null,1.41,"Waste Heat Factor",null,1.34,"Waste Heat Factor"]
["Business Standard","LED low bay mogul screw-base lamp/retrofit kit replacing 150W - 300W fixture",226.1,"C&I","Lighting",null,"per fixture",100,1073.2470000000001,null,0.23356200000000005,0.83,null,0.19389999999999999,null,4367,null,{"$f":"ROUND(50000/P324,0)","v":11},"LED Low Bay (watts)",50.7,"Program Tracking Database","Pulse Start Metal Halide (watts)",225,"Midpoint Value",{"$f":"cellformula(I324)","v":"=ROUND((W324-T324)*(AE324)*P324/1000,4)"},{"$f":"cellformula(N324)","v":"=ROUND(K324*L324,4)"},"2019-04-01",null,null,null,1.41,"Waste Heat Factor",null,1.34,"Waste Heat Factor"]
["Business Standard","LED low/high bay mogul screw-base lamp/retrofit kit replacing 301W - 450W fixture",227,"C&I","Lighting",null,"per fixture",150,1096.0297,null,0.23852000000000001,0.83,null,0.19800000000000001,null,4367,null,12,"LED High/Low Bay (watts)",110,null,"Pulse Start Metal Halide (watts)",288,null,"=ROUND((W325-T325)*(AE325)*P325/1000,4)","=ROUND(K325*L325,4)","2017-04-07","2019-03-31",null,null,1.41,"Waste Heat Factor",null,1.34,"Waste Heat Factor"]
["Business Standard","LED low/high bay mogul screw-base lamp/retrofit kit replacing 301W - 450W fixture",227.1,"C&I","Lighting",null,"per fixture",150,{"$f":"ROUND((W326-T326)*(AE326)*P326/1000,4)","v":1858.3244},null,{"$f":"(W326-T326)*AH326/1000","v":0.40441200000000005},0.83,null,0.3357,null,4367,null,{"$f":"ROUND(50000/P326,0)","v":11},"LED High/Low Bay (watts)",73.2,"Program Tracking Database","Pulse Start Metal Halide (watts)",375,"Midpoint Value",{"$f":"cellformula(I326)","v":"=ROUND((W326-T326)*(AE326)*P326/1000,4)"},{"$f":"cellformula(N326)","v":"=ROUND(K326*L326,4)"},"2019-04-01",null,null,null,1.41,"Waste Heat Factor",null,1.34,"Waste Heat Factor"]
["Business Standard","LED high bay mogul screw-base lamp/retrofit kit replacing 451W - 750W fixture",228,"C&I","Lighting",null,"per fixture",200,1711.7766999999999,null,0.37252000000000002,0.83,null,0.30919999999999997,null,4367,null,12,"LED High Bay (watts)",175,null,"Pulse Start Metal Halide (watts)",453,null,"=ROUND((W327-T327)*(AE327)*P327/1000,4)","=ROUND(K327*L327,4)","2017-04-07","2019-03-31",null,null,1.41,"Waste Heat Factor",null,1.34,"Waste Heat Factor"]
["Business Standard","LED high bay mogul screw-base lamp/retrofit kit replacing 451W - 750W fixture",228.1,"C&I","Lighting",null,"per fixture",200,3109.5223999999998,null,0.67670000000000008,0.83,null,0.56169999999999998,null,4367,null,{"$f":"ROUND(50000/P328,0)","v":11},"LED High Bay (watts)",95,"Program Tracking Database","Pulse Start Metal Halide (watts)",600,"Midpoint Value",{"$f":"cellformula(I328)","v":"=ROUND((W328-T328)*(AE328)*P328/1000,4)"},{"$f":"cellformula(N328)","v":"=ROUND(K328*L328,4)"},"2019-04-01",null,null,null,1.41,"Waste Heat Factor",null,1.34,"Waste Heat Factor"]
["Business Standard","LED high bay mogul screw-base lamp/retrofit kit replacing > 750W fixture",229,"C&I","Lighting",null,"per fixture",350,4482.6382000000003,null,0.97552000000000005,0.83,null,0.80969999999999998,null,4367,null,12,"LED High Bay (watts)",350,null,"Pulse Start Metal Halide (watts)",1078,null,"=ROUND((W329-T329)*(AE329)*P329/1000,4)","=ROUND(K329*L329,4)","2017-04-07",null,null,null,1.41,"Waste Heat Factor",null,1.34,"Waste Heat Factor"]
["Business Standard","Interior 8' LED Linear Lamp Replacing 8ft T8 or T12 Lamp",313,"C&I","Lighting",null,"per lamp",28,{"$f":"ROUND((W330-T330)/1000*P330*AE330,4)","v":88.555499999999995},"IL TRM v5",{"$f":"(W330-T330)/1000*AH330","v":3.09E-2},0.65826050861528551,"IL TRM v5",2.0299999999999999E-2,"IL TRM v5",3582.3430662623045,"IL TRM v5",10,"8' LED Lamp",37.4,"IL TRM v5","96\", T-8 lamp, Instant Start Ballast, NLO",58,"PG&E Appendix B, for Fluorescent, (1) 96\", T-8 lamp, Instant Start Ballast, NLO",{"$f":"cellformula(I330)","v":"=ROUND((W330-T330)/1000*P330*AE330,4)"},{"$f":"cellformula(N330)","v":"=ROUND(K330*L330,4)"},"2018-04-01",null,null,null,1.2,"Waste Heat Factor Energy","IL TRM v5",1.5,"Waste Heat Factor Demand","IL TRM v5"]
["Small Business Direct Install","LED low bay mogul screw-base lamp/retrofit kit replacing 150W - 300W fixture",230,"Small C&I","Lighting",null,"per fixture",100,806.62860000000001,null,0.17554000000000003,0.83,null,0.1457,null,4367,null,12,"LED Low Bay (watts)",70,null,"Pulse Start Metal Halide (watts)",201,null,"=ROUND((W331-T331)*(AE331)*P331/1000,4)","=ROUND(K331*L331,4)","2017-04-07","2019-03-31",null,null,1.41,"Waste Heat Factor",null,1.34,"Waste Heat Factor"]
["Small Business Direct Install","LED low bay mogul screw-base lamp/retrofit kit replacing 150W - 300W fixture",230.1,"Small C&I","Lighting",null,"per fixture",100,1073.2470000000001,null,0.23356200000000005,0.83,null,0.19389999999999999,null,4367,null,{"$f":"ROUND(50000/P332,0)","v":11},"LED Low Bay (watts)",50.7,"Program Tracking Database","Pulse Start Metal Halide (watts)",225,"Midpoint Value",{"$f":"cellformula(I332)","v":"=ROUND((W332-T332)*(AE332)*P332/1000,4)"},{"$f":"cellformula(N332)","v":"=ROUND(K332*L332,4)"},"2019-04-01",null,null,null,1.41,"Waste Heat Factor",null,1.34,"Waste Heat Factor"]
["Small Business Direct Install","LED low/high bay mogul screw-base lamp/retrofit kit replacing 301W - 450W fixture",231,"Small C&I","Lighting",null,"per fixture",150,1096.0297,null,0.23852000000000001,0.83,null,0.19800000000000001,null,4367,null,12,"LED High/Low Bay (watts)",110,null,"Pulse Start Metal Halide (watts)",288,null,"=ROUND((W333-T333)*(AE333)*P333/1000,4)","=ROUND(K333*L333,4)","2017-04-07","2019-03-31",null,null,1.41,"Waste Heat Factor",null,1.34,"Waste Heat Factor"]
["Small Business Direct Install","LED low/high bay mogul screw-base lamp/retrofit kit replacing 301W - 450W fixture",231.1,"Small C&I","Lighting",null,"per fixture",150,{"$f":"ROUND((W334-T334)*(AE334)*P334/1000,4)","v":1858.3244},null,{"$f":"(W334-T334)*AH334/1000","v":0.40441200000000005},0.83,null,0.3357,null,4367,null,{"$f":"ROUND(50000/P334,0)","v":11},"LED High/Low Bay (watts)",73.2,"Program Tracking Database","Pulse Start Metal Halide (watts)",375,"Midpoint Value",{"$f":"cellformula(I334)","v":"=ROUND((W334-T334)*(AE334)*P334/1000,4)"},{"$f":"cellformula(N334)","v":"=ROUND(K334*L334,4)"},"2019-04-01",null,null,null,1.41,"Waste Heat Factor",null,1.34,"Waste Heat Factor"]
["Small Business Direct Install","LED high bay mogul screw-base lamp/retrofit kit replacing 451W - 750W fixture",232,"Small C&I","Lighting",null,"per fixture",200,1711.7766999999999,null,0.37252000000000002,0.83,null,0.30919999999999997,null,4367,null,12,"LED High Bay (watts)",175,null,"Pulse Start Metal Halide (watts)",453,null,"=ROUND((W335-T335)*(AE335)*P335/1000,4)","=ROUND(K335*L335,4)","2017-04-07","2019-03-31",null,null,1.41,"Waste Heat Factor",null,1.34,"Waste Heat Factor"]
["Small Business Direct Install","LED high bay mogul screw-base lamp/retrofit kit replacing 451W - 750W fixture",232.1,"Small C&I","Lighting",null,"per fixture",200,3109.5223999999998,null,0.67670000000000008,0.83,null,0.56169999999999998,null,4367,null,{"$f":"ROUND(50000/P336,0)","v":11},"LED High Bay (watts)",95,"Program Tracking Database","Pulse Start Metal Halide (watts)",600,"Midpoint Value",{"$f":"cellformula(I336)","v":"=ROUND((W336-T336)*(AE336)*P336/1000,4)"},{"$f":"cellformula(N336)","v":"=ROUND(K336*L336,4)"},"2019-04-01",null,null,null,1.41,"Waste Heat Factor",null,1.34,"Waste Heat Factor"]
["Small Business Direct Install","LED high bay mogul screw-base lamp/retrofit kit replacing > 750W fixture",233,"Small C&I","Lighting",null,"per fixture",350,4482.6382000000003,null,0.97552000000000005,0.83,null,0.80969999999999998,null,4367,null,12,"LED High Bay (watts)",350,null,"Pulse Start Metal Halide (watts)",1078,null,"=ROUND((W337-T337)*(AE337)*P337/1000,4)","=ROUND(K337*L337,4)","2017-04-07",null,null,null,1.41,"Waste Heat Factor",null,1.34,"Waste Heat Factor"]
["Whole House Efficiency","Whole House Efficiency Bonus Incentive",0.01,"Single Family","All",null,"per customer",null,null,null,null,null,null,null,null,null,null,null,null,null,null,null,null,null,null,null,"2016-04-01",null,null,null,null,null,null,null,null,null,null,null,null,null,null,null,null,null,null,null,null,null,null,null,null,null,null,null,null,null,null,null,null,null,null,null,null,null,null,null,null,null," "]
["Income-Eligible Multi-Family","Income-Eligible Multi-Family Custom Measure",0.02,"Multi-Family","All",null,"per customer",null,null,null,null,null,null,null,null,null,null,null,null,null,null,null,null,null,null,null,"2016-04-01"]
["Home Energy Report","Home Energy Report Custom Measure",0.04,"Single Family","All",null,"per customer",null,null,null,null,null,null,null,null,null,null,null,null,null,null,null,null,null,null,null,"2016-04-01"]
["Income-Eligible Home Energy Report","Income-Eligible Home Energy Report Custom Measure",0.05,"Single Family","All",null,"per customer",null,null,null,null,null,null,null,null,null,null,null,null,null,null,null,null,null,null,null,"2016-04-01"]
["Business Custom","Business Custom Measure",0.06,"C&I","All",null,"per customer",null,null,null,null,null,null,null,null,null,null,null,null,null,null,null,null,null,null,null,"2016-04-01"]
["Block Bidding","Block Bidding Custom Measure",7.0000000000000007E-2,"C&I","All",null,"per customer",null,null,null,null,null,null,null,null,null,null,null,null,null,null,null,null,null,null,null,"2016-04-01"]
["Strategic Energy Management","Strategic Energy Management Custom Measure",0.08,"C&I","All",null,"per customer",null,null,null,null,null,null,null,null,null,null,null,null,null,null,null,null,null,null,null,"2016-04-01"]
["Demand Response Incentive","Demand Repsonse Incentive Custom Measure",0.09,"C&I","All",null,"per customer",null,null,null,null,null,null,null,null,null,null,null,null,null,null,null,null,null,null,null,"2016-04-01"]